{"text_format":"1","workbook":"xlsx","n_sheets":9,"sheets":["À lire en premier","Rapport de contenu musical","Menus déroulants et valeurs","CisacSocietycodes","Guide de l’utilisateur","Normes et règles","z","Drop Down Menu and values","Tables"],"not_rendered":{"charts":0,"images":5,"macros":1,"external_links":0,"defined_names":3,"comments":1,"pivot_tables":0},"unopened":[],"bounds":{"document_bytes":16777216,"sheet_cells":100000,"rows_first":2000,"rows_last":500,"rows_between":2000,"halvings":0,"cell_chars":16384,"cell_head_chars":4096},"cells_cut":0,"cells_raw":0,"read":"whole","date_system":"1900"}

{"sheet":"À lire en premier","index":0,"n_rows":32,"n_cols":2,"rows_kept":32,"cut":false,"hidden":false,"merged":[[6,10,6,11],[6,12,6,13],[6,14,6,15],[6,16,6,17],[6,0,6,1],[6,2,6,3],[6,4,6,5],[6,6,6,7],[6,8,6,9],[5,10,5,11],[5,12,5,13],[5,14,5,15],[5,16,5,17],[4,0,4,1],[4,2,4,3],[4,4,4,5],[5,0,5,1],[5,2,5,3],[5,4,5,5],[5,6,5,7],[5,8,5,9],[1,12,1,13],[1,14,1,15],[4,10,4,11],[4,12,4,13],[4,14,4,15],[2,10,2,11],[2,12,2,13],[2,14,2,15],[2,16,2,17],[4,6,4,7],[4,8,4,9],[4,16,4,17],[2,0,2,1],[2,2,2,3],[2,4,2,5],[2,6,2,7],[2,8,2,9],[0,10,0,11],[0,12,0,13],[0,14,0,15],[0,16,0,17],[1,0,1,1],[1,2,1,3],[1,4,1,5],[1,6,1,7],[1,8,1,9],[0,0,0,1],[0,2,0,3],[0,4,0,5],[0,6,0,7],[0,8,0,9],[1,16,1,17],[1,10,1,11]]}
["Instructions"]
["Utilisez Microsoft Excel, sous Windows ou macOS, pour utiliser ce rapport de contenu musical (n’essayez pas de le compléter à l’aide d’un navigateur). Si vous utilisez un lecteur d’écran, utilisez NVDA ou JAWS sous Windows pour une accessibilité optimale. Voici comment :"]
["1 de 4. Ce manuel comporte trois autres feuilles de travail que la feuille de travail À lire d’abord : la feuille de travail Rapport de contenu musical dans laquelle vous saisissez vos données, suivie de conseils supplémentaires dans la feuille de travail Guide d’utilisation de haut niveau et la feuille de travail Normes et règles des rapports de contenu musical."]
["2 de 4. Si, sous Windows, vous voyez le message « Risque de sécurité : Microsoft a bloqué l’exécution des macros parce que le fichier source n’est pas fiable », allez dans l’explorateur Windows, localisez ce fichier, faites un clic droit sur le fichier, choisissez Propriétés, puis cochez la case Débloquer dans l’onglet Général.",{"$error":"#VALUE!"}]
["3 de 4. Dans la feuille de travail « Rapport de contenu musical », remplissez tous les champs de saisie pertinents (C4 à C18, C20, I4 à I18, O4 à 09), ainsi que le tableau qui commence à la ligne 28. Toutes les autres cellules sont en lecture seule, à l’exception du champ Durée de la musique assistée par ordinateur et des colonnes G et P du tableau, qui sont automatiquement remplies pour vous (elles sont toutes surlignées en jaune). N’inscrivez rien dans ces champs. Les champs obligatoires sont indiqués par un astérisque (*). "]
["4 de 4. Sauvegardez le fichier et le tour est joué."]
["Fin de la feuille de travail"]
[]
[]
[]
[]
[]
[]
[]
[]
[]
[]
[]
[]
[]
[]
[]
[]
[]
[]
[]
[]
[]
[]
[]
[]
[" "]

{"sheet":"Rapport de contenu musical","index":1,"n_rows":502,"n_cols":35,"rows_kept":502,"cut":false,"hidden":false,"merged":[[19,5,19,16],[18,5,18,10],[17,8,17,10],[10,11,15,16],[3,11,3,13],[4,11,4,13],[5,11,5,13],[6,11,6,13],[7,11,7,13],[8,11,8,13],[9,11,9,13],[14,5,14,7],[15,5,15,7],[16,5,16,7],[17,5,17,7],[12,8,12,10],[15,0,15,1],[16,0,16,1],[17,0,17,1],[18,0,18,1],[19,0,19,1],[10,0,10,1],[11,0,11,1],[12,0,12,1],[13,0,13,1],[14,0,14,1],[5,0,5,1],[6,0,6,1],[7,0,7,1],[8,0,8,1],[9,0,9,1],[0,0,0,16],[19,2,19,4],[16,11,16,16],[17,2,17,4],[17,11,17,16],[18,2,18,4],[18,11,18,16],[14,2,14,4],[14,8,14,10],[15,2,15,4],[15,8,15,10],[16,2,16,4],[16,8,16,10],[11,2,11,4],[11,8,11,10],[12,2,12,4],[13,2,13,4],[13,8,13,10],[9,2,9,4],[9,8,9,10],[9,5,9,7],[10,5,10,7],[11,5,11,7],[12,5,12,7],[13,5,13,7],[10,2,10,4],[10,8,10,10],[7,2,7,4],[7,8,7,10],[7,14,7,16],[8,2,8,4],[8,8,8,10],[8,14,8,16],[7,5,7,7],[8,5,8,7],[6,8,6,10],[6,14,6,16],[5,5,5,7],[6,5,6,7],[9,14,9,16],[501,0,501,1],[4,2,4,4],[4,8,4,10],[4,14,4,16],[1,0,2,16],[3,2,3,4],[3,8,3,10],[3,14,3,16],[3,0,3,1],[4,0,4,1],[3,5,3,7],[4,5,4,7],[5,2,5,4],[5,8,5,10],[5,14,5,16],[6,2,6,4]]}
["Rapport de contenu musical SOCAN (Les champs  marqués d’un astérisque (*) sont obligatoires)"]
["Sauvegardez une copie du rapport de contenu musical harmonisé sur votre bureau local\nNote importante : ne mettez pas à jour ce rapport de contenu musical à partir de votre navigateur car les fonctions y sont limitées"]
[]
["Classification de rapports de contenu musical :*",null,null,null,null,"Titre de la production :*",null,null,null,null,null,"Rôle de la partie AV intéressée 1 :"]
["Type de production :*",null,null,null,null,"Autres titres de la production :",null,null,null,null,null,"Nom de la partie AV intéressée 1 :"]
["Catégorie de production :*",null,null,null,null,"Titre de l’épisode :",null,null,null,null,null,"Rôle de la partie AV intéressée 2 :"]
["Date de soumission/Date de révision :*",null,null,null,null,"Autres titres de l’épisode :",null,null,null,null,null,"Nom de la partie AV intéressée 2 :"]
["Première date de parution :",null,null,null,null,"Numéro de l’épisode :",null,null,null,null,null,"Rôle de la partie AV intéressée 3 :"]
["Version :  ",null,null,null,null,"Pays de production 1 :*",null,null,null,null,null,"Nom de la partie AV intéressée 3 :"]
["Catégorie de version :",null,null,null,null,"Pays de production 2 : ",null,null,null,null,null,"Identifiant série (Utilisation interne seulement) :"]
["Commentaire sur la version :",null,null,null,null,"Pays de production 3 : ",null,null,null,null,null,"Légende"]
["Territoire/pays de la version :",null,null,null,null,"Source de l’identifiant AV :"]
["Territoire de première diffusion :",null,null,null,null,"Identifiant AV :"]
["Langue :  ",null,null,null,null,"Source de l’identifiant de production :"]
["Réseau/Station :",null,null,null,null,"Identifiant de production :"]
["Année de production :*",null,null,null,null,"Fournisseur du rapport de contenu musical :*"]
["Durée de la production :*",null,null,null,null,"Rapport de contenu musical préparé par :*",null,null,null,null,null,"Les champs  marqués d’un astérisque (*) sont obligatoires"]
["Durée totale de la musique :",null,null,null,null,"Rôle du fournisseur du rapport de contenu musical :",null,null,null,null,null,"Les cellules avec une liste déroulante sont également surlignées en orange."]
["Durée calculée  de la musique :  ",null,{"$f":"AH502","v":"00:00:00"},null,null,null,null,null,null,null,null,"Le champ de la Durée de la musique calculée ainsi que les colonnes G et P du tableau sont automatiquement peuplées pour vous (elles sont surlignées en jaune)."]
["Numéro de saison :"]
["# de séq.","Titre de la musique *","Utilisation de la musique *","Début","Fin","Durée de la musique * (HH:MM:SS)","Durée calculée de la musique (HH:MM:SS)","ISWC","ISRC","Interprètes","Source de la musique *","Rôle de la partie musicale intéressée *","Nom de la partie musicale intéressée*","Société d’affiliation","Numéro IPI","Code CISAC de la société","% de parts de la partie musicale intéressée",null,null,null,"HR","MM","SS","Time Out - Time In SS",null,null,null,"Time Out SS","Time IN ","Time Out","HH","MM","SS","Duration","Duration SS"]
[null,null,null,null,null,null,{"$f":"IF(X22<>\"\",AH22,0)","v":"00:00:00"},null,null,null,null,null,null,null,null,{"$f":"VLOOKUP(N22,CisacSocietycodes!$A$2:$C$365,2,0)","v":{"$error":"#N/A"}},null,0,0,0,{"$f":" LEFT((TEXT(AC22, \"000000\")), 2)","v":"00"},{"$f":" RIGHT(LEFT((TEXT(AC22, \"000000\")), 4), 2)","v":"00"},{"$f":" TEXT((ROUND(RIGHT((TEXT(AC22, \"000000\")), 2), 2)), \"00\")","v":"00"},{"$f":"((Y22 * 3600) + (Z22 * 60 )+( AA22 )) - ((U22 * 3600) + (V22 * 60 )+( W22 ))","v":0},{"$f":" LEFT((TEXT(AD22, \"000000\")), 2)","v":"00"},{"$f":" RIGHT(LEFT((TEXT(AD22, \"000000\")), 4), 2)","v":"00"},{"$f":" TEXT((ROUND(RIGHT((TEXT(AD22, \"000000\")), 2), 2)), \"00\")","v":"00"},{"$f":"(Y22 * 3600) + (Z22 * 60 )+( AA22 )","v":0},{"$f":"IF(F22<>\"\",0,D22)","v":0},{"$f":"IF(F22<>\"\",F22,E22)","v":0},{"$f":" ROUNDDOWN((X22/ 3600), 0)","v":0},{"$f":"ROUNDDOWN((((X22 / 3600) - AE22) * 60), 0)","v":0},{"$f":" ((X22) / 60) - (TEXT(ROUNDDOWN((X22 / 60), 0), \"00\"))","v":0},{"$f":" (TEXT(AE22, \"00\")) & \":\" &  (TEXT(AF22, \"00\")) & \":\" &  (TEXT((AG22) * 60, \"00\"))","v":"00:00:00"},{"$f":"X22","v":0}]
[null,null,null,null,null,null,{"$f":"IF(X23<>\"\",AH23,0)","v":"00:00:00"},null,null,null,null,null,null,null,null,{"$f":"VLOOKUP(N23,CisacSocietycodes!$A$2:$C$365,2,0)","v":{"$error":"#N/A"}},null,0,0,0,"00","00","00",0,"00","00","00",0,{"$f":"IF(F23<>\"\",0,D23)","v":0},0,0,0,0,"00:00:00",0]
[null,null,null,null,null,null,"00:00:00",null,null,null,null,null,null,null,null,{"$f":"VLOOKUP(N24,CisacSocietycodes!$A$2:$C$365,2,0)","v":{"$error":"#N/A"}},null,0,0,0,"00","00","00",0,"00","00","00",0,0,0,0,0,0,"00:00:00",0]
[null,null,null,null,null,null,"00:00:00",null,null,null,null,null,null,null,null,{"$f":"VLOOKUP(N25,CisacSocietycodes!$A$2:$C$365,2,0)","v":{"$error":"#N/A"}},null,0,0,0,"00","00","00",0,"00","00","00",0,0,0,0,0,0,"00:00:00",0]
[null,null,null,null,null,null,"00:00:00",null,null,null,null,null,null,null,null,{"$f":"VLOOKUP(N26,CisacSocietycodes!$A$2:$C$365,2,0)","v":{"$error":"#N/A"}},null,0,0,0,"00","00","00",0,"00","00","00",0,0,0,0,0,0,"00:00:00",0]
[null,null,null,null,null,null,"00:00:00",null,null,null,null,null,null,null,null,{"$f":"VLOOKUP(N27,CisacSocietycodes!$A$2:$C$365,2,0)","v":{"$error":"#N/A"}},null,0,0,0,"00","00","00",0,"00","00","00",0,0,0,0,0,0,"00:00:00",0]
[null,null,null,null,null,null,"00:00:00",null,null,null,null,null,null,null,null,{"$f":"VLOOKUP(N28,CisacSocietycodes!$A$2:$C$365,2,0)","v":{"$error":"#N/A"}},null,0,0,0,"00","00","00",0,"00","00","00",0,0,0,0,0,0,"00:00:00",0]
[null,null,null,null,null,null,"00:00:00",null,null,null,null,null,null,null,null,{"$f":"VLOOKUP(N29,CisacSocietycodes!$A$2:$C$365,2,0)","v":{"$error":"#N/A"}},null,0,0,0,"00","00","00",0,"00","00","00",0,0,0,0,0,0,"00:00:00",0]
[null,null,null,null,null,null,"00:00:00",null,null,null,null,null,null,null,null,{"$f":"VLOOKUP(N30,CisacSocietycodes!$A$2:$C$365,2,0)","v":{"$error":"#N/A"}},null,0,0,0,"00","00","00",0,"00","00","00",0,0,0,0,0,0,"00:00:00",0]
[null,null,null,null,null,null,"00:00:00",null,null,null,null,null,null,null,null,{"$f":"VLOOKUP(N31,CisacSocietycodes!$A$2:$C$365,2,0)","v":{"$error":"#N/A"}},null,0,0,0,"00","00","00",0,"00","00","00",0,0,0,0,0,0,"00:00:00",0]
[null,null,null,null,null,null,"00:00:00",null,null,null,null,null,null,null,null,{"$f":"VLOOKUP(N32,CisacSocietycodes!$A$2:$C$365,2,0)","v":{"$error":"#N/A"}},null,0,0,0,"00","00","00",0,"00","00","00",0,0,0,0,0,0,"00:00:00",0]
[null,null,null,null,null,null,"00:00:00",null,null,null,null,null,null,null,null,{"$f":"VLOOKUP(N33,CisacSocietycodes!$A$2:$C$365,2,0)","v":{"$error":"#N/A"}},null,0,0,0,"00","00","00",0,"00","00","00",0,0,0,0,0,0,"00:00:00",0]
[null,null,null,null,null,null,"00:00:00",null,null,null,null,null,null,null,null,{"$f":"VLOOKUP(N34,CisacSocietycodes!$A$2:$C$365,2,0)","v":{"$error":"#N/A"}},null,0,0,0,"00","00","00",0,"00","00","00",0,0,0,0,0,0,"00:00:00",0]
[null,null,null,null,null,null,"00:00:00",null,null,null,null,null,null,null,null,{"$f":"VLOOKUP(N35,CisacSocietycodes!$A$2:$C$365,2,0)","v":{"$error":"#N/A"}},null,0,0,0,"00","00","00",0,"00","00","00",0,0,0,0,0,0,"00:00:00",0]
[null,null,null,null,null,null,"00:00:00",null,null,null,null,null,null,null,null,{"$f":"VLOOKUP(N36,CisacSocietycodes!$A$2:$C$365,2,0)","v":{"$error":"#N/A"}},null,0,0,0,"00","00","00",0,"00","00","00",0,0,0,0,0,0,"00:00:00",0]
[null,null,null,null,null,null,"00:00:00",null,null,null,null,null,null,null,null,{"$f":"VLOOKUP(N37,CisacSocietycodes!$A$2:$C$365,2,0)","v":{"$error":"#N/A"}},null,0,0,0,"00","00","00",0,"00","00","00",0,0,0,0,0,0,"00:00:00",0]
[null,null,null,null,null,null,"00:00:00",null,null,null,null,null,null,null,null,{"$f":"VLOOKUP(N38,CisacSocietycodes!$A$2:$C$365,2,0)","v":{"$error":"#N/A"}},null,0,0,0,"00","00","00",0,"00","00","00",0,0,0,0,0,0,"00:00:00",0]
[null,null,null,null,null,null,"00:00:00",null,null,null,null,null,null,null,null,{"$f":"VLOOKUP(N39,CisacSocietycodes!$A$2:$C$365,2,0)","v":{"$error":"#N/A"}},null,0,0,0,"00","00","00",0,"00","00","00",0,0,0,0,0,0,"00:00:00",0]
[null,null,null,null,null,null,"00:00:00",null,null,null,null,null,null,null,null,{"$f":"VLOOKUP(N40,CisacSocietycodes!$A$2:$C$365,2,0)","v":{"$error":"#N/A"}},null,0,0,0,"00","00","00",0,"00","00","00",0,0,0,0,0,0,"00:00:00",0]
[null,null,null,null,null,null,"00:00:00",null,null,null,null,null,null,null,null,{"$f":"VLOOKUP(N41,CisacSocietycodes!$A$2:$C$365,2,0)","v":{"$error":"#N/A"}},null,0,0,0,"00","00","00",0,"00","00","00",0,0,0,0,0,0,"00:00:00",0]
[null,null,null,null,null,null,"00:00:00",null,null,null,null,null,null,null,null,{"$f":"VLOOKUP(N42,CisacSocietycodes!$A$2:$C$365,2,0)","v":{"$error":"#N/A"}},null,0,0,0,"00","00","00",0,"00","00","00",0,0,0,0,0,0,"00:00:00",0]
[null,null,null,null,null,null,"00:00:00",null,null,null,null,null,null,null,null,{"$f":"VLOOKUP(N43,CisacSocietycodes!$A$2:$C$365,2,0)","v":{"$error":"#N/A"}},null,0,0,0,"00","00","00",0,"00","00","00",0,0,0,0,0,0,"00:00:00",0]
[null,null,null,null,null,null,"00:00:00",null,null,null,null,null,null,null,null,{"$f":"VLOOKUP(N44,CisacSocietycodes!$A$2:$C$365,2,0)","v":{"$error":"#N/A"}},null,0,0,0,"00","00","00",0,"00","00","00",0,0,0,0,0,0,"00:00:00",0]
[null,null,null,null,null,null,"00:00:00",null,null,null,null,null,null,null,null,{"$f":"VLOOKUP(N45,CisacSocietycodes!$A$2:$C$365,2,0)","v":{"$error":"#N/A"}},null,0,0,0,"00","00","00",0,"00","00","00",0,0,0,0,0,0,"00:00:00",0]
[null,null,null,null,null,null,"00:00:00",null,null,null,null,null,null,null,null,{"$f":"VLOOKUP(N46,CisacSocietycodes!$A$2:$C$365,2,0)","v":{"$error":"#N/A"}},null,0,0,0,"00","00","00",0,"00","00","00",0,0,0,0,0,0,"00:00:00",0]
[null,null,null,null,null,null,"00:00:00",null,null,null,null,null,null,null,null,{"$f":"VLOOKUP(N47,CisacSocietycodes!$A$2:$C$365,2,0)","v":{"$error":"#N/A"}},null,0,0,0,"00","00","00",0,"00","00","00",0,0,0,0,0,0,"00:00:00",0]
[null,null,null,null,null,null,"00:00:00",null,null,null,null,null,null,null,null,{"$f":"VLOOKUP(N48,CisacSocietycodes!$A$2:$C$365,2,0)","v":{"$error":"#N/A"}},null,0,0,0,"00","00","00",0,"00","00","00",0,0,0,0,0,0,"00:00:00",0]
[null,null,null,null,null,null,"00:00:00",null,null,null,null,null,null,null,null,{"$f":"VLOOKUP(N49,CisacSocietycodes!$A$2:$C$365,2,0)","v":{"$error":"#N/A"}},null,0,0,0,"00","00","00",0,"00","00","00",0,0,0,0,0,0,"00:00:00",0]
[null,null,null,null,null,null,"00:00:00",null,null,null,null,null,null,null,null,{"$f":"VLOOKUP(N50,CisacSocietycodes!$A$2:$C$365,2,0)","v":{"$error":"#N/A"}},null,0,0,0,"00","00","00",0,"00","00","00",0,0,0,0,0,0,"00:00:00",0]
[null,null,null,null,null,null,"00:00:00",null,null,null,null,null,null,null,null,{"$f":"VLOOKUP(N51,CisacSocietycodes!$A$2:$C$365,2,0)","v":{"$error":"#N/A"}},null,0,0,0,"00","00","00",0,"00","00","00",0,0,0,0,0,0,"00:00:00",0]
[null,null,null,null,null,null,"00:00:00",null,null,null,null,null,null,null,null,{"$f":"VLOOKUP(N52,CisacSocietycodes!$A$2:$C$365,2,0)","v":{"$error":"#N/A"}},null,0,0,0,"00","00","00",0,"00","00","00",0,0,0,0,0,0,"00:00:00",0]
[null,null,null,null,null,null,"00:00:00",null,null,null,null,null,null,null,null,{"$f":"VLOOKUP(N53,CisacSocietycodes!$A$2:$C$365,2,0)","v":{"$error":"#N/A"}},null,0,0,0,"00","00","00",0,"00","00","00",0,0,0,0,0,0,"00:00:00",0]
[null,null,null,null,null,null,"00:00:00",null,null,null,null,null,null,null,null,{"$f":"VLOOKUP(N54,CisacSocietycodes!$A$2:$C$365,2,0)","v":{"$error":"#N/A"}},null,0,0,0,"00","00","00",0,"00","00","00",0,0,0,0,0,0,"00:00:00",0]
[null,null,null,null,null,null,"00:00:00",null,null,null,null,null,null,null,null,{"$f":"VLOOKUP(N55,CisacSocietycodes!$A$2:$C$365,2,0)","v":{"$error":"#N/A"}},null,0,0,0,"00","00","00",0,"00","00","00",0,0,0,0,0,0,"00:00:00",0]
[null,null,null,null,null,null,"00:00:00",null,null,null,null,null,null,null,null,{"$f":"VLOOKUP(N56,CisacSocietycodes!$A$2:$C$365,2,0)","v":{"$error":"#N/A"}},null,0,0,0,"00","00","00",0,"00","00","00",0,0,0,0,0,0,"00:00:00",0]
[null,null,null,null,null,null,"00:00:00",null,null,null,null,null,null,null,null,{"$f":"VLOOKUP(N57,CisacSocietycodes!$A$2:$C$365,2,0)","v":{"$error":"#N/A"}},null,0,0,0,"00","00","00",0,"00","00","00",0,0,0,0,0,0,"00:00:00",0]
[null,null,null,null,null,null,"00:00:00",null,null,null,null,null,null,null,null,{"$f":"VLOOKUP(N58,CisacSocietycodes!$A$2:$C$365,2,0)","v":{"$error":"#N/A"}},null,0,0,0,"00","00","00",0,"00","00","00",0,0,0,0,0,0,"00:00:00",0]
[null,null,null,null,null,null,"00:00:00",null,null,null,null,null,null,null,null,{"$f":"VLOOKUP(N59,CisacSocietycodes!$A$2:$C$365,2,0)","v":{"$error":"#N/A"}},null,0,0,0,"00","00","00",0,"00","00","00",0,0,0,0,0,0,"00:00:00",0]
[null,null,null,null,null,null,"00:00:00",null,null,null,null,null,null,null,null,{"$f":"VLOOKUP(N60,CisacSocietycodes!$A$2:$C$365,2,0)","v":{"$error":"#N/A"}},null,0,0,0,"00","00","00",0,"00","00","00",0,0,0,0,0,0,"00:00:00",0]
[null,null,null,null,null,null,"00:00:00",null,null,null,null,null,null,null,null,{"$f":"VLOOKUP(N61,CisacSocietycodes!$A$2:$C$365,2,0)","v":{"$error":"#N/A"}},null,0,0,0,"00","00","00",0,"00","00","00",0,0,0,0,0,0,"00:00:00",0]
[null,null,null,null,null,null,"00:00:00",null,null,null,null,null,null,null,null,{"$f":"VLOOKUP(N62,CisacSocietycodes!$A$2:$C$365,2,0)","v":{"$error":"#N/A"}},null,0,0,0,"00","00","00",0,"00","00","00",0,0,0,0,0,0,"00:00:00",0]
[null,null,null,null,null,null,"00:00:00",null,null,null,null,null,null,null,null,{"$f":"VLOOKUP(N63,CisacSocietycodes!$A$2:$C$365,2,0)","v":{"$error":"#N/A"}},null,0,0,0,"00","00","00",0,"00","00","00",0,0,0,0,0,0,"00:00:00",0]
[null,null,null,null,null,null,"00:00:00",null,null,null,null,null,null,null,null,{"$f":"VLOOKUP(N64,CisacSocietycodes!$A$2:$C$365,2,0)","v":{"$error":"#N/A"}},null,0,0,0,"00","00","00",0,"00","00","00",0,0,0,0,0,0,"00:00:00",0]
[null,null,null,null,null,null,"00:00:00",null,null,null,null,null,null,null,null,{"$f":"VLOOKUP(N65,CisacSocietycodes!$A$2:$C$365,2,0)","v":{"$error":"#N/A"}},null,0,0,0,"00","00","00",0,"00","00","00",0,0,0,0,0,0,"00:00:00",0]
[null,null,null,null,null,null,"00:00:00",null,null,null,null,null,null,null,null,{"$f":"VLOOKUP(N66,CisacSocietycodes!$A$2:$C$365,2,0)","v":{"$error":"#N/A"}},null,0,0,0,"00","00","00",0,"00","00","00",0,0,0,0,0,0,"00:00:00",0]
[null,null,null,null,null,null,"00:00:00",null,null,null,null,null,null,null,null,{"$f":"VLOOKUP(N67,CisacSocietycodes!$A$2:$C$365,2,0)","v":{"$error":"#N/A"}},null,0,0,0,"00","00","00",0,"00","00","00",0,0,0,0,0,0,"00:00:00",0]
[null,null,null,null,null,null,"00:00:00",null,null,null,null,null,null,null,null,{"$f":"VLOOKUP(N68,CisacSocietycodes!$A$2:$C$365,2,0)","v":{"$error":"#N/A"}},null,0,0,0,"00","00","00",0,"00","00","00",0,0,0,0,0,0,"00:00:00",0]
[null,null,null,null,null,null,"00:00:00",null,null,null,null,null,null,null,null,{"$f":"VLOOKUP(N69,CisacSocietycodes!$A$2:$C$365,2,0)","v":{"$error":"#N/A"}},null,0,0,0,"00","00","00",0,"00","00","00",0,0,0,0,0,0,"00:00:00",0]
[null,null,null,null,null,null,"00:00:00",null,null,null,null,null,null,null,null,{"$f":"VLOOKUP(N70,CisacSocietycodes!$A$2:$C$365,2,0)","v":{"$error":"#N/A"}},null,0,0,0,"00","00","00",0,"00","00","00",0,0,0,0,0,0,"00:00:00",0]
[null,null,null,null,null,null,"00:00:00",null,null,null,null,null,null,null,null,{"$f":"VLOOKUP(N71,CisacSocietycodes!$A$2:$C$365,2,0)","v":{"$error":"#N/A"}},null,0,0,0,"00","00","00",0,"00","00","00",0,0,0,0,0,0,"00:00:00",0]
[null,null,null,null,null,null,"00:00:00",null,null,null,null,null,null,null,null,{"$f":"VLOOKUP(N72,CisacSocietycodes!$A$2:$C$365,2,0)","v":{"$error":"#N/A"}},null,0,0,0,"00","00","00",0,"00","00","00",0,0,0,0,0,0,"00:00:00",0]
[null,null,null,null,null,null,"00:00:00",null,null,null,null,null,null,null,null,{"$f":"VLOOKUP(N73,CisacSocietycodes!$A$2:$C$365,2,0)","v":{"$error":"#N/A"}},null,0,0,0,"00","00","00",0,"00","00","00",0,0,0,0,0,0,"00:00:00",0]
[null,null,null,null,null,null,"00:00:00",null,null,null,null,null,null,null,null,{"$f":"VLOOKUP(N74,CisacSocietycodes!$A$2:$C$365,2,0)","v":{"$error":"#N/A"}},null,0,0,0,"00","00","00",0,"00","00","00",0,0,0,0,0,0,"00:00:00",0]
[null,null,null,null,null,null,"00:00:00",null,null,null,null,null,null,null,null,{"$f":"VLOOKUP(N75,CisacSocietycodes!$A$2:$C$365,2,0)","v":{"$error":"#N/A"}},null,0,0,0,"00","00","00",0,"00","00","00",0,0,0,0,0,0,"00:00:00",0]
[null,null,null,null,null,null,"00:00:00",null,null,null,null,null,null,null,null,{"$f":"VLOOKUP(N76,CisacSocietycodes!$A$2:$C$365,2,0)","v":{"$error":"#N/A"}},null,0,0,0,"00","00","00",0,"00","00","00",0,0,0,0,0,0,"00:00:00",0]
[null,null,null,null,null,null,"00:00:00",null,null,null,null,null,null,null,null,{"$f":"VLOOKUP(N77,CisacSocietycodes!$A$2:$C$365,2,0)","v":{"$error":"#N/A"}},null,0,0,0,"00","00","00",0,"00","00","00",0,0,0,0,0,0,"00:00:00",0]
[null,null,null,null,null,null,"00:00:00",null,null,null,null,null,null,null,null,{"$f":"VLOOKUP(N78,CisacSocietycodes!$A$2:$C$365,2,0)","v":{"$error":"#N/A"}},null,0,0,0,"00","00","00",0,"00","00","00",0,0,0,0,0,0,"00:00:00",0]
[null,null,null,null,null,null,"00:00:00",null,null,null,null,null,null,null,null,{"$f":"VLOOKUP(N79,CisacSocietycodes!$A$2:$C$365,2,0)","v":{"$error":"#N/A"}},null,0,0,0,"00","00","00",0,"00","00","00",0,0,0,0,0,0,"00:00:00",0]
[null,null,null,null,null,null,"00:00:00",null,null,null,null,null,null,null,null,{"$f":"VLOOKUP(N80,CisacSocietycodes!$A$2:$C$365,2,0)","v":{"$error":"#N/A"}},null,0,0,0,"00","00","00",0,"00","00","00",0,0,0,0,0,0,"00:00:00",0]
[null,null,null,null,null,null,"00:00:00",null,null,null,null,null,null,null,null,{"$f":"VLOOKUP(N81,CisacSocietycodes!$A$2:$C$365,2,0)","v":{"$error":"#N/A"}},null,0,0,0,"00","00","00",0,"00","00","00",0,0,0,0,0,0,"00:00:00",0]
[null,null,null,null,null,null,"00:00:00",null,null,null,null,null,null,null,null,{"$f":"VLOOKUP(N82,CisacSocietycodes!$A$2:$C$365,2,0)","v":{"$error":"#N/A"}},null,0,0,0,"00","00","00",0,"00","00","00",0,0,0,0,0,0,"00:00:00",0]
[null,null,null,null,null,null,"00:00:00",null,null,null,null,null,null,null,null,{"$f":"VLOOKUP(N83,CisacSocietycodes!$A$2:$C$365,2,0)","v":{"$error":"#N/A"}},null,0,0,0,"00","00","00",0,"00","00","00",0,0,0,0,0,0,"00:00:00",0]
[null,null,null,null,null,null,"00:00:00",null,null,null,null,null,null,null,null,{"$f":"VLOOKUP(N84,CisacSocietycodes!$A$2:$C$365,2,0)","v":{"$error":"#N/A"}},null,0,0,0,"00","00","00",0,"00","00","00",0,0,0,0,0,0,"00:00:00",0]
[null,null,null,null,null,null,"00:00:00",null,null,null,null,null,null,null,null,{"$f":"VLOOKUP(N85,CisacSocietycodes!$A$2:$C$365,2,0)","v":{"$error":"#N/A"}},null,0,0,0,"00","00","00",0,"00","00","00",0,0,0,0,0,0,"00:00:00",0]
[null,null,null,null,null,null,"00:00:00",null,null,null,null,null,null,null,null,{"$f":"VLOOKUP(N86,CisacSocietycodes!$A$2:$C$365,2,0)","v":{"$error":"#N/A"}},null,0,0,0,{"$f":" LEFT((TEXT(AC86, \"000000\")), 2)","v":"00"},{"$f":" RIGHT(LEFT((TEXT(AC86, \"000000\")), 4), 2)","v":"00"},{"$f":" TEXT((ROUND(RIGHT((TEXT(AC86, \"000000\")), 2), 2)), \"00\")","v":"00"},{"$f":"((Y86 * 3600) + (Z86 * 60 )+( AA86 )) - ((U86 * 3600) + (V86 * 60 )+( W86 ))","v":0},{"$f":" LEFT((TEXT(AD86, \"000000\")), 2)","v":"00"},{"$f":" RIGHT(LEFT((TEXT(AD86, \"000000\")), 4), 2)","v":"00"},{"$f":" TEXT((ROUND(RIGHT((TEXT(AD86, \"000000\")), 2), 2)), \"00\")","v":"00"},{"$f":"(Y86 * 3600) + (Z86 * 60 )+( AA86 )","v":0},0,{"$f":"IF(F86<>\"\",F86,E86)","v":0},{"$f":" ROUNDDOWN((X86/ 3600), 0)","v":0},{"$f":"ROUNDDOWN((((X86 / 3600) - AE86) * 60), 0)","v":0},{"$f":" ((X86) / 60) - (TEXT(ROUNDDOWN((X86 / 60), 0), \"00\"))","v":0},{"$f":" (TEXT(AE86, \"00\")) & \":\" &  (TEXT(AF86, \"00\")) & \":\" &  (TEXT((AG86) * 60, \"00\"))","v":"00:00:00"},{"$f":"X86","v":0}]
[null,null,null,null,null,null,{"$f":"IF(X87<>\"\",AH87,0)","v":"00:00:00"},null,null,null,null,null,null,null,null,{"$f":"VLOOKUP(N87,CisacSocietycodes!$A$2:$C$365,2,0)","v":{"$error":"#N/A"}},null,0,0,0,"00","00","00",0,"00","00","00",0,{"$f":"IF(F87<>\"\",0,D87)","v":0},0,0,0,0,"00:00:00",0]
[null,null,null,null,null,null,"00:00:00",null,null,null,null,null,null,null,null,{"$f":"VLOOKUP(N88,CisacSocietycodes!$A$2:$C$365,2,0)","v":{"$error":"#N/A"}},null,0,0,0,"00","00","00",0,"00","00","00",0,0,0,0,0,0,"00:00:00",0]
[null,null,null,null,null,null,"00:00:00",null,null,null,null,null,null,null,null,{"$f":"VLOOKUP(N89,CisacSocietycodes!$A$2:$C$365,2,0)","v":{"$error":"#N/A"}},null,0,0,0,"00","00","00",0,"00","00","00",0,0,0,0,0,0,"00:00:00",0]
[null,null,null,null,null,null,"00:00:00",null,null,null,null,null,null,null,null,{"$f":"VLOOKUP(N90,CisacSocietycodes!$A$2:$C$365,2,0)","v":{"$error":"#N/A"}},null,0,0,0,"00","00","00",0,"00","00","00",0,0,0,0,0,0,"00:00:00",0]
[null,null,null,null,null,null,"00:00:00",null,null,null,null,null,null,null,null,{"$f":"VLOOKUP(N91,CisacSocietycodes!$A$2:$C$365,2,0)","v":{"$error":"#N/A"}},null,0,0,0,"00","00","00",0,"00","00","00",0,0,0,0,0,0,"00:00:00",0]
[null,null,null,null,null,null,"00:00:00",null,null,null,null,null,null,null,null,{"$f":"VLOOKUP(N92,CisacSocietycodes!$A$2:$C$365,2,0)","v":{"$error":"#N/A"}},null,0,0,0,"00","00","00",0,"00","00","00",0,0,0,0,0,0,"00:00:00",0]
[null,null,null,null,null,null,"00:00:00",null,null,null,null,null,null,null,null,{"$f":"VLOOKUP(N93,CisacSocietycodes!$A$2:$C$365,2,0)","v":{"$error":"#N/A"}},null,0,0,0,"00","00","00",0,"00","00","00",0,0,0,0,0,0,"00:00:00",0]
[null,null,null,null,null,null,"00:00:00",null,null,null,null,null,null,null,null,{"$f":"VLOOKUP(N94,CisacSocietycodes!$A$2:$C$365,2,0)","v":{"$error":"#N/A"}},null,0,0,0,"00","00","00",0,"00","00","00",0,0,0,0,0,0,"00:00:00",0]
[null,null,null,null,null,null,"00:00:00",null,null,null,null,null,null,null,null,{"$f":"VLOOKUP(N95,CisacSocietycodes!$A$2:$C$365,2,0)","v":{"$error":"#N/A"}},null,0,0,0,"00","00","00",0,"00","00","00",0,0,0,0,0,0,"00:00:00",0]
[null,null,null,null,null,null,"00:00:00",null,null,null,null,null,null,null,null,{"$f":"VLOOKUP(N96,CisacSocietycodes!$A$2:$C$365,2,0)","v":{"$error":"#N/A"}},null,0,0,0,"00","00","00",0,"00","00","00",0,0,0,0,0,0,"00:00:00",0]
[null,null,null,null,null,null,"00:00:00",null,null,null,null,null,null,null,null,{"$f":"VLOOKUP(N97,CisacSocietycodes!$A$2:$C$365,2,0)","v":{"$error":"#N/A"}},null,0,0,0,"00","00","00",0,"00","00","00",0,0,0,0,0,0,"00:00:00",0]
[null,null,null,null,null,null,"00:00:00",null,null,null,null,null,null,null,null,{"$f":"VLOOKUP(N98,CisacSocietycodes!$A$2:$C$365,2,0)","v":{"$error":"#N/A"}},null,0,0,0,"00","00","00",0,"00","00","00",0,0,0,0,0,0,"00:00:00",0]
[null,null,null,null,null,null,"00:00:00",null,null,null,null,null,null,null,null,{"$f":"VLOOKUP(N99,CisacSocietycodes!$A$2:$C$365,2,0)","v":{"$error":"#N/A"}},null,0,0,0,"00","00","00",0,"00","00","00",0,0,0,0,0,0,"00:00:00",0]
[null,null,null,null,null,null,"00:00:00",null,null,null,null,null,null,null,null,{"$f":"VLOOKUP(N100,CisacSocietycodes!$A$2:$C$365,2,0)","v":{"$error":"#N/A"}},null,0,0,0,"00","00","00",0,"00","00","00",0,0,0,0,0,0,"00:00:00",0]
[null,null,null,null,null,null,"00:00:00",null,null,null,null,null,null,null,null,{"$f":"VLOOKUP(N101,CisacSocietycodes!$A$2:$C$365,2,0)","v":{"$error":"#N/A"}},null,0,0,0,"00","00","00",0,"00","00","00",0,0,0,0,0,0,"00:00:00",0]
[null,null,null,null,null,null,"00:00:00",null,null,null,null,null,null,null,null,{"$f":"VLOOKUP(N102,CisacSocietycodes!$A$2:$C$365,2,0)","v":{"$error":"#N/A"}},null,0,0,0,"00","00","00",0,"00","00","00",0,0,0,0,0,0,"00:00:00",0]
[null,null,null,null,null,null,"00:00:00",null,null,null,null,null,null,null,null,{"$f":"VLOOKUP(N103,CisacSocietycodes!$A$2:$C$365,2,0)","v":{"$error":"#N/A"}},null,0,0,0,"00","00","00",0,"00","00","00",0,0,0,0,0,0,"00:00:00",0]
[null,null,null,null,null,null,"00:00:00",null,null,null,null,null,null,null,null,{"$f":"VLOOKUP(N104,CisacSocietycodes!$A$2:$C$365,2,0)","v":{"$error":"#N/A"}},null,0,0,0,"00","00","00",0,"00","00","00",0,0,0,0,0,0,"00:00:00",0]
[null,null,null,null,null,null,"00:00:00",null,null,null,null,null,null,null,null,{"$f":"VLOOKUP(N105,CisacSocietycodes!$A$2:$C$365,2,0)","v":{"$error":"#N/A"}},null,0,0,0,"00","00","00",0,"00","00","00",0,0,0,0,0,0,"00:00:00",0]
[null,null,null,null,null,null,"00:00:00",null,null,null,null,null,null,null,null,{"$f":"VLOOKUP(N106,CisacSocietycodes!$A$2:$C$365,2,0)","v":{"$error":"#N/A"}},null,0,0,0,"00","00","00",0,"00","00","00",0,0,0,0,0,0,"00:00:00",0]
[null,null,null,null,null,null,"00:00:00",null,null,null,null,null,null,null,null,{"$f":"VLOOKUP(N107,CisacSocietycodes!$A$2:$C$365,2,0)","v":{"$error":"#N/A"}},null,0,0,0,"00","00","00",0,"00","00","00",0,0,0,0,0,0,"00:00:00",0]
[null,null,null,null,null,null,"00:00:00",null,null,null,null,null,null,null,null,{"$f":"VLOOKUP(N108,CisacSocietycodes!$A$2:$C$365,2,0)","v":{"$error":"#N/A"}},null,0,0,0,"00","00","00",0,"00","00","00",0,0,0,0,0,0,"00:00:00",0]
[null,null,null,null,null,null,"00:00:00",null,null,null,null,null,null,null,null,{"$f":"VLOOKUP(N109,CisacSocietycodes!$A$2:$C$365,2,0)","v":{"$error":"#N/A"}},null,0,0,0,"00","00","00",0,"00","00","00",0,0,0,0,0,0,"00:00:00",0]
[null,null,null,null,null,null,"00:00:00",null,null,null,null,null,null,null,null,{"$f":"VLOOKUP(N110,CisacSocietycodes!$A$2:$C$365,2,0)","v":{"$error":"#N/A"}},null,0,0,0,"00","00","00",0,"00","00","00",0,0,0,0,0,0,"00:00:00",0]
[null,null,null,null,null,null,"00:00:00",null,null,null,null,null,null,null,null,{"$f":"VLOOKUP(N111,CisacSocietycodes!$A$2:$C$365,2,0)","v":{"$error":"#N/A"}},null,0,0,0,"00","00","00",0,"00","00","00",0,0,0,0,0,0,"00:00:00",0]
[null,null,null,null,null,null,"00:00:00",null,null,null,null,null,null,null,null,{"$f":"VLOOKUP(N112,CisacSocietycodes!$A$2:$C$365,2,0)","v":{"$error":"#N/A"}},null,0,0,0,"00","00","00",0,"00","00","00",0,0,0,0,0,0,"00:00:00",0]
[null,null,null,null,null,null,"00:00:00",null,null,null,null,null,null,null,null,{"$f":"VLOOKUP(N113,CisacSocietycodes!$A$2:$C$365,2,0)","v":{"$error":"#N/A"}},null,0,0,0,"00","00","00",0,"00","00","00",0,0,0,0,0,0,"00:00:00",0]
[null,null,null,null,null,null,"00:00:00",null,null,null,null,null,null,null,null,{"$f":"VLOOKUP(N114,CisacSocietycodes!$A$2:$C$365,2,0)","v":{"$error":"#N/A"}},null,0,0,0,"00","00","00",0,"00","00","00",0,0,0,0,0,0,"00:00:00",0]
[null,null,null,null,null,null,"00:00:00",null,null,null,null,null,null,null,null,{"$f":"VLOOKUP(N115,CisacSocietycodes!$A$2:$C$365,2,0)","v":{"$error":"#N/A"}},null,0,0,0,"00","00","00",0,"00","00","00",0,0,0,0,0,0,"00:00:00",0]
[null,null,null,null,null,null,"00:00:00",null,null,null,null,null,null,null,null,{"$f":"VLOOKUP(N116,CisacSocietycodes!$A$2:$C$365,2,0)","v":{"$error":"#N/A"}},null,0,0,0,"00","00","00",0,"00","00","00",0,0,0,0,0,0,"00:00:00",0]
[null,null,null,null,null,null,"00:00:00",null,null,null,null,null,null,null,null,{"$f":"VLOOKUP(N117,CisacSocietycodes!$A$2:$C$365,2,0)","v":{"$error":"#N/A"}},null,0,0,0,"00","00","00",0,"00","00","00",0,0,0,0,0,0,"00:00:00",0]
[null,null,null,null,null,null,"00:00:00",null,null,null,null,null,null,null,null,{"$f":"VLOOKUP(N118,CisacSocietycodes!$A$2:$C$365,2,0)","v":{"$error":"#N/A"}},null,0,0,0,"00","00","00",0,"00","00","00",0,0,0,0,0,0,"00:00:00",0]
[null,null,null,null,null,null,"00:00:00",null,null,null,null,null,null,null,null,{"$f":"VLOOKUP(N119,CisacSocietycodes!$A$2:$C$365,2,0)","v":{"$error":"#N/A"}},null,0,0,0,"00","00","00",0,"00","00","00",0,0,0,0,0,0,"00:00:00",0]
[null,null,null,null,null,null,"00:00:00",null,null,null,null,null,null,null,null,{"$f":"VLOOKUP(N120,CisacSocietycodes!$A$2:$C$365,2,0)","v":{"$error":"#N/A"}},null,0,0,0,"00","00","00",0,"00","00","00",0,0,0,0,0,0,"00:00:00",0]
[null,null,null,null,null,null,"00:00:00",null,null,null,null,null,null,null,null,{"$f":"VLOOKUP(N121,CisacSocietycodes!$A$2:$C$365,2,0)","v":{"$error":"#N/A"}},null,0,0,0,"00","00","00",0,"00","00","00",0,0,0,0,0,0,"00:00:00",0]
[null,null,null,null,null,null,"00:00:00",null,null,null,null,null,null,null,null,{"$f":"VLOOKUP(N122,CisacSocietycodes!$A$2:$C$365,2,0)","v":{"$error":"#N/A"}},null,0,0,0,"00","00","00",0,"00","00","00",0,0,0,0,0,0,"00:00:00",0]
[null,null,null,null,null,null,"00:00:00",null,null,null,null,null,null,null,null,{"$f":"VLOOKUP(N123,CisacSocietycodes!$A$2:$C$365,2,0)","v":{"$error":"#N/A"}},null,0,0,0,"00","00","00",0,"00","00","00",0,0,0,0,0,0,"00:00:00",0]
[null,null,null,null,null,null,"00:00:00",null,null,null,null,null,null,null,null,{"$f":"VLOOKUP(N124,CisacSocietycodes!$A$2:$C$365,2,0)","v":{"$error":"#N/A"}},null,0,0,0,"00","00","00",0,"00","00","00",0,0,0,0,0,0,"00:00:00",0]
[null,null,null,null,null,null,"00:00:00",null,null,null,null,null,null,null,null,{"$f":"VLOOKUP(N125,CisacSocietycodes!$A$2:$C$365,2,0)","v":{"$error":"#N/A"}},null,0,0,0,"00","00","00",0,"00","00","00",0,0,0,0,0,0,"00:00:00",0]
[null,null,null,null,null,null,"00:00:00",null,null,null,null,null,null,null,null,{"$f":"VLOOKUP(N126,CisacSocietycodes!$A$2:$C$365,2,0)","v":{"$error":"#N/A"}},null,0,0,0,"00","00","00",0,"00","00","00",0,0,0,0,0,0,"00:00:00",0]
[null,null,null,null,null,null,"00:00:00",null,null,null,null,null,null,null,null,{"$f":"VLOOKUP(N127,CisacSocietycodes!$A$2:$C$365,2,0)","v":{"$error":"#N/A"}},null,0,0,0,"00","00","00",0,"00","00","00",0,0,0,0,0,0,"00:00:00",0]
[null,null,null,null,null,null,"00:00:00",null,null,null,null,null,null,null,null,{"$f":"VLOOKUP(N128,CisacSocietycodes!$A$2:$C$365,2,0)","v":{"$error":"#N/A"}},null,0,0,0,"00","00","00",0,"00","00","00",0,0,0,0,0,0,"00:00:00",0]
[null,null,null,null,null,null,"00:00:00",null,null,null,null,null,null,null,null,{"$f":"VLOOKUP(N129,CisacSocietycodes!$A$2:$C$365,2,0)","v":{"$error":"#N/A"}},null,0,0,0,"00","00","00",0,"00","00","00",0,0,0,0,0,0,"00:00:00",0]
[null,null,null,null,null,null,"00:00:00",null,null,null,null,null,null,null,null,{"$f":"VLOOKUP(N130,CisacSocietycodes!$A$2:$C$365,2,0)","v":{"$error":"#N/A"}},null,0,0,0,"00","00","00",0,"00","00","00",0,0,0,0,0,0,"00:00:00",0]
[null,null,null,null,null,null,"00:00:00",null,null,null,null,null,null,null,null,{"$f":"VLOOKUP(N131,CisacSocietycodes!$A$2:$C$365,2,0)","v":{"$error":"#N/A"}},null,0,0,0,"00","00","00",0,"00","00","00",0,0,0,0,0,0,"00:00:00",0]
[null,null,null,null,null,null,"00:00:00",null,null,null,null,null,null,null,null,{"$f":"VLOOKUP(N132,CisacSocietycodes!$A$2:$C$365,2,0)","v":{"$error":"#N/A"}},null,0,0,0,"00","00","00",0,"00","00","00",0,0,0,0,0,0,"00:00:00",0]
[null,null,null,null,null,null,"00:00:00",null,null,null,null,null,null,null,null,{"$f":"VLOOKUP(N133,CisacSocietycodes!$A$2:$C$365,2,0)","v":{"$error":"#N/A"}},null,0,0,0,"00","00","00",0,"00","00","00",0,0,0,0,0,0,"00:00:00",0]
[null,null,null,null,null,null,"00:00:00",null,null,null,null,null,null,null,null,{"$f":"VLOOKUP(N134,CisacSocietycodes!$A$2:$C$365,2,0)","v":{"$error":"#N/A"}},null,0,0,0,"00","00","00",0,"00","00","00",0,0,0,0,0,0,"00:00:00",0]
[null,null,null,null,null,null,"00:00:00",null,null,null,null,null,null,null,null,{"$f":"VLOOKUP(N135,CisacSocietycodes!$A$2:$C$365,2,0)","v":{"$error":"#N/A"}},null,0,0,0,"00","00","00",0,"00","00","00",0,0,0,0,0,0,"00:00:00",0]
[null,null,null,null,null,null,"00:00:00",null,null,null,null,null,null,null,null,{"$f":"VLOOKUP(N136,CisacSocietycodes!$A$2:$C$365,2,0)","v":{"$error":"#N/A"}},null,0,0,0,"00","00","00",0,"00","00","00",0,0,0,0,0,0,"00:00:00",0]
[null,null,null,null,null,null,"00:00:00",null,null,null,null,null,null,null,null,{"$f":"VLOOKUP(N137,CisacSocietycodes!$A$2:$C$365,2,0)","v":{"$error":"#N/A"}},null,0,0,0,"00","00","00",0,"00","00","00",0,0,0,0,0,0,"00:00:00",0]
[null,null,null,null,null,null,"00:00:00",null,null,null,null,null,null,null,null,{"$f":"VLOOKUP(N138,CisacSocietycodes!$A$2:$C$365,2,0)","v":{"$error":"#N/A"}},null,0,0,0,"00","00","00",0,"00","00","00",0,0,0,0,0,0,"00:00:00",0]
[null,null,null,null,null,null,"00:00:00",null,null,null,null,null,null,null,null,{"$f":"VLOOKUP(N139,CisacSocietycodes!$A$2:$C$365,2,0)","v":{"$error":"#N/A"}},null,0,0,0,"00","00","00",0,"00","00","00",0,0,0,0,0,0,"00:00:00",0]
[null,null,null,null,null,null,"00:00:00",null,null,null,null,null,null,null,null,{"$f":"VLOOKUP(N140,CisacSocietycodes!$A$2:$C$365,2,0)","v":{"$error":"#N/A"}},null,0,0,0,"00","00","00",0,"00","00","00",0,0,0,0,0,0,"00:00:00",0]
[null,null,null,null,null,null,"00:00:00",null,null,null,null,null,null,null,null,{"$f":"VLOOKUP(N141,CisacSocietycodes!$A$2:$C$365,2,0)","v":{"$error":"#N/A"}},null,0,0,0,"00","00","00",0,"00","00","00",0,0,0,0,0,0,"00:00:00",0]
[null,null,null,null,null,null,"00:00:00",null,null,null,null,null,null,null,null,{"$f":"VLOOKUP(N142,CisacSocietycodes!$A$2:$C$365,2,0)","v":{"$error":"#N/A"}},null,0,0,0,"00","00","00",0,"00","00","00",0,0,0,0,0,0,"00:00:00",0]
[null,null,null,null,null,null,"00:00:00",null,null,null,null,null,null,null,null,{"$f":"VLOOKUP(N143,CisacSocietycodes!$A$2:$C$365,2,0)","v":{"$error":"#N/A"}},null,0,0,0,"00","00","00",0,"00","00","00",0,0,0,0,0,0,"00:00:00",0]
[null,null,null,null,null,null,"00:00:00",null,null,null,null,null,null,null,null,{"$f":"VLOOKUP(N144,CisacSocietycodes!$A$2:$C$365,2,0)","v":{"$error":"#N/A"}},null,0,0,0,"00","00","00",0,"00","00","00",0,0,0,0,0,0,"00:00:00",0]
[null,null,null,null,null,null,"00:00:00",null,null,null,null,null,null,null,null,{"$f":"VLOOKUP(N145,CisacSocietycodes!$A$2:$C$365,2,0)","v":{"$error":"#N/A"}},null,0,0,0,"00","00","00",0,"00","00","00",0,0,0,0,0,0,"00:00:00",0]
[null,null,null,null,null,null,"00:00:00",null,null,null,null,null,null,null,null,{"$f":"VLOOKUP(N146,CisacSocietycodes!$A$2:$C$365,2,0)","v":{"$error":"#N/A"}},null,0,0,0,"00","00","00",0,"00","00","00",0,0,0,0,0,0,"00:00:00",0]
[null,null,null,null,null,null,"00:00:00",null,null,null,null,null,null,null,null,{"$f":"VLOOKUP(N147,CisacSocietycodes!$A$2:$C$365,2,0)","v":{"$error":"#N/A"}},null,0,0,0,"00","00","00",0,"00","00","00",0,0,0,0,0,0,"00:00:00",0]
[null,null,null,null,null,null,"00:00:00",null,null,null,null,null,null,null,null,{"$f":"VLOOKUP(N148,CisacSocietycodes!$A$2:$C$365,2,0)","v":{"$error":"#N/A"}},null,0,0,0,"00","00","00",0,"00","00","00",0,0,0,0,0,0,"00:00:00",0]
[null,null,null,null,null,null,"00:00:00",null,null,null,null,null,null,null,null,{"$f":"VLOOKUP(N149,CisacSocietycodes!$A$2:$C$365,2,0)","v":{"$error":"#N/A"}},null,0,0,0,"00","00","00",0,"00","00","00",0,0,0,0,0,0,"00:00:00",0]
[null,null,null,null,null,null,"00:00:00",null,null,null,null,null,null,null,null,{"$f":"VLOOKUP(N150,CisacSocietycodes!$A$2:$C$365,2,0)","v":{"$error":"#N/A"}},null,0,0,0,{"$f":" LEFT((TEXT(AC150, \"000000\")), 2)","v":"00"},{"$f":" RIGHT(LEFT((TEXT(AC150, \"000000\")), 4), 2)","v":"00"},{"$f":" TEXT((ROUND(RIGHT((TEXT(AC150, \"000000\")), 2), 2)), \"00\")","v":"00"},{"$f":"((Y150 * 3600) + (Z150 * 60 )+( AA150 )) - ((U150 * 3600) + (V150 * 60 )+( W150 ))","v":0},{"$f":" LEFT((TEXT(AD150, \"000000\")), 2)","v":"00"},{"$f":" RIGHT(LEFT((TEXT(AD150, \"000000\")), 4), 2)","v":"00"},{"$f":" TEXT((ROUND(RIGHT((TEXT(AD150, \"000000\")), 2), 2)), \"00\")","v":"00"},{"$f":"(Y150 * 3600) + (Z150 * 60 )+( AA150 )","v":0},0,{"$f":"IF(F150<>\"\",F150,E150)","v":0},{"$f":" ROUNDDOWN((X150/ 3600), 0)","v":0},{"$f":"ROUNDDOWN((((X150 / 3600) - AE150) * 60), 0)","v":0},{"$f":" ((X150) / 60) - (TEXT(ROUNDDOWN((X150 / 60), 0), \"00\"))","v":0},{"$f":" (TEXT(AE150, \"00\")) & \":\" &  (TEXT(AF150, \"00\")) & \":\" &  (TEXT((AG150) * 60, \"00\"))","v":"00:00:00"},{"$f":"X150","v":0}]
[null,null,null,null,null,null,{"$f":"IF(X151<>\"\",AH151,0)","v":"00:00:00"},null,null,null,null,null,null,null,null,{"$f":"VLOOKUP(N151,CisacSocietycodes!$A$2:$C$365,2,0)","v":{"$error":"#N/A"}},null,0,0,0,"00","00","00",0,"00","00","00",0,{"$f":"IF(F151<>\"\",0,D151)","v":0},0,0,0,0,"00:00:00",0]
[null,null,null,null,null,null,"00:00:00",null,null,null,null,null,null,null,null,{"$f":"VLOOKUP(N152,CisacSocietycodes!$A$2:$C$365,2,0)","v":{"$error":"#N/A"}},null,0,0,0,"00","00","00",0,"00","00","00",0,0,0,0,0,0,"00:00:00",0]
[null,null,null,null,null,null,"00:00:00",null,null,null,null,null,null,null,null,{"$f":"VLOOKUP(N153,CisacSocietycodes!$A$2:$C$365,2,0)","v":{"$error":"#N/A"}},null,0,0,0,"00","00","00",0,"00","00","00",0,0,0,0,0,0,"00:00:00",0]
[null,null,null,null,null,null,"00:00:00",null,null,null,null,null,null,null,null,{"$f":"VLOOKUP(N154,CisacSocietycodes!$A$2:$C$365,2,0)","v":{"$error":"#N/A"}},null,0,0,0,"00","00","00",0,"00","00","00",0,0,0,0,0,0,"00:00:00",0]
[null,null,null,null,null,null,"00:00:00",null,null,null,null,null,null,null,null,{"$f":"VLOOKUP(N155,CisacSocietycodes!$A$2:$C$365,2,0)","v":{"$error":"#N/A"}},null,0,0,0,"00","00","00",0,"00","00","00",0,0,0,0,0,0,"00:00:00",0]
[null,null,null,null,null,null,"00:00:00",null,null,null,null,null,null,null,null,{"$f":"VLOOKUP(N156,CisacSocietycodes!$A$2:$C$365,2,0)","v":{"$error":"#N/A"}},null,0,0,0,"00","00","00",0,"00","00","00",0,0,0,0,0,0,"00:00:00",0]
[null,null,null,null,null,null,"00:00:00",null,null,null,null,null,null,null,null,{"$f":"VLOOKUP(N157,CisacSocietycodes!$A$2:$C$365,2,0)","v":{"$error":"#N/A"}},null,0,0,0,"00","00","00",0,"00","00","00",0,0,0,0,0,0,"00:00:00",0]
[null,null,null,null,null,null,"00:00:00",null,null,null,null,null,null,null,null,{"$f":"VLOOKUP(N158,CisacSocietycodes!$A$2:$C$365,2,0)","v":{"$error":"#N/A"}},null,0,0,0,"00","00","00",0,"00","00","00",0,0,0,0,0,0,"00:00:00",0]
[null,null,null,null,null,null,"00:00:00",null,null,null,null,null,null,null,null,{"$f":"VLOOKUP(N159,CisacSocietycodes!$A$2:$C$365,2,0)","v":{"$error":"#N/A"}},null,0,0,0,"00","00","00",0,"00","00","00",0,0,0,0,0,0,"00:00:00",0]
[null,null,null,null,null,null,"00:00:00",null,null,null,null,null,null,null,null,{"$f":"VLOOKUP(N160,CisacSocietycodes!$A$2:$C$365,2,0)","v":{"$error":"#N/A"}},null,0,0,0,"00","00","00",0,"00","00","00",0,0,0,0,0,0,"00:00:00",0]
[null,null,null,null,null,null,"00:00:00",null,null,null,null,null,null,null,null,{"$f":"VLOOKUP(N161,CisacSocietycodes!$A$2:$C$365,2,0)","v":{"$error":"#N/A"}},null,0,0,0,"00","00","00",0,"00","00","00",0,0,0,0,0,0,"00:00:00",0]
[null,null,null,null,null,null,"00:00:00",null,null,null,null,null,null,null,null,{"$f":"VLOOKUP(N162,CisacSocietycodes!$A$2:$C$365,2,0)","v":{"$error":"#N/A"}},null,0,0,0,"00","00","00",0,"00","00","00",0,0,0,0,0,0,"00:00:00",0]
[null,null,null,null,null,null,"00:00:00",null,null,null,null,null,null,null,null,{"$f":"VLOOKUP(N163,CisacSocietycodes!$A$2:$C$365,2,0)","v":{"$error":"#N/A"}},null,0,0,0,"00","00","00",0,"00","00","00",0,0,0,0,0,0,"00:00:00",0]
[null,null,null,null,null,null,"00:00:00",null,null,null,null,null,null,null,null,{"$f":"VLOOKUP(N164,CisacSocietycodes!$A$2:$C$365,2,0)","v":{"$error":"#N/A"}},null,0,0,0,"00","00","00",0,"00","00","00",0,0,0,0,0,0,"00:00:00",0]
[null,null,null,null,null,null,"00:00:00",null,null,null,null,null,null,null,null,{"$f":"VLOOKUP(N165,CisacSocietycodes!$A$2:$C$365,2,0)","v":{"$error":"#N/A"}},null,0,0,0,"00","00","00",0,"00","00","00",0,0,0,0,0,0,"00:00:00",0]
[null,null,null,null,null,null,"00:00:00",null,null,null,null,null,null,null,null,{"$f":"VLOOKUP(N166,CisacSocietycodes!$A$2:$C$365,2,0)","v":{"$error":"#N/A"}},null,0,0,0,"00","00","00",0,"00","00","00",0,0,0,0,0,0,"00:00:00",0]
[null,null,null,null,null,null,"00:00:00",null,null,null,null,null,null,null,null,{"$f":"VLOOKUP(N167,CisacSocietycodes!$A$2:$C$365,2,0)","v":{"$error":"#N/A"}},null,0,0,0,"00","00","00",0,"00","00","00",0,0,0,0,0,0,"00:00:00",0]
[null,null,null,null,null,null,"00:00:00",null,null,null,null,null,null,null,null,{"$f":"VLOOKUP(N168,CisacSocietycodes!$A$2:$C$365,2,0)","v":{"$error":"#N/A"}},null,0,0,0,"00","00","00",0,"00","00","00",0,0,0,0,0,0,"00:00:00",0]
[null,null,null,null,null,null,"00:00:00",null,null,null,null,null,null,null,null,{"$f":"VLOOKUP(N169,CisacSocietycodes!$A$2:$C$365,2,0)","v":{"$error":"#N/A"}},null,0,0,0,"00","00","00",0,"00","00","00",0,0,0,0,0,0,"00:00:00",0]
[null,null,null,null,null,null,"00:00:00",null,null,null,null,null,null,null,null,{"$f":"VLOOKUP(N170,CisacSocietycodes!$A$2:$C$365,2,0)","v":{"$error":"#N/A"}},null,0,0,0,"00","00","00",0,"00","00","00",0,0,0,0,0,0,"00:00:00",0]
[null,null,null,null,null,null,"00:00:00",null,null,null,null,null,null,null,null,{"$f":"VLOOKUP(N171,CisacSocietycodes!$A$2:$C$365,2,0)","v":{"$error":"#N/A"}},null,0,0,0,"00","00","00",0,"00","00","00",0,0,0,0,0,0,"00:00:00",0]
[null,null,null,null,null,null,"00:00:00",null,null,null,null,null,null,null,null,{"$f":"VLOOKUP(N172,CisacSocietycodes!$A$2:$C$365,2,0)","v":{"$error":"#N/A"}},null,0,0,0,"00","00","00",0,"00","00","00",0,0,0,0,0,0,"00:00:00",0]
[null,null,null,null,null,null,"00:00:00",null,null,null,null,null,null,null,null,{"$f":"VLOOKUP(N173,CisacSocietycodes!$A$2:$C$365,2,0)","v":{"$error":"#N/A"}},null,0,0,0,"00","00","00",0,"00","00","00",0,0,0,0,0,0,"00:00:00",0]
[null,null,null,null,null,null,"00:00:00",null,null,null,null,null,null,null,null,{"$f":"VLOOKUP(N174,CisacSocietycodes!$A$2:$C$365,2,0)","v":{"$error":"#N/A"}},null,0,0,0,"00","00","00",0,"00","00","00",0,0,0,0,0,0,"00:00:00",0]
[null,null,null,null,null,null,"00:00:00",null,null,null,null,null,null,null,null,{"$f":"VLOOKUP(N175,CisacSocietycodes!$A$2:$C$365,2,0)","v":{"$error":"#N/A"}},null,0,0,0,"00","00","00",0,"00","00","00",0,0,0,0,0,0,"00:00:00",0]
[null,null,null,null,null,null,"00:00:00",null,null,null,null,null,null,null,null,{"$f":"VLOOKUP(N176,CisacSocietycodes!$A$2:$C$365,2,0)","v":{"$error":"#N/A"}},null,0,0,0,"00","00","00",0,"00","00","00",0,0,0,0,0,0,"00:00:00",0]
[null,null,null,null,null,null,"00:00:00",null,null,null,null,null,null,null,null,{"$f":"VLOOKUP(N177,CisacSocietycodes!$A$2:$C$365,2,0)","v":{"$error":"#N/A"}},null,0,0,0,"00","00","00",0,"00","00","00",0,0,0,0,0,0,"00:00:00",0]
[null,null,null,null,null,null,"00:00:00",null,null,null,null,null,null,null,null,{"$f":"VLOOKUP(N178,CisacSocietycodes!$A$2:$C$365,2,0)","v":{"$error":"#N/A"}},null,0,0,0,"00","00","00",0,"00","00","00",0,0,0,0,0,0,"00:00:00",0]
[null,null,null,null,null,null,"00:00:00",null,null,null,null,null,null,null,null,{"$f":"VLOOKUP(N179,CisacSocietycodes!$A$2:$C$365,2,0)","v":{"$error":"#N/A"}},null,0,0,0,"00","00","00",0,"00","00","00",0,0,0,0,0,0,"00:00:00",0]
[null,null,null,null,null,null,"00:00:00",null,null,null,null,null,null,null,null,{"$f":"VLOOKUP(N180,CisacSocietycodes!$A$2:$C$365,2,0)","v":{"$error":"#N/A"}},null,0,0,0,"00","00","00",0,"00","00","00",0,0,0,0,0,0,"00:00:00",0]
[null,null,null,null,null,null,"00:00:00",null,null,null,null,null,null,null,null,{"$f":"VLOOKUP(N181,CisacSocietycodes!$A$2:$C$365,2,0)","v":{"$error":"#N/A"}},null,0,0,0,"00","00","00",0,"00","00","00",0,0,0,0,0,0,"00:00:00",0]
[null,null,null,null,null,null,"00:00:00",null,null,null,null,null,null,null,null,{"$f":"VLOOKUP(N182,CisacSocietycodes!$A$2:$C$365,2,0)","v":{"$error":"#N/A"}},null,0,0,0,"00","00","00",0,"00","00","00",0,0,0,0,0,0,"00:00:00",0]
[null,null,null,null,null,null,"00:00:00",null,null,null,null,null,null,null,null,{"$f":"VLOOKUP(N183,CisacSocietycodes!$A$2:$C$365,2,0)","v":{"$error":"#N/A"}},null,0,0,0,"00","00","00",0,"00","00","00",0,0,0,0,0,0,"00:00:00",0]
[null,null,null,null,null,null,"00:00:00",null,null,null,null,null,null,null,null,{"$f":"VLOOKUP(N184,CisacSocietycodes!$A$2:$C$365,2,0)","v":{"$error":"#N/A"}},null,0,0,0,"00","00","00",0,"00","00","00",0,0,0,0,0,0,"00:00:00",0]
[null,null,null,null,null,null,"00:00:00",null,null,null,null,null,null,null,null,{"$f":"VLOOKUP(N185,CisacSocietycodes!$A$2:$C$365,2,0)","v":{"$error":"#N/A"}},null,0,0,0,"00","00","00",0,"00","00","00",0,0,0,0,0,0,"00:00:00",0]
[null,null,null,null,null,null,"00:00:00",null,null,null,null,null,null,null,null,{"$f":"VLOOKUP(N186,CisacSocietycodes!$A$2:$C$365,2,0)","v":{"$error":"#N/A"}},null,0,0,0,"00","00","00",0,"00","00","00",0,0,0,0,0,0,"00:00:00",0]
[null,null,null,null,null,null,"00:00:00",null,null,null,null,null,null,null,null,{"$f":"VLOOKUP(N187,CisacSocietycodes!$A$2:$C$365,2,0)","v":{"$error":"#N/A"}},null,0,0,0,"00","00","00",0,"00","00","00",0,0,0,0,0,0,"00:00:00",0]
[null,null,null,null,null,null,"00:00:00",null,null,null,null,null,null,null,null,{"$f":"VLOOKUP(N188,CisacSocietycodes!$A$2:$C$365,2,0)","v":{"$error":"#N/A"}},null,0,0,0,"00","00","00",0,"00","00","00",0,0,0,0,0,0,"00:00:00",0]
[null,null,null,null,null,null,"00:00:00",null,null,null,null,null,null,null,null,{"$f":"VLOOKUP(N189,CisacSocietycodes!$A$2:$C$365,2,0)","v":{"$error":"#N/A"}},null,0,0,0,"00","00","00",0,"00","00","00",0,0,0,0,0,0,"00:00:00",0]
[null,null,null,null,null,null,"00:00:00",null,null,null,null,null,null,null,null,{"$f":"VLOOKUP(N190,CisacSocietycodes!$A$2:$C$365,2,0)","v":{"$error":"#N/A"}},null,0,0,0,"00","00","00",0,"00","00","00",0,0,0,0,0,0,"00:00:00",0]
[null,null,null,null,null,null,"00:00:00",null,null,null,null,null,null,null,null,{"$f":"VLOOKUP(N191,CisacSocietycodes!$A$2:$C$365,2,0)","v":{"$error":"#N/A"}},null,0,0,0,"00","00","00",0,"00","00","00",0,0,0,0,0,0,"00:00:00",0]
[null,null,null,null,null,null,"00:00:00",null,null,null,null,null,null,null,null,{"$f":"VLOOKUP(N192,CisacSocietycodes!$A$2:$C$365,2,0)","v":{"$error":"#N/A"}},null,0,0,0,"00","00","00",0,"00","00","00",0,0,0,0,0,0,"00:00:00",0]
[null,null,null,null,null,null,"00:00:00",null,null,null,null,null,null,null,null,{"$f":"VLOOKUP(N193,CisacSocietycodes!$A$2:$C$365,2,0)","v":{"$error":"#N/A"}},null,0,0,0,"00","00","00",0,"00","00","00",0,0,0,0,0,0,"00:00:00",0]
[null,null,null,null,null,null,"00:00:00",null,null,null,null,null,null,null,null,{"$f":"VLOOKUP(N194,CisacSocietycodes!$A$2:$C$365,2,0)","v":{"$error":"#N/A"}},null,0,0,0,"00","00","00",0,"00","00","00",0,0,0,0,0,0,"00:00:00",0]
[null,null,null,null,null,null,"00:00:00",null,null,null,null,null,null,null,null,{"$f":"VLOOKUP(N195,CisacSocietycodes!$A$2:$C$365,2,0)","v":{"$error":"#N/A"}},null,0,0,0,"00","00","00",0,"00","00","00",0,0,0,0,0,0,"00:00:00",0]
[null,null,null,null,null,null,"00:00:00",null,null,null,null,null,null,null,null,{"$f":"VLOOKUP(N196,CisacSocietycodes!$A$2:$C$365,2,0)","v":{"$error":"#N/A"}},null,0,0,0,"00","00","00",0,"00","00","00",0,0,0,0,0,0,"00:00:00",0]
[null,null,null,null,null,null,"00:00:00",null,null,null,null,null,null,null,null,{"$f":"VLOOKUP(N197,CisacSocietycodes!$A$2:$C$365,2,0)","v":{"$error":"#N/A"}},null,0,0,0,"00","00","00",0,"00","00","00",0,0,0,0,0,0,"00:00:00",0]
[null,null,null,null,null,null,"00:00:00",null,null,null,null,null,null,null,null,{"$f":"VLOOKUP(N198,CisacSocietycodes!$A$2:$C$365,2,0)","v":{"$error":"#N/A"}},null,0,0,0,"00","00","00",0,"00","00","00",0,0,0,0,0,0,"00:00:00",0]
[null,null,null,null,null,null,"00:00:00",null,null,null,null,null,null,null,null,{"$f":"VLOOKUP(N199,CisacSocietycodes!$A$2:$C$365,2,0)","v":{"$error":"#N/A"}},null,0,0,0,"00","00","00",0,"00","00","00",0,0,0,0,0,0,"00:00:00",0]
[null,null,null,null,null,null,"00:00:00",null,null,null,null,null,null,null,null,{"$f":"VLOOKUP(N200,CisacSocietycodes!$A$2:$C$365,2,0)","v":{"$error":"#N/A"}},null,0,0,0,"00","00","00",0,"00","00","00",0,0,0,0,0,0,"00:00:00",0]
[null,null,null,null,null,null,"00:00:00",null,null,null,null,null,null,null,null,{"$f":"VLOOKUP(N201,CisacSocietycodes!$A$2:$C$365,2,0)","v":{"$error":"#N/A"}},null,0,0,0,"00","00","00",0,"00","00","00",0,0,0,0,0,0,"00:00:00",0]
[null,null,null,null,null,null,"00:00:00",null,null,null,null,null,null,null,null,{"$f":"VLOOKUP(N202,CisacSocietycodes!$A$2:$C$365,2,0)","v":{"$error":"#N/A"}},null,0,0,0,"00","00","00",0,"00","00","00",0,0,0,0,0,0,"00:00:00",0]
[null,null,null,null,null,null,"00:00:00",null,null,null,null,null,null,null,null,{"$f":"VLOOKUP(N203,CisacSocietycodes!$A$2:$C$365,2,0)","v":{"$error":"#N/A"}},null,0,0,0,"00","00","00",0,"00","00","00",0,0,0,0,0,0,"00:00:00",0]
[null,null,null,null,null,null,"00:00:00",null,null,null,null,null,null,null,null,{"$f":"VLOOKUP(N204,CisacSocietycodes!$A$2:$C$365,2,0)","v":{"$error":"#N/A"}},null,0,0,0,"00","00","00",0,"00","00","00",0,0,0,0,0,0,"00:00:00",0]
[null,null,null,null,null,null,"00:00:00",null,null,null,null,null,null,null,null,{"$f":"VLOOKUP(N205,CisacSocietycodes!$A$2:$C$365,2,0)","v":{"$error":"#N/A"}},null,0,0,0,"00","00","00",0,"00","00","00",0,0,0,0,0,0,"00:00:00",0]
[null,null,null,null,null,null,"00:00:00",null,null,null,null,null,null,null,null,{"$f":"VLOOKUP(N206,CisacSocietycodes!$A$2:$C$365,2,0)","v":{"$error":"#N/A"}},null,0,0,0,"00","00","00",0,"00","00","00",0,0,0,0,0,0,"00:00:00",0]
[null,null,null,null,null,null,"00:00:00",null,null,null,null,null,null,null,null,{"$f":"VLOOKUP(N207,CisacSocietycodes!$A$2:$C$365,2,0)","v":{"$error":"#N/A"}},null,0,0,0,"00","00","00",0,"00","00","00",0,0,0,0,0,0,"00:00:00",0]
[null,null,null,null,null,null,"00:00:00",null,null,null,null,null,null,null,null,{"$f":"VLOOKUP(N208,CisacSocietycodes!$A$2:$C$365,2,0)","v":{"$error":"#N/A"}},null,0,0,0,"00","00","00",0,"00","00","00",0,0,0,0,0,0,"00:00:00",0]
[null,null,null,null,null,null,"00:00:00",null,null,null,null,null,null,null,null,{"$f":"VLOOKUP(N209,CisacSocietycodes!$A$2:$C$365,2,0)","v":{"$error":"#N/A"}},null,0,0,0,"00","00","00",0,"00","00","00",0,0,0,0,0,0,"00:00:00",0]
[null,null,null,null,null,null,"00:00:00",null,null,null,null,null,null,null,null,{"$f":"VLOOKUP(N210,CisacSocietycodes!$A$2:$C$365,2,0)","v":{"$error":"#N/A"}},null,0,0,0,"00","00","00",0,"00","00","00",0,0,0,0,0,0,"00:00:00",0]
[null,null,null,null,null,null,"00:00:00",null,null,null,null,null,null,null,null,{"$f":"VLOOKUP(N211,CisacSocietycodes!$A$2:$C$365,2,0)","v":{"$error":"#N/A"}},null,0,0,0,"00","00","00",0,"00","00","00",0,0,0,0,0,0,"00:00:00",0]
[null,null,null,null,null,null,"00:00:00",null,null,null,null,null,null,null,null,{"$f":"VLOOKUP(N212,CisacSocietycodes!$A$2:$C$365,2,0)","v":{"$error":"#N/A"}},null,0,0,0,"00","00","00",0,"00","00","00",0,0,0,0,0,0,"00:00:00",0]
[null,null,null,null,null,null,"00:00:00",null,null,null,null,null,null,null,null,{"$f":"VLOOKUP(N213,CisacSocietycodes!$A$2:$C$365,2,0)","v":{"$error":"#N/A"}},null,0,0,0,"00","00","00",0,"00","00","00",0,0,0,0,0,0,"00:00:00",0]
[null,null,null,null,null,null,"00:00:00",null,null,null,null,null,null,null,null,{"$f":"VLOOKUP(N214,CisacSocietycodes!$A$2:$C$365,2,0)","v":{"$error":"#N/A"}},null,0,0,0,{"$f":" LEFT((TEXT(AC214, \"000000\")), 2)","v":"00"},{"$f":" RIGHT(LEFT((TEXT(AC214, \"000000\")), 4), 2)","v":"00"},{"$f":" TEXT((ROUND(RIGHT((TEXT(AC214, \"000000\")), 2), 2)), \"00\")","v":"00"},{"$f":"((Y214 * 3600) + (Z214 * 60 )+( AA214 )) - ((U214 * 3600) + (V214 * 60 )+( W214 ))","v":0},{"$f":" LEFT((TEXT(AD214, \"000000\")), 2)","v":"00"},{"$f":" RIGHT(LEFT((TEXT(AD214, \"000000\")), 4), 2)","v":"00"},{"$f":" TEXT((ROUND(RIGHT((TEXT(AD214, \"000000\")), 2), 2)), \"00\")","v":"00"},{"$f":"(Y214 * 3600) + (Z214 * 60 )+( AA214 )","v":0},0,{"$f":"IF(F214<>\"\",F214,E214)","v":0},{"$f":" ROUNDDOWN((X214/ 3600), 0)","v":0},{"$f":"ROUNDDOWN((((X214 / 3600) - AE214) * 60), 0)","v":0},{"$f":" ((X214) / 60) - (TEXT(ROUNDDOWN((X214 / 60), 0), \"00\"))","v":0},{"$f":" (TEXT(AE214, \"00\")) & \":\" &  (TEXT(AF214, \"00\")) & \":\" &  (TEXT((AG214) * 60, \"00\"))","v":"00:00:00"},{"$f":"X214","v":0}]
[null,null,null,null,null,null,{"$f":"IF(X215<>\"\",AH215,0)","v":"00:00:00"},null,null,null,null,null,null,null,null,{"$f":"VLOOKUP(N215,CisacSocietycodes!$A$2:$C$365,2,0)","v":{"$error":"#N/A"}},null,0,0,0,"00","00","00",0,"00","00","00",0,{"$f":"IF(F215<>\"\",0,D215)","v":0},0,0,0,0,"00:00:00",0]
[null,null,null,null,null,null,"00:00:00",null,null,null,null,null,null,null,null,{"$f":"VLOOKUP(N216,CisacSocietycodes!$A$2:$C$365,2,0)","v":{"$error":"#N/A"}},null,0,0,0,"00","00","00",0,"00","00","00",0,0,0,0,0,0,"00:00:00",0]
[null,null,null,null,null,null,"00:00:00",null,null,null,null,null,null,null,null,{"$f":"VLOOKUP(N217,CisacSocietycodes!$A$2:$C$365,2,0)","v":{"$error":"#N/A"}},null,0,0,0,"00","00","00",0,"00","00","00",0,0,0,0,0,0,"00:00:00",0]
[null,null,null,null,null,null,"00:00:00",null,null,null,null,null,null,null,null,{"$f":"VLOOKUP(N218,CisacSocietycodes!$A$2:$C$365,2,0)","v":{"$error":"#N/A"}},null,0,0,0,"00","00","00",0,"00","00","00",0,0,0,0,0,0,"00:00:00",0]
[null,null,null,null,null,null,"00:00:00",null,null,null,null,null,null,null,null,{"$f":"VLOOKUP(N219,CisacSocietycodes!$A$2:$C$365,2,0)","v":{"$error":"#N/A"}},null,0,0,0,"00","00","00",0,"00","00","00",0,0,0,0,0,0,"00:00:00",0]
[null,null,null,null,null,null,"00:00:00",null,null,null,null,null,null,null,null,{"$f":"VLOOKUP(N220,CisacSocietycodes!$A$2:$C$365,2,0)","v":{"$error":"#N/A"}},null,0,0,0,"00","00","00",0,"00","00","00",0,0,0,0,0,0,"00:00:00",0]
[null,null,null,null,null,null,"00:00:00",null,null,null,null,null,null,null,null,{"$f":"VLOOKUP(N221,CisacSocietycodes!$A$2:$C$365,2,0)","v":{"$error":"#N/A"}},null,0,0,0,"00","00","00",0,"00","00","00",0,0,0,0,0,0,"00:00:00",0]
[null,null,null,null,null,null,"00:00:00",null,null,null,null,null,null,null,null,{"$f":"VLOOKUP(N222,CisacSocietycodes!$A$2:$C$365,2,0)","v":{"$error":"#N/A"}},null,0,0,0,"00","00","00",0,"00","00","00",0,0,0,0,0,0,"00:00:00",0]
[null,null,null,null,null,null,"00:00:00",null,null,null,null,null,null,null,null,{"$f":"VLOOKUP(N223,CisacSocietycodes!$A$2:$C$365,2,0)","v":{"$error":"#N/A"}},null,0,0,0,"00","00","00",0,"00","00","00",0,0,0,0,0,0,"00:00:00",0]
[null,null,null,null,null,null,"00:00:00",null,null,null,null,null,null,null,null,{"$f":"VLOOKUP(N224,CisacSocietycodes!$A$2:$C$365,2,0)","v":{"$error":"#N/A"}},null,0,0,0,"00","00","00",0,"00","00","00",0,0,0,0,0,0,"00:00:00",0]
[null,null,null,null,null,null,"00:00:00",null,null,null,null,null,null,null,null,{"$f":"VLOOKUP(N225,CisacSocietycodes!$A$2:$C$365,2,0)","v":{"$error":"#N/A"}},null,0,0,0,"00","00","00",0,"00","00","00",0,0,0,0,0,0,"00:00:00",0]
[null,null,null,null,null,null,"00:00:00",null,null,null,null,null,null,null,null,{"$f":"VLOOKUP(N226,CisacSocietycodes!$A$2:$C$365,2,0)","v":{"$error":"#N/A"}},null,0,0,0,"00","00","00",0,"00","00","00",0,0,0,0,0,0,"00:00:00",0]
[null,null,null,null,null,null,"00:00:00",null,null,null,null,null,null,null,null,{"$f":"VLOOKUP(N227,CisacSocietycodes!$A$2:$C$365,2,0)","v":{"$error":"#N/A"}},null,0,0,0,"00","00","00",0,"00","00","00",0,0,0,0,0,0,"00:00:00",0]
[null,null,null,null,null,null,"00:00:00",null,null,null,null,null,null,null,null,{"$f":"VLOOKUP(N228,CisacSocietycodes!$A$2:$C$365,2,0)","v":{"$error":"#N/A"}},null,0,0,0,"00","00","00",0,"00","00","00",0,0,0,0,0,0,"00:00:00",0]
[null,null,null,null,null,null,"00:00:00",null,null,null,null,null,null,null,null,{"$f":"VLOOKUP(N229,CisacSocietycodes!$A$2:$C$365,2,0)","v":{"$error":"#N/A"}},null,0,0,0,"00","00","00",0,"00","00","00",0,0,0,0,0,0,"00:00:00",0]
[null,null,null,null,null,null,"00:00:00",null,null,null,null,null,null,null,null,{"$f":"VLOOKUP(N230,CisacSocietycodes!$A$2:$C$365,2,0)","v":{"$error":"#N/A"}},null,0,0,0,"00","00","00",0,"00","00","00",0,0,0,0,0,0,"00:00:00",0]
[null,null,null,null,null,null,"00:00:00",null,null,null,null,null,null,null,null,{"$f":"VLOOKUP(N231,CisacSocietycodes!$A$2:$C$365,2,0)","v":{"$error":"#N/A"}},null,0,0,0,"00","00","00",0,"00","00","00",0,0,0,0,0,0,"00:00:00",0]
[null,null,null,null,null,null,"00:00:00",null,null,null,null,null,null,null,null,{"$f":"VLOOKUP(N232,CisacSocietycodes!$A$2:$C$365,2,0)","v":{"$error":"#N/A"}},null,0,0,0,"00","00","00",0,"00","00","00",0,0,0,0,0,0,"00:00:00",0]
[null,null,null,null,null,null,"00:00:00",null,null,null,null,null,null,null,null,{"$f":"VLOOKUP(N233,CisacSocietycodes!$A$2:$C$365,2,0)","v":{"$error":"#N/A"}},null,0,0,0,"00","00","00",0,"00","00","00",0,0,0,0,0,0,"00:00:00",0]
[null,null,null,null,null,null,"00:00:00",null,null,null,null,null,null,null,null,{"$f":"VLOOKUP(N234,CisacSocietycodes!$A$2:$C$365,2,0)","v":{"$error":"#N/A"}},null,0,0,0,"00","00","00",0,"00","00","00",0,0,0,0,0,0,"00:00:00",0]
[null,null,null,null,null,null,"00:00:00",null,null,null,null,null,null,null,null,{"$f":"VLOOKUP(N235,CisacSocietycodes!$A$2:$C$365,2,0)","v":{"$error":"#N/A"}},null,0,0,0,"00","00","00",0,"00","00","00",0,0,0,0,0,0,"00:00:00",0]
[null,null,null,null,null,null,"00:00:00",null,null,null,null,null,null,null,null,{"$f":"VLOOKUP(N236,CisacSocietycodes!$A$2:$C$365,2,0)","v":{"$error":"#N/A"}},null,0,0,0,"00","00","00",0,"00","00","00",0,0,0,0,0,0,"00:00:00",0]
[null,null,null,null,null,null,"00:00:00",null,null,null,null,null,null,null,null,{"$f":"VLOOKUP(N237,CisacSocietycodes!$A$2:$C$365,2,0)","v":{"$error":"#N/A"}},null,0,0,0,"00","00","00",0,"00","00","00",0,0,0,0,0,0,"00:00:00",0]
[null,null,null,null,null,null,"00:00:00",null,null,null,null,null,null,null,null,{"$f":"VLOOKUP(N238,CisacSocietycodes!$A$2:$C$365,2,0)","v":{"$error":"#N/A"}},null,0,0,0,"00","00","00",0,"00","00","00",0,0,0,0,0,0,"00:00:00",0]
[null,null,null,null,null,null,"00:00:00",null,null,null,null,null,null,null,null,{"$f":"VLOOKUP(N239,CisacSocietycodes!$A$2:$C$365,2,0)","v":{"$error":"#N/A"}},null,0,0,0,"00","00","00",0,"00","00","00",0,0,0,0,0,0,"00:00:00",0]
[null,null,null,null,null,null,"00:00:00",null,null,null,null,null,null,null,null,{"$f":"VLOOKUP(N240,CisacSocietycodes!$A$2:$C$365,2,0)","v":{"$error":"#N/A"}},null,0,0,0,"00","00","00",0,"00","00","00",0,0,0,0,0,0,"00:00:00",0]
[null,null,null,null,null,null,"00:00:00",null,null,null,null,null,null,null,null,{"$f":"VLOOKUP(N241,CisacSocietycodes!$A$2:$C$365,2,0)","v":{"$error":"#N/A"}},null,0,0,0,"00","00","00",0,"00","00","00",0,0,0,0,0,0,"00:00:00",0]
[null,null,null,null,null,null,"00:00:00",null,null,null,null,null,null,null,null,{"$f":"VLOOKUP(N242,CisacSocietycodes!$A$2:$C$365,2,0)","v":{"$error":"#N/A"}},null,0,0,0,"00","00","00",0,"00","00","00",0,0,0,0,0,0,"00:00:00",0]
[null,null,null,null,null,null,"00:00:00",null,null,null,null,null,null,null,null,{"$f":"VLOOKUP(N243,CisacSocietycodes!$A$2:$C$365,2,0)","v":{"$error":"#N/A"}},null,0,0,0,"00","00","00",0,"00","00","00",0,0,0,0,0,0,"00:00:00",0]
[null,null,null,null,null,null,"00:00:00",null,null,null,null,null,null,null,null,{"$f":"VLOOKUP(N244,CisacSocietycodes!$A$2:$C$365,2,0)","v":{"$error":"#N/A"}},null,0,0,0,"00","00","00",0,"00","00","00",0,0,0,0,0,0,"00:00:00",0]
[null,null,null,null,null,null,"00:00:00",null,null,null,null,null,null,null,null,{"$f":"VLOOKUP(N245,CisacSocietycodes!$A$2:$C$365,2,0)","v":{"$error":"#N/A"}},null,0,0,0,"00","00","00",0,"00","00","00",0,0,0,0,0,0,"00:00:00",0]
[null,null,null,null,null,null,"00:00:00",null,null,null,null,null,null,null,null,{"$f":"VLOOKUP(N246,CisacSocietycodes!$A$2:$C$365,2,0)","v":{"$error":"#N/A"}},null,0,0,0,"00","00","00",0,"00","00","00",0,0,0,0,0,0,"00:00:00",0]
[null,null,null,null,null,null,"00:00:00",null,null,null,null,null,null,null,null,{"$f":"VLOOKUP(N247,CisacSocietycodes!$A$2:$C$365,2,0)","v":{"$error":"#N/A"}},null,0,0,0,"00","00","00",0,"00","00","00",0,0,0,0,0,0,"00:00:00",0]
[null,null,null,null,null,null,"00:00:00",null,null,null,null,null,null,null,null,{"$f":"VLOOKUP(N248,CisacSocietycodes!$A$2:$C$365,2,0)","v":{"$error":"#N/A"}},null,0,0,0,"00","00","00",0,"00","00","00",0,0,0,0,0,0,"00:00:00",0]
[null,null,null,null,null,null,"00:00:00",null,null,null,null,null,null,null,null,{"$f":"VLOOKUP(N249,CisacSocietycodes!$A$2:$C$365,2,0)","v":{"$error":"#N/A"}},null,0,0,0,"00","00","00",0,"00","00","00",0,0,0,0,0,0,"00:00:00",0]
[null,null,null,null,null,null,"00:00:00",null,null,null,null,null,null,null,null,{"$f":"VLOOKUP(N250,CisacSocietycodes!$A$2:$C$365,2,0)","v":{"$error":"#N/A"}},null,0,0,0,"00","00","00",0,"00","00","00",0,0,0,0,0,0,"00:00:00",0]
[null,null,null,null,null,null,"00:00:00",null,null,null,null,null,null,null,null,{"$f":"VLOOKUP(N251,CisacSocietycodes!$A$2:$C$365,2,0)","v":{"$error":"#N/A"}},null,0,0,0,"00","00","00",0,"00","00","00",0,0,0,0,0,0,"00:00:00",0]
[null,null,null,null,null,null,"00:00:00",null,null,null,null,null,null,null,null,{"$f":"VLOOKUP(N252,CisacSocietycodes!$A$2:$C$365,2,0)","v":{"$error":"#N/A"}},null,0,0,0,"00","00","00",0,"00","00","00",0,0,0,0,0,0,"00:00:00",0]
[null,null,null,null,null,null,"00:00:00",null,null,null,null,null,null,null,null,{"$f":"VLOOKUP(N253,CisacSocietycodes!$A$2:$C$365,2,0)","v":{"$error":"#N/A"}},null,0,0,0,"00","00","00",0,"00","00","00",0,0,0,0,0,0,"00:00:00",0]
[null,null,null,null,null,null,"00:00:00",null,null,null,null,null,null,null,null,{"$f":"VLOOKUP(N254,CisacSocietycodes!$A$2:$C$365,2,0)","v":{"$error":"#N/A"}},null,0,0,0,"00","00","00",0,"00","00","00",0,0,0,0,0,0,"00:00:00",0]
[null,null,null,null,null,null,"00:00:00",null,null,null,null,null,null,null,null,{"$f":"VLOOKUP(N255,CisacSocietycodes!$A$2:$C$365,2,0)","v":{"$error":"#N/A"}},null,0,0,0,"00","00","00",0,"00","00","00",0,0,0,0,0,0,"00:00:00",0]
[null,null,null,null,null,null,"00:00:00",null,null,null,null,null,null,null,null,{"$f":"VLOOKUP(N256,CisacSocietycodes!$A$2:$C$365,2,0)","v":{"$error":"#N/A"}},null,0,0,0,"00","00","00",0,"00","00","00",0,0,0,0,0,0,"00:00:00",0]
[null,null,null,null,null,null,"00:00:00",null,null,null,null,null,null,null,null,{"$f":"VLOOKUP(N257,CisacSocietycodes!$A$2:$C$365,2,0)","v":{"$error":"#N/A"}},null,0,0,0,"00","00","00",0,"00","00","00",0,0,0,0,0,0,"00:00:00",0]
[null,null,null,null,null,null,"00:00:00",null,null,null,null,null,null,null,null,{"$f":"VLOOKUP(N258,CisacSocietycodes!$A$2:$C$365,2,0)","v":{"$error":"#N/A"}},null,0,0,0,"00","00","00",0,"00","00","00",0,0,0,0,0,0,"00:00:00",0]
[null,null,null,null,null,null,"00:00:00",null,null,null,null,null,null,null,null,{"$f":"VLOOKUP(N259,CisacSocietycodes!$A$2:$C$365,2,0)","v":{"$error":"#N/A"}},null,0,0,0,"00","00","00",0,"00","00","00",0,0,0,0,0,0,"00:00:00",0]
[null,null,null,null,null,null,"00:00:00",null,null,null,null,null,null,null,null,{"$f":"VLOOKUP(N260,CisacSocietycodes!$A$2:$C$365,2,0)","v":{"$error":"#N/A"}},null,0,0,0,"00","00","00",0,"00","00","00",0,0,0,0,0,0,"00:00:00",0]
[null,null,null,null,null,null,"00:00:00",null,null,null,null,null,null,null,null,{"$f":"VLOOKUP(N261,CisacSocietycodes!$A$2:$C$365,2,0)","v":{"$error":"#N/A"}},null,0,0,0,"00","00","00",0,"00","00","00",0,0,0,0,0,0,"00:00:00",0]
[null,null,null,null,null,null,"00:00:00",null,null,null,null,null,null,null,null,{"$f":"VLOOKUP(N262,CisacSocietycodes!$A$2:$C$365,2,0)","v":{"$error":"#N/A"}},null,0,0,0,"00","00","00",0,"00","00","00",0,0,0,0,0,0,"00:00:00",0]
[null,null,null,null,null,null,"00:00:00",null,null,null,null,null,null,null,null,{"$f":"VLOOKUP(N263,CisacSocietycodes!$A$2:$C$365,2,0)","v":{"$error":"#N/A"}},null,0,0,0,"00","00","00",0,"00","00","00",0,0,0,0,0,0,"00:00:00",0]
[null,null,null,null,null,null,"00:00:00",null,null,null,null,null,null,null,null,{"$f":"VLOOKUP(N264,CisacSocietycodes!$A$2:$C$365,2,0)","v":{"$error":"#N/A"}},null,0,0,0,"00","00","00",0,"00","00","00",0,0,0,0,0,0,"00:00:00",0]
[null,null,null,null,null,null,"00:00:00",null,null,null,null,null,null,null,null,{"$f":"VLOOKUP(N265,CisacSocietycodes!$A$2:$C$365,2,0)","v":{"$error":"#N/A"}},null,0,0,0,"00","00","00",0,"00","00","00",0,0,0,0,0,0,"00:00:00",0]
[null,null,null,null,null,null,"00:00:00",null,null,null,null,null,null,null,null,{"$f":"VLOOKUP(N266,CisacSocietycodes!$A$2:$C$365,2,0)","v":{"$error":"#N/A"}},null,0,0,0,"00","00","00",0,"00","00","00",0,0,0,0,0,0,"00:00:00",0]
[null,null,null,null,null,null,"00:00:00",null,null,null,null,null,null,null,null,{"$f":"VLOOKUP(N267,CisacSocietycodes!$A$2:$C$365,2,0)","v":{"$error":"#N/A"}},null,0,0,0,"00","00","00",0,"00","00","00",0,0,0,0,0,0,"00:00:00",0]
[null,null,null,null,null,null,"00:00:00",null,null,null,null,null,null,null,null,{"$f":"VLOOKUP(N268,CisacSocietycodes!$A$2:$C$365,2,0)","v":{"$error":"#N/A"}},null,0,0,0,"00","00","00",0,"00","00","00",0,0,0,0,0,0,"00:00:00",0]
[null,null,null,null,null,null,"00:00:00",null,null,null,null,null,null,null,null,{"$f":"VLOOKUP(N269,CisacSocietycodes!$A$2:$C$365,2,0)","v":{"$error":"#N/A"}},null,0,0,0,"00","00","00",0,"00","00","00",0,0,0,0,0,0,"00:00:00",0]
[null,null,null,null,null,null,"00:00:00",null,null,null,null,null,null,null,null,{"$f":"VLOOKUP(N270,CisacSocietycodes!$A$2:$C$365,2,0)","v":{"$error":"#N/A"}},null,0,0,0,"00","00","00",0,"00","00","00",0,0,0,0,0,0,"00:00:00",0]
[null,null,null,null,null,null,"00:00:00",null,null,null,null,null,null,null,null,{"$f":"VLOOKUP(N271,CisacSocietycodes!$A$2:$C$365,2,0)","v":{"$error":"#N/A"}},null,0,0,0,"00","00","00",0,"00","00","00",0,0,0,0,0,0,"00:00:00",0]
[null,null,null,null,null,null,"00:00:00",null,null,null,null,null,null,null,null,{"$f":"VLOOKUP(N272,CisacSocietycodes!$A$2:$C$365,2,0)","v":{"$error":"#N/A"}},null,0,0,0,"00","00","00",0,"00","00","00",0,0,0,0,0,0,"00:00:00",0]
[null,null,null,null,null,null,"00:00:00",null,null,null,null,null,null,null,null,{"$f":"VLOOKUP(N273,CisacSocietycodes!$A$2:$C$365,2,0)","v":{"$error":"#N/A"}},null,0,0,0,"00","00","00",0,"00","00","00",0,0,0,0,0,0,"00:00:00",0]
[null,null,null,null,null,null,"00:00:00",null,null,null,null,null,null,null,null,{"$f":"VLOOKUP(N274,CisacSocietycodes!$A$2:$C$365,2,0)","v":{"$error":"#N/A"}},null,0,0,0,"00","00","00",0,"00","00","00",0,0,0,0,0,0,"00:00:00",0]
[null,null,null,null,null,null,"00:00:00",null,null,null,null,null,null,null,null,{"$f":"VLOOKUP(N275,CisacSocietycodes!$A$2:$C$365,2,0)","v":{"$error":"#N/A"}},null,0,0,0,"00","00","00",0,"00","00","00",0,0,0,0,0,0,"00:00:00",0]
[null,null,null,null,null,null,"00:00:00",null,null,null,null,null,null,null,null,{"$f":"VLOOKUP(N276,CisacSocietycodes!$A$2:$C$365,2,0)","v":{"$error":"#N/A"}},null,0,0,0,"00","00","00",0,"00","00","00",0,0,0,0,0,0,"00:00:00",0]
[null,null,null,null,null,null,"00:00:00",null,null,null,null,null,null,null,null,{"$f":"VLOOKUP(N277,CisacSocietycodes!$A$2:$C$365,2,0)","v":{"$error":"#N/A"}},null,0,0,0,"00","00","00",0,"00","00","00",0,0,0,0,0,0,"00:00:00",0]
[null,null,null,null,null,null,"00:00:00",null,null,null,null,null,null,null,null,{"$f":"VLOOKUP(N278,CisacSocietycodes!$A$2:$C$365,2,0)","v":{"$error":"#N/A"}},null,0,0,0,{"$f":" LEFT((TEXT(AC278, \"000000\")), 2)","v":"00"},{"$f":" RIGHT(LEFT((TEXT(AC278, \"000000\")), 4), 2)","v":"00"},{"$f":" TEXT((ROUND(RIGHT((TEXT(AC278, \"000000\")), 2), 2)), \"00\")","v":"00"},{"$f":"((Y278 * 3600) + (Z278 * 60 )+( AA278 )) - ((U278 * 3600) + (V278 * 60 )+( W278 ))","v":0},{"$f":" LEFT((TEXT(AD278, \"000000\")), 2)","v":"00"},{"$f":" RIGHT(LEFT((TEXT(AD278, \"000000\")), 4), 2)","v":"00"},{"$f":" TEXT((ROUND(RIGHT((TEXT(AD278, \"000000\")), 2), 2)), \"00\")","v":"00"},{"$f":"(Y278 * 3600) + (Z278 * 60 )+( AA278 )","v":0},0,{"$f":"IF(F278<>\"\",F278,E278)","v":0},{"$f":" ROUNDDOWN((X278/ 3600), 0)","v":0},{"$f":"ROUNDDOWN((((X278 / 3600) - AE278) * 60), 0)","v":0},{"$f":" ((X278) / 60) - (TEXT(ROUNDDOWN((X278 / 60), 0), \"00\"))","v":0},{"$f":" (TEXT(AE278, \"00\")) & \":\" &  (TEXT(AF278, \"00\")) & \":\" &  (TEXT((AG278) * 60, \"00\"))","v":"00:00:00"},{"$f":"X278","v":0}]
[null,null,null,null,null,null,{"$f":"IF(X279<>\"\",AH279,0)","v":"00:00:00"},null,null,null,null,null,null,null,null,{"$f":"VLOOKUP(N279,CisacSocietycodes!$A$2:$C$365,2,0)","v":{"$error":"#N/A"}},null,0,0,0,"00","00","00",0,"00","00","00",0,{"$f":"IF(F279<>\"\",0,D279)","v":0},0,0,0,0,"00:00:00",0]
[null,null,null,null,null,null,"00:00:00",null,null,null,null,null,null,null,null,{"$f":"VLOOKUP(N280,CisacSocietycodes!$A$2:$C$365,2,0)","v":{"$error":"#N/A"}},null,0,0,0,"00","00","00",0,"00","00","00",0,0,0,0,0,0,"00:00:00",0]
[null,null,null,null,null,null,"00:00:00",null,null,null,null,null,null,null,null,{"$f":"VLOOKUP(N281,CisacSocietycodes!$A$2:$C$365,2,0)","v":{"$error":"#N/A"}},null,0,0,0,"00","00","00",0,"00","00","00",0,0,0,0,0,0,"00:00:00",0]
[null,null,null,null,null,null,"00:00:00",null,null,null,null,null,null,null,null,{"$f":"VLOOKUP(N282,CisacSocietycodes!$A$2:$C$365,2,0)","v":{"$error":"#N/A"}},null,0,0,0,"00","00","00",0,"00","00","00",0,0,0,0,0,0,"00:00:00",0]
[null,null,null,null,null,null,"00:00:00",null,null,null,null,null,null,null,null,{"$f":"VLOOKUP(N283,CisacSocietycodes!$A$2:$C$365,2,0)","v":{"$error":"#N/A"}},null,0,0,0,"00","00","00",0,"00","00","00",0,0,0,0,0,0,"00:00:00",0]
[null,null,null,null,null,null,"00:00:00",null,null,null,null,null,null,null,null,{"$f":"VLOOKUP(N284,CisacSocietycodes!$A$2:$C$365,2,0)","v":{"$error":"#N/A"}},null,0,0,0,"00","00","00",0,"00","00","00",0,0,0,0,0,0,"00:00:00",0]
[null,null,null,null,null,null,"00:00:00",null,null,null,null,null,null,null,null,{"$f":"VLOOKUP(N285,CisacSocietycodes!$A$2:$C$365,2,0)","v":{"$error":"#N/A"}},null,0,0,0,"00","00","00",0,"00","00","00",0,0,0,0,0,0,"00:00:00",0]
[null,null,null,null,null,null,"00:00:00",null,null,null,null,null,null,null,null,{"$f":"VLOOKUP(N286,CisacSocietycodes!$A$2:$C$365,2,0)","v":{"$error":"#N/A"}},null,0,0,0,"00","00","00",0,"00","00","00",0,0,0,0,0,0,"00:00:00",0]
[null,null,null,null,null,null,"00:00:00",null,null,null,null,null,null,null,null,{"$f":"VLOOKUP(N287,CisacSocietycodes!$A$2:$C$365,2,0)","v":{"$error":"#N/A"}},null,0,0,0,"00","00","00",0,"00","00","00",0,0,0,0,0,0,"00:00:00",0]
[null,null,null,null,null,null,"00:00:00",null,null,null,null,null,null,null,null,{"$f":"VLOOKUP(N288,CisacSocietycodes!$A$2:$C$365,2,0)","v":{"$error":"#N/A"}},null,0,0,0,"00","00","00",0,"00","00","00",0,0,0,0,0,0,"00:00:00",0]
[null,null,null,null,null,null,"00:00:00",null,null,null,null,null,null,null,null,{"$f":"VLOOKUP(N289,CisacSocietycodes!$A$2:$C$365,2,0)","v":{"$error":"#N/A"}},null,0,0,0,"00","00","00",0,"00","00","00",0,0,0,0,0,0,"00:00:00",0]
[null,null,null,null,null,null,"00:00:00",null,null,null,null,null,null,null,null,{"$f":"VLOOKUP(N290,CisacSocietycodes!$A$2:$C$365,2,0)","v":{"$error":"#N/A"}},null,0,0,0,"00","00","00",0,"00","00","00",0,0,0,0,0,0,"00:00:00",0]
[null,null,null,null,null,null,"00:00:00",null,null,null,null,null,null,null,null,{"$f":"VLOOKUP(N291,CisacSocietycodes!$A$2:$C$365,2,0)","v":{"$error":"#N/A"}},null,0,0,0,"00","00","00",0,"00","00","00",0,0,0,0,0,0,"00:00:00",0]
[null,null,null,null,null,null,"00:00:00",null,null,null,null,null,null,null,null,{"$f":"VLOOKUP(N292,CisacSocietycodes!$A$2:$C$365,2,0)","v":{"$error":"#N/A"}},null,0,0,0,"00","00","00",0,"00","00","00",0,0,0,0,0,0,"00:00:00",0]
[null,null,null,null,null,null,"00:00:00",null,null,null,null,null,null,null,null,{"$f":"VLOOKUP(N293,CisacSocietycodes!$A$2:$C$365,2,0)","v":{"$error":"#N/A"}},null,0,0,0,"00","00","00",0,"00","00","00",0,0,0,0,0,0,"00:00:00",0]
[null,null,null,null,null,null,"00:00:00",null,null,null,null,null,null,null,null,{"$f":"VLOOKUP(N294,CisacSocietycodes!$A$2:$C$365,2,0)","v":{"$error":"#N/A"}},null,0,0,0,"00","00","00",0,"00","00","00",0,0,0,0,0,0,"00:00:00",0]
[null,null,null,null,null,null,"00:00:00",null,null,null,null,null,null,null,null,{"$f":"VLOOKUP(N295,CisacSocietycodes!$A$2:$C$365,2,0)","v":{"$error":"#N/A"}},null,0,0,0,"00","00","00",0,"00","00","00",0,0,0,0,0,0,"00:00:00",0]
[null,null,null,null,null,null,"00:00:00",null,null,null,null,null,null,null,null,{"$f":"VLOOKUP(N296,CisacSocietycodes!$A$2:$C$365,2,0)","v":{"$error":"#N/A"}},null,0,0,0,"00","00","00",0,"00","00","00",0,0,0,0,0,0,"00:00:00",0]
[null,null,null,null,null,null,"00:00:00",null,null,null,null,null,null,null,null,{"$f":"VLOOKUP(N297,CisacSocietycodes!$A$2:$C$365,2,0)","v":{"$error":"#N/A"}},null,0,0,0,"00","00","00",0,"00","00","00",0,0,0,0,0,0,"00:00:00",0]
[null,null,null,null,null,null,"00:00:00",null,null,null,null,null,null,null,null,{"$f":"VLOOKUP(N298,CisacSocietycodes!$A$2:$C$365,2,0)","v":{"$error":"#N/A"}},null,0,0,0,"00","00","00",0,"00","00","00",0,0,0,0,0,0,"00:00:00",0]
[null,null,null,null,null,null,"00:00:00",null,null,null,null,null,null,null,null,{"$f":"VLOOKUP(N299,CisacSocietycodes!$A$2:$C$365,2,0)","v":{"$error":"#N/A"}},null,0,0,0,"00","00","00",0,"00","00","00",0,0,0,0,0,0,"00:00:00",0]
[null,null,null,null,null,null,"00:00:00",null,null,null,null,null,null,null,null,{"$f":"VLOOKUP(N300,CisacSocietycodes!$A$2:$C$365,2,0)","v":{"$error":"#N/A"}},null,0,0,0,"00","00","00",0,"00","00","00",0,0,0,0,0,0,"00:00:00",0]
[null,null,null,null,null,null,"00:00:00",null,null,null,null,null,null,null,null,{"$f":"VLOOKUP(N301,CisacSocietycodes!$A$2:$C$365,2,0)","v":{"$error":"#N/A"}},null,0,0,0,"00","00","00",0,"00","00","00",0,0,0,0,0,0,"00:00:00",0]
[null,null,null,null,null,null,"00:00:00",null,null,null,null,null,null,null,null,{"$f":"VLOOKUP(N302,CisacSocietycodes!$A$2:$C$365,2,0)","v":{"$error":"#N/A"}},null,0,0,0,"00","00","00",0,"00","00","00",0,0,0,0,0,0,"00:00:00",0]
[null,null,null,null,null,null,"00:00:00",null,null,null,null,null,null,null,null,{"$f":"VLOOKUP(N303,CisacSocietycodes!$A$2:$C$365,2,0)","v":{"$error":"#N/A"}},null,0,0,0,"00","00","00",0,"00","00","00",0,0,0,0,0,0,"00:00:00",0]
[null,null,null,null,null,null,"00:00:00",null,null,null,null,null,null,null,null,{"$f":"VLOOKUP(N304,CisacSocietycodes!$A$2:$C$365,2,0)","v":{"$error":"#N/A"}},null,0,0,0,"00","00","00",0,"00","00","00",0,0,0,0,0,0,"00:00:00",0]
[null,null,null,null,null,null,"00:00:00",null,null,null,null,null,null,null,null,{"$f":"VLOOKUP(N305,CisacSocietycodes!$A$2:$C$365,2,0)","v":{"$error":"#N/A"}},null,0,0,0,"00","00","00",0,"00","00","00",0,0,0,0,0,0,"00:00:00",0]
[null,null,null,null,null,null,"00:00:00",null,null,null,null,null,null,null,null,{"$f":"VLOOKUP(N306,CisacSocietycodes!$A$2:$C$365,2,0)","v":{"$error":"#N/A"}},null,0,0,0,"00","00","00",0,"00","00","00",0,0,0,0,0,0,"00:00:00",0]
[null,null,null,null,null,null,"00:00:00",null,null,null,null,null,null,null,null,{"$f":"VLOOKUP(N307,CisacSocietycodes!$A$2:$C$365,2,0)","v":{"$error":"#N/A"}},null,0,0,0,"00","00","00",0,"00","00","00",0,0,0,0,0,0,"00:00:00",0]
[null,null,null,null,null,null,"00:00:00",null,null,null,null,null,null,null,null,{"$f":"VLOOKUP(N308,CisacSocietycodes!$A$2:$C$365,2,0)","v":{"$error":"#N/A"}},null,0,0,0,"00","00","00",0,"00","00","00",0,0,0,0,0,0,"00:00:00",0]
[null,null,null,null,null,null,"00:00:00",null,null,null,null,null,null,null,null,{"$f":"VLOOKUP(N309,CisacSocietycodes!$A$2:$C$365,2,0)","v":{"$error":"#N/A"}},null,0,0,0,"00","00","00",0,"00","00","00",0,0,0,0,0,0,"00:00:00",0]
[null,null,null,null,null,null,"00:00:00",null,null,null,null,null,null,null,null,{"$f":"VLOOKUP(N310,CisacSocietycodes!$A$2:$C$365,2,0)","v":{"$error":"#N/A"}},null,0,0,0,"00","00","00",0,"00","00","00",0,0,0,0,0,0,"00:00:00",0]
[null,null,null,null,null,null,"00:00:00",null,null,null,null,null,null,null,null,{"$f":"VLOOKUP(N311,CisacSocietycodes!$A$2:$C$365,2,0)","v":{"$error":"#N/A"}},null,0,0,0,"00","00","00",0,"00","00","00",0,0,0,0,0,0,"00:00:00",0]
[null,null,null,null,null,null,"00:00:00",null,null,null,null,null,null,null,null,{"$f":"VLOOKUP(N312,CisacSocietycodes!$A$2:$C$365,2,0)","v":{"$error":"#N/A"}},null,0,0,0,"00","00","00",0,"00","00","00",0,0,0,0,0,0,"00:00:00",0]
[null,null,null,null,null,null,"00:00:00",null,null,null,null,null,null,null,null,{"$f":"VLOOKUP(N313,CisacSocietycodes!$A$2:$C$365,2,0)","v":{"$error":"#N/A"}},null,0,0,0,"00","00","00",0,"00","00","00",0,0,0,0,0,0,"00:00:00",0]
[null,null,null,null,null,null,"00:00:00",null,null,null,null,null,null,null,null,{"$f":"VLOOKUP(N314,CisacSocietycodes!$A$2:$C$365,2,0)","v":{"$error":"#N/A"}},null,0,0,0,"00","00","00",0,"00","00","00",0,0,0,0,0,0,"00:00:00",0]
[null,null,null,null,null,null,"00:00:00",null,null,null,null,null,null,null,null,{"$f":"VLOOKUP(N315,CisacSocietycodes!$A$2:$C$365,2,0)","v":{"$error":"#N/A"}},null,0,0,0,"00","00","00",0,"00","00","00",0,0,0,0,0,0,"00:00:00",0]
[null,null,null,null,null,null,"00:00:00",null,null,null,null,null,null,null,null,{"$f":"VLOOKUP(N316,CisacSocietycodes!$A$2:$C$365,2,0)","v":{"$error":"#N/A"}},null,0,0,0,"00","00","00",0,"00","00","00",0,0,0,0,0,0,"00:00:00",0]
[null,null,null,null,null,null,"00:00:00",null,null,null,null,null,null,null,null,{"$f":"VLOOKUP(N317,CisacSocietycodes!$A$2:$C$365,2,0)","v":{"$error":"#N/A"}},null,0,0,0,"00","00","00",0,"00","00","00",0,0,0,0,0,0,"00:00:00",0]
[null,null,null,null,null,null,"00:00:00",null,null,null,null,null,null,null,null,{"$f":"VLOOKUP(N318,CisacSocietycodes!$A$2:$C$365,2,0)","v":{"$error":"#N/A"}},null,0,0,0,"00","00","00",0,"00","00","00",0,0,0,0,0,0,"00:00:00",0]
[null,null,null,null,null,null,"00:00:00",null,null,null,null,null,null,null,null,{"$f":"VLOOKUP(N319,CisacSocietycodes!$A$2:$C$365,2,0)","v":{"$error":"#N/A"}},null,0,0,0,"00","00","00",0,"00","00","00",0,0,0,0,0,0,"00:00:00",0]
[null,null,null,null,null,null,"00:00:00",null,null,null,null,null,null,null,null,{"$f":"VLOOKUP(N320,CisacSocietycodes!$A$2:$C$365,2,0)","v":{"$error":"#N/A"}},null,0,0,0,"00","00","00",0,"00","00","00",0,0,0,0,0,0,"00:00:00",0]
[null,null,null,null,null,null,"00:00:00",null,null,null,null,null,null,null,null,{"$f":"VLOOKUP(N321,CisacSocietycodes!$A$2:$C$365,2,0)","v":{"$error":"#N/A"}},null,0,0,0,"00","00","00",0,"00","00","00",0,0,0,0,0,0,"00:00:00",0]
[null,null,null,null,null,null,"00:00:00",null,null,null,null,null,null,null,null,{"$f":"VLOOKUP(N322,CisacSocietycodes!$A$2:$C$365,2,0)","v":{"$error":"#N/A"}},null,0,0,0,"00","00","00",0,"00","00","00",0,0,0,0,0,0,"00:00:00",0]
[null,null,null,null,null,null,"00:00:00",null,null,null,null,null,null,null,null,{"$f":"VLOOKUP(N323,CisacSocietycodes!$A$2:$C$365,2,0)","v":{"$error":"#N/A"}},null,0,0,0,"00","00","00",0,"00","00","00",0,0,0,0,0,0,"00:00:00",0]
[null,null,null,null,null,null,"00:00:00",null,null,null,null,null,null,null,null,{"$f":"VLOOKUP(N324,CisacSocietycodes!$A$2:$C$365,2,0)","v":{"$error":"#N/A"}},null,0,0,0,"00","00","00",0,"00","00","00",0,0,0,0,0,0,"00:00:00",0]
[null,null,null,null,null,null,"00:00:00",null,null,null,null,null,null,null,null,{"$f":"VLOOKUP(N325,CisacSocietycodes!$A$2:$C$365,2,0)","v":{"$error":"#N/A"}},null,0,0,0,"00","00","00",0,"00","00","00",0,0,0,0,0,0,"00:00:00",0]
[null,null,null,null,null,null,"00:00:00",null,null,null,null,null,null,null,null,{"$f":"VLOOKUP(N326,CisacSocietycodes!$A$2:$C$365,2,0)","v":{"$error":"#N/A"}},null,0,0,0,"00","00","00",0,"00","00","00",0,0,0,0,0,0,"00:00:00",0]
[null,null,null,null,null,null,"00:00:00",null,null,null,null,null,null,null,null,{"$f":"VLOOKUP(N327,CisacSocietycodes!$A$2:$C$365,2,0)","v":{"$error":"#N/A"}},null,0,0,0,"00","00","00",0,"00","00","00",0,0,0,0,0,0,"00:00:00",0]
[null,null,null,null,null,null,"00:00:00",null,null,null,null,null,null,null,null,{"$f":"VLOOKUP(N328,CisacSocietycodes!$A$2:$C$365,2,0)","v":{"$error":"#N/A"}},null,0,0,0,"00","00","00",0,"00","00","00",0,0,0,0,0,0,"00:00:00",0]
[null,null,null,null,null,null,"00:00:00",null,null,null,null,null,null,null,null,{"$f":"VLOOKUP(N329,CisacSocietycodes!$A$2:$C$365,2,0)","v":{"$error":"#N/A"}},null,0,0,0,"00","00","00",0,"00","00","00",0,0,0,0,0,0,"00:00:00",0]
[null,null,null,null,null,null,"00:00:00",null,null,null,null,null,null,null,null,{"$f":"VLOOKUP(N330,CisacSocietycodes!$A$2:$C$365,2,0)","v":{"$error":"#N/A"}},null,0,0,0,"00","00","00",0,"00","00","00",0,0,0,0,0,0,"00:00:00",0]
[null,null,null,null,null,null,"00:00:00",null,null,null,null,null,null,null,null,{"$f":"VLOOKUP(N331,CisacSocietycodes!$A$2:$C$365,2,0)","v":{"$error":"#N/A"}},null,0,0,0,"00","00","00",0,"00","00","00",0,0,0,0,0,0,"00:00:00",0]
[null,null,null,null,null,null,"00:00:00",null,null,null,null,null,null,null,null,{"$f":"VLOOKUP(N332,CisacSocietycodes!$A$2:$C$365,2,0)","v":{"$error":"#N/A"}},null,0,0,0,"00","00","00",0,"00","00","00",0,0,0,0,0,0,"00:00:00",0]
[null,null,null,null,null,null,"00:00:00",null,null,null,null,null,null,null,null,{"$f":"VLOOKUP(N333,CisacSocietycodes!$A$2:$C$365,2,0)","v":{"$error":"#N/A"}},null,0,0,0,"00","00","00",0,"00","00","00",0,0,0,0,0,0,"00:00:00",0]
[null,null,null,null,null,null,"00:00:00",null,null,null,null,null,null,null,null,{"$f":"VLOOKUP(N334,CisacSocietycodes!$A$2:$C$365,2,0)","v":{"$error":"#N/A"}},null,0,0,0,"00","00","00",0,"00","00","00",0,0,0,0,0,0,"00:00:00",0]
[null,null,null,null,null,null,"00:00:00",null,null,null,null,null,null,null,null,{"$f":"VLOOKUP(N335,CisacSocietycodes!$A$2:$C$365,2,0)","v":{"$error":"#N/A"}},null,0,0,0,"00","00","00",0,"00","00","00",0,0,0,0,0,0,"00:00:00",0]
[null,null,null,null,null,null,"00:00:00",null,null,null,null,null,null,null,null,{"$f":"VLOOKUP(N336,CisacSocietycodes!$A$2:$C$365,2,0)","v":{"$error":"#N/A"}},null,0,0,0,"00","00","00",0,"00","00","00",0,0,0,0,0,0,"00:00:00",0]
[null,null,null,null,null,null,"00:00:00",null,null,null,null,null,null,null,null,{"$f":"VLOOKUP(N337,CisacSocietycodes!$A$2:$C$365,2,0)","v":{"$error":"#N/A"}},null,0,0,0,"00","00","00",0,"00","00","00",0,0,0,0,0,0,"00:00:00",0]
[null,null,null,null,null,null,"00:00:00",null,null,null,null,null,null,null,null,{"$f":"VLOOKUP(N338,CisacSocietycodes!$A$2:$C$365,2,0)","v":{"$error":"#N/A"}},null,0,0,0,"00","00","00",0,"00","00","00",0,0,0,0,0,0,"00:00:00",0]
[null,null,null,null,null,null,"00:00:00",null,null,null,null,null,null,null,null,{"$f":"VLOOKUP(N339,CisacSocietycodes!$A$2:$C$365,2,0)","v":{"$error":"#N/A"}},null,0,0,0,"00","00","00",0,"00","00","00",0,0,0,0,0,0,"00:00:00",0]
[null,null,null,null,null,null,"00:00:00",null,null,null,null,null,null,null,null,{"$f":"VLOOKUP(N340,CisacSocietycodes!$A$2:$C$365,2,0)","v":{"$error":"#N/A"}},null,0,0,0,"00","00","00",0,"00","00","00",0,0,0,0,0,0,"00:00:00",0]
[null,null,null,null,null,null,"00:00:00",null,null,null,null,null,null,null,null,{"$f":"VLOOKUP(N341,CisacSocietycodes!$A$2:$C$365,2,0)","v":{"$error":"#N/A"}},null,0,0,0,"00","00","00",0,"00","00","00",0,0,0,0,0,0,"00:00:00",0]
[null,null,null,null,null,null,"00:00:00",null,null,null,null,null,null,null,null,{"$f":"VLOOKUP(N342,CisacSocietycodes!$A$2:$C$365,2,0)","v":{"$error":"#N/A"}},null,0,0,0,{"$f":" LEFT((TEXT(AC342, \"000000\")), 2)","v":"00"},{"$f":" RIGHT(LEFT((TEXT(AC342, \"000000\")), 4), 2)","v":"00"},{"$f":" TEXT((ROUND(RIGHT((TEXT(AC342, \"000000\")), 2), 2)), \"00\")","v":"00"},{"$f":"((Y342 * 3600) + (Z342 * 60 )+( AA342 )) - ((U342 * 3600) + (V342 * 60 )+( W342 ))","v":0},{"$f":" LEFT((TEXT(AD342, \"000000\")), 2)","v":"00"},{"$f":" RIGHT(LEFT((TEXT(AD342, \"000000\")), 4), 2)","v":"00"},{"$f":" TEXT((ROUND(RIGHT((TEXT(AD342, \"000000\")), 2), 2)), \"00\")","v":"00"},{"$f":"(Y342 * 3600) + (Z342 * 60 )+( AA342 )","v":0},0,{"$f":"IF(F342<>\"\",F342,E342)","v":0},{"$f":" ROUNDDOWN((X342/ 3600), 0)","v":0},{"$f":"ROUNDDOWN((((X342 / 3600) - AE342) * 60), 0)","v":0},{"$f":" ((X342) / 60) - (TEXT(ROUNDDOWN((X342 / 60), 0), \"00\"))","v":0},{"$f":" (TEXT(AE342, \"00\")) & \":\" &  (TEXT(AF342, \"00\")) & \":\" &  (TEXT((AG342) * 60, \"00\"))","v":"00:00:00"},{"$f":"X342","v":0}]
[null,null,null,null,null,null,{"$f":"IF(X343<>\"\",AH343,0)","v":"00:00:00"},null,null,null,null,null,null,null,null,{"$f":"VLOOKUP(N343,CisacSocietycodes!$A$2:$C$365,2,0)","v":{"$error":"#N/A"}},null,0,0,0,"00","00","00",0,"00","00","00",0,{"$f":"IF(F343<>\"\",0,D343)","v":0},0,0,0,0,"00:00:00",0]
[null,null,null,null,null,null,"00:00:00",null,null,null,null,null,null,null,null,{"$f":"VLOOKUP(N344,CisacSocietycodes!$A$2:$C$365,2,0)","v":{"$error":"#N/A"}},null,0,0,0,"00","00","00",0,"00","00","00",0,0,0,0,0,0,"00:00:00",0]
[null,null,null,null,null,null,"00:00:00",null,null,null,null,null,null,null,null,{"$f":"VLOOKUP(N345,CisacSocietycodes!$A$2:$C$365,2,0)","v":{"$error":"#N/A"}},null,0,0,0,"00","00","00",0,"00","00","00",0,0,0,0,0,0,"00:00:00",0]
[null,null,null,null,null,null,"00:00:00",null,null,null,null,null,null,null,null,{"$f":"VLOOKUP(N346,CisacSocietycodes!$A$2:$C$365,2,0)","v":{"$error":"#N/A"}},null,0,0,0,"00","00","00",0,"00","00","00",0,0,0,0,0,0,"00:00:00",0]
[null,null,null,null,null,null,"00:00:00",null,null,null,null,null,null,null,null,{"$f":"VLOOKUP(N347,CisacSocietycodes!$A$2:$C$365,2,0)","v":{"$error":"#N/A"}},null,0,0,0,"00","00","00",0,"00","00","00",0,0,0,0,0,0,"00:00:00",0]
[null,null,null,null,null,null,"00:00:00",null,null,null,null,null,null,null,null,{"$f":"VLOOKUP(N348,CisacSocietycodes!$A$2:$C$365,2,0)","v":{"$error":"#N/A"}},null,0,0,0,"00","00","00",0,"00","00","00",0,0,0,0,0,0,"00:00:00",0]
[null,null,null,null,null,null,"00:00:00",null,null,null,null,null,null,null,null,{"$f":"VLOOKUP(N349,CisacSocietycodes!$A$2:$C$365,2,0)","v":{"$error":"#N/A"}},null,0,0,0,"00","00","00",0,"00","00","00",0,0,0,0,0,0,"00:00:00",0]
[null,null,null,null,null,null,"00:00:00",null,null,null,null,null,null,null,null,{"$f":"VLOOKUP(N350,CisacSocietycodes!$A$2:$C$365,2,0)","v":{"$error":"#N/A"}},null,0,0,0,"00","00","00",0,"00","00","00",0,0,0,0,0,0,"00:00:00",0]
[null,null,null,null,null,null,"00:00:00",null,null,null,null,null,null,null,null,{"$f":"VLOOKUP(N351,CisacSocietycodes!$A$2:$C$365,2,0)","v":{"$error":"#N/A"}},null,0,0,0,"00","00","00",0,"00","00","00",0,0,0,0,0,0,"00:00:00",0]
[null,null,null,null,null,null,"00:00:00",null,null,null,null,null,null,null,null,{"$f":"VLOOKUP(N352,CisacSocietycodes!$A$2:$C$365,2,0)","v":{"$error":"#N/A"}},null,0,0,0,"00","00","00",0,"00","00","00",0,0,0,0,0,0,"00:00:00",0]
[null,null,null,null,null,null,"00:00:00",null,null,null,null,null,null,null,null,{"$f":"VLOOKUP(N353,CisacSocietycodes!$A$2:$C$365,2,0)","v":{"$error":"#N/A"}},null,0,0,0,"00","00","00",0,"00","00","00",0,0,0,0,0,0,"00:00:00",0]
[null,null,null,null,null,null,"00:00:00",null,null,null,null,null,null,null,null,{"$f":"VLOOKUP(N354,CisacSocietycodes!$A$2:$C$365,2,0)","v":{"$error":"#N/A"}},null,0,0,0,"00","00","00",0,"00","00","00",0,0,0,0,0,0,"00:00:00",0]
[null,null,null,null,null,null,"00:00:00",null,null,null,null,null,null,null,null,{"$f":"VLOOKUP(N355,CisacSocietycodes!$A$2:$C$365,2,0)","v":{"$error":"#N/A"}},null,0,0,0,"00","00","00",0,"00","00","00",0,0,0,0,0,0,"00:00:00",0]
[null,null,null,null,null,null,"00:00:00",null,null,null,null,null,null,null,null,{"$f":"VLOOKUP(N356,CisacSocietycodes!$A$2:$C$365,2,0)","v":{"$error":"#N/A"}},null,0,0,0,"00","00","00",0,"00","00","00",0,0,0,0,0,0,"00:00:00",0]
[null,null,null,null,null,null,"00:00:00",null,null,null,null,null,null,null,null,{"$f":"VLOOKUP(N357,CisacSocietycodes!$A$2:$C$365,2,0)","v":{"$error":"#N/A"}},null,0,0,0,"00","00","00",0,"00","00","00",0,0,0,0,0,0,"00:00:00",0]
[null,null,null,null,null,null,"00:00:00",null,null,null,null,null,null,null,null,{"$f":"VLOOKUP(N358,CisacSocietycodes!$A$2:$C$365,2,0)","v":{"$error":"#N/A"}},null,0,0,0,"00","00","00",0,"00","00","00",0,0,0,0,0,0,"00:00:00",0]
[null,null,null,null,null,null,"00:00:00",null,null,null,null,null,null,null,null,{"$f":"VLOOKUP(N359,CisacSocietycodes!$A$2:$C$365,2,0)","v":{"$error":"#N/A"}},null,0,0,0,"00","00","00",0,"00","00","00",0,0,0,0,0,0,"00:00:00",0]
[null,null,null,null,null,null,"00:00:00",null,null,null,null,null,null,null,null,{"$f":"VLOOKUP(N360,CisacSocietycodes!$A$2:$C$365,2,0)","v":{"$error":"#N/A"}},null,0,0,0,"00","00","00",0,"00","00","00",0,0,0,0,0,0,"00:00:00",0]
[null,null,null,null,null,null,"00:00:00",null,null,null,null,null,null,null,null,{"$f":"VLOOKUP(N361,CisacSocietycodes!$A$2:$C$365,2,0)","v":{"$error":"#N/A"}},null,0,0,0,"00","00","00",0,"00","00","00",0,0,0,0,0,0,"00:00:00",0]
[null,null,null,null,null,null,"00:00:00",null,null,null,null,null,null,null,null,{"$f":"VLOOKUP(N362,CisacSocietycodes!$A$2:$C$365,2,0)","v":{"$error":"#N/A"}},null,0,0,0,"00","00","00",0,"00","00","00",0,0,0,0,0,0,"00:00:00",0]
[null,null,null,null,null,null,"00:00:00",null,null,null,null,null,null,null,null,{"$f":"VLOOKUP(N363,CisacSocietycodes!$A$2:$C$365,2,0)","v":{"$error":"#N/A"}},null,0,0,0,"00","00","00",0,"00","00","00",0,0,0,0,0,0,"00:00:00",0]
[null,null,null,null,null,null,"00:00:00",null,null,null,null,null,null,null,null,{"$f":"VLOOKUP(N364,CisacSocietycodes!$A$2:$C$365,2,0)","v":{"$error":"#N/A"}},null,0,0,0,"00","00","00",0,"00","00","00",0,0,0,0,0,0,"00:00:00",0]
[null,null,null,null,null,null,"00:00:00",null,null,null,null,null,null,null,null,{"$f":"VLOOKUP(N365,CisacSocietycodes!$A$2:$C$365,2,0)","v":{"$error":"#N/A"}},null,0,0,0,"00","00","00",0,"00","00","00",0,0,0,0,0,0,"00:00:00",0]
[null,null,null,null,null,null,"00:00:00",null,null,null,null,null,null,null,null,{"$f":"VLOOKUP(N366,CisacSocietycodes!$A$2:$C$365,2,0)","v":{"$error":"#N/A"}},null,0,0,0,"00","00","00",0,"00","00","00",0,0,0,0,0,0,"00:00:00",0]
[null,null,null,null,null,null,"00:00:00",null,null,null,null,null,null,null,null,{"$f":"VLOOKUP(N367,CisacSocietycodes!$A$2:$C$365,2,0)","v":{"$error":"#N/A"}},null,0,0,0,"00","00","00",0,"00","00","00",0,0,0,0,0,0,"00:00:00",0]
[null,null,null,null,null,null,"00:00:00",null,null,null,null,null,null,null,null,{"$f":"VLOOKUP(N368,CisacSocietycodes!$A$2:$C$365,2,0)","v":{"$error":"#N/A"}},null,0,0,0,"00","00","00",0,"00","00","00",0,0,0,0,0,0,"00:00:00",0]
[null,null,null,null,null,null,"00:00:00",null,null,null,null,null,null,null,null,{"$f":"VLOOKUP(N369,CisacSocietycodes!$A$2:$C$365,2,0)","v":{"$error":"#N/A"}},null,0,0,0,"00","00","00",0,"00","00","00",0,0,0,0,0,0,"00:00:00",0]
[null,null,null,null,null,null,"00:00:00",null,null,null,null,null,null,null,null,{"$f":"VLOOKUP(N370,CisacSocietycodes!$A$2:$C$365,2,0)","v":{"$error":"#N/A"}},null,0,0,0,"00","00","00",0,"00","00","00",0,0,0,0,0,0,"00:00:00",0]
[null,null,null,null,null,null,"00:00:00",null,null,null,null,null,null,null,null,{"$f":"VLOOKUP(N371,CisacSocietycodes!$A$2:$C$365,2,0)","v":{"$error":"#N/A"}},null,0,0,0,"00","00","00",0,"00","00","00",0,0,0,0,0,0,"00:00:00",0]
[null,null,null,null,null,null,"00:00:00",null,null,null,null,null,null,null,null,{"$f":"VLOOKUP(N372,CisacSocietycodes!$A$2:$C$365,2,0)","v":{"$error":"#N/A"}},null,0,0,0,"00","00","00",0,"00","00","00",0,0,0,0,0,0,"00:00:00",0]
[null,null,null,null,null,null,"00:00:00",null,null,null,null,null,null,null,null,{"$f":"VLOOKUP(N373,CisacSocietycodes!$A$2:$C$365,2,0)","v":{"$error":"#N/A"}},null,0,0,0,"00","00","00",0,"00","00","00",0,0,0,0,0,0,"00:00:00",0]
[null,null,null,null,null,null,"00:00:00",null,null,null,null,null,null,null,null,{"$f":"VLOOKUP(N374,CisacSocietycodes!$A$2:$C$365,2,0)","v":{"$error":"#N/A"}},null,0,0,0,"00","00","00",0,"00","00","00",0,0,0,0,0,0,"00:00:00",0]
[null,null,null,null,null,null,"00:00:00",null,null,null,null,null,null,null,null,{"$f":"VLOOKUP(N375,CisacSocietycodes!$A$2:$C$365,2,0)","v":{"$error":"#N/A"}},null,0,0,0,"00","00","00",0,"00","00","00",0,0,0,0,0,0,"00:00:00",0]
[null,null,null,null,null,null,"00:00:00",null,null,null,null,null,null,null,null,{"$f":"VLOOKUP(N376,CisacSocietycodes!$A$2:$C$365,2,0)","v":{"$error":"#N/A"}},null,0,0,0,"00","00","00",0,"00","00","00",0,0,0,0,0,0,"00:00:00",0]
[null,null,null,null,null,null,"00:00:00",null,null,null,null,null,null,null,null,{"$f":"VLOOKUP(N377,CisacSocietycodes!$A$2:$C$365,2,0)","v":{"$error":"#N/A"}},null,0,0,0,"00","00","00",0,"00","00","00",0,0,0,0,0,0,"00:00:00",0]
[null,null,null,null,null,null,"00:00:00",null,null,null,null,null,null,null,null,{"$f":"VLOOKUP(N378,CisacSocietycodes!$A$2:$C$365,2,0)","v":{"$error":"#N/A"}},null,0,0,0,"00","00","00",0,"00","00","00",0,0,0,0,0,0,"00:00:00",0]
[null,null,null,null,null,null,"00:00:00",null,null,null,null,null,null,null,null,{"$f":"VLOOKUP(N379,CisacSocietycodes!$A$2:$C$365,2,0)","v":{"$error":"#N/A"}},null,0,0,0,"00","00","00",0,"00","00","00",0,0,0,0,0,0,"00:00:00",0]
[null,null,null,null,null,null,"00:00:00",null,null,null,null,null,null,null,null,{"$f":"VLOOKUP(N380,CisacSocietycodes!$A$2:$C$365,2,0)","v":{"$error":"#N/A"}},null,0,0,0,"00","00","00",0,"00","00","00",0,0,0,0,0,0,"00:00:00",0]
[null,null,null,null,null,null,"00:00:00",null,null,null,null,null,null,null,null,{"$f":"VLOOKUP(N381,CisacSocietycodes!$A$2:$C$365,2,0)","v":{"$error":"#N/A"}},null,0,0,0,"00","00","00",0,"00","00","00",0,0,0,0,0,0,"00:00:00",0]
[null,null,null,null,null,null,"00:00:00",null,null,null,null,null,null,null,null,{"$f":"VLOOKUP(N382,CisacSocietycodes!$A$2:$C$365,2,0)","v":{"$error":"#N/A"}},null,0,0,0,"00","00","00",0,"00","00","00",0,0,0,0,0,0,"00:00:00",0]
[null,null,null,null,null,null,"00:00:00",null,null,null,null,null,null,null,null,{"$f":"VLOOKUP(N383,CisacSocietycodes!$A$2:$C$365,2,0)","v":{"$error":"#N/A"}},null,0,0,0,"00","00","00",0,"00","00","00",0,0,0,0,0,0,"00:00:00",0]
[null,null,null,null,null,null,"00:00:00",null,null,null,null,null,null,null,null,{"$f":"VLOOKUP(N384,CisacSocietycodes!$A$2:$C$365,2,0)","v":{"$error":"#N/A"}},null,0,0,0,"00","00","00",0,"00","00","00",0,0,0,0,0,0,"00:00:00",0]
[null,null,null,null,null,null,"00:00:00",null,null,null,null,null,null,null,null,{"$f":"VLOOKUP(N385,CisacSocietycodes!$A$2:$C$365,2,0)","v":{"$error":"#N/A"}},null,0,0,0,"00","00","00",0,"00","00","00",0,0,0,0,0,0,"00:00:00",0]
[null,null,null,null,null,null,"00:00:00",null,null,null,null,null,null,null,null,{"$f":"VLOOKUP(N386,CisacSocietycodes!$A$2:$C$365,2,0)","v":{"$error":"#N/A"}},null,0,0,0,"00","00","00",0,"00","00","00",0,0,0,0,0,0,"00:00:00",0]
[null,null,null,null,null,null,"00:00:00",null,null,null,null,null,null,null,null,{"$f":"VLOOKUP(N387,CisacSocietycodes!$A$2:$C$365,2,0)","v":{"$error":"#N/A"}},null,0,0,0,"00","00","00",0,"00","00","00",0,0,0,0,0,0,"00:00:00",0]
[null,null,null,null,null,null,"00:00:00",null,null,null,null,null,null,null,null,{"$f":"VLOOKUP(N388,CisacSocietycodes!$A$2:$C$365,2,0)","v":{"$error":"#N/A"}},null,0,0,0,"00","00","00",0,"00","00","00",0,0,0,0,0,0,"00:00:00",0]
[null,null,null,null,null,null,"00:00:00",null,null,null,null,null,null,null,null,{"$f":"VLOOKUP(N389,CisacSocietycodes!$A$2:$C$365,2,0)","v":{"$error":"#N/A"}},null,0,0,0,"00","00","00",0,"00","00","00",0,0,0,0,0,0,"00:00:00",0]
[null,null,null,null,null,null,"00:00:00",null,null,null,null,null,null,null,null,{"$f":"VLOOKUP(N390,CisacSocietycodes!$A$2:$C$365,2,0)","v":{"$error":"#N/A"}},null,0,0,0,"00","00","00",0,"00","00","00",0,0,0,0,0,0,"00:00:00",0]
[null,null,null,null,null,null,"00:00:00",null,null,null,null,null,null,null,null,{"$f":"VLOOKUP(N391,CisacSocietycodes!$A$2:$C$365,2,0)","v":{"$error":"#N/A"}},null,0,0,0,"00","00","00",0,"00","00","00",0,0,0,0,0,0,"00:00:00",0]
[null,null,null,null,null,null,"00:00:00",null,null,null,null,null,null,null,null,{"$f":"VLOOKUP(N392,CisacSocietycodes!$A$2:$C$365,2,0)","v":{"$error":"#N/A"}},null,0,0,0,"00","00","00",0,"00","00","00",0,0,0,0,0,0,"00:00:00",0]
[null,null,null,null,null,null,"00:00:00",null,null,null,null,null,null,null,null,{"$f":"VLOOKUP(N393,CisacSocietycodes!$A$2:$C$365,2,0)","v":{"$error":"#N/A"}},null,0,0,0,"00","00","00",0,"00","00","00",0,0,0,0,0,0,"00:00:00",0]
[null,null,null,null,null,null,"00:00:00",null,null,null,null,null,null,null,null,{"$f":"VLOOKUP(N394,CisacSocietycodes!$A$2:$C$365,2,0)","v":{"$error":"#N/A"}},null,0,0,0,"00","00","00",0,"00","00","00",0,0,0,0,0,0,"00:00:00",0]
[null,null,null,null,null,null,"00:00:00",null,null,null,null,null,null,null,null,{"$f":"VLOOKUP(N395,CisacSocietycodes!$A$2:$C$365,2,0)","v":{"$error":"#N/A"}},null,0,0,0,"00","00","00",0,"00","00","00",0,0,0,0,0,0,"00:00:00",0]
[null,null,null,null,null,null,"00:00:00",null,null,null,null,null,null,null,null,{"$f":"VLOOKUP(N396,CisacSocietycodes!$A$2:$C$365,2,0)","v":{"$error":"#N/A"}},null,0,0,0,"00","00","00",0,"00","00","00",0,0,0,0,0,0,"00:00:00",0]
[null,null,null,null,null,null,"00:00:00",null,null,null,null,null,null,null,null,{"$f":"VLOOKUP(N397,CisacSocietycodes!$A$2:$C$365,2,0)","v":{"$error":"#N/A"}},null,0,0,0,"00","00","00",0,"00","00","00",0,0,0,0,0,0,"00:00:00",0]
[null,null,null,null,null,null,"00:00:00",null,null,null,null,null,null,null,null,{"$f":"VLOOKUP(N398,CisacSocietycodes!$A$2:$C$365,2,0)","v":{"$error":"#N/A"}},null,0,0,0,"00","00","00",0,"00","00","00",0,0,0,0,0,0,"00:00:00",0]
[null,null,null,null,null,null,"00:00:00",null,null,null,null,null,null,null,null,{"$f":"VLOOKUP(N399,CisacSocietycodes!$A$2:$C$365,2,0)","v":{"$error":"#N/A"}},null,0,0,0,"00","00","00",0,"00","00","00",0,0,0,0,0,0,"00:00:00",0]
[null,null,null,null,null,null,"00:00:00",null,null,null,null,null,null,null,null,{"$f":"VLOOKUP(N400,CisacSocietycodes!$A$2:$C$365,2,0)","v":{"$error":"#N/A"}},null,0,0,0,"00","00","00",0,"00","00","00",0,0,0,0,0,0,"00:00:00",0]
[null,null,null,null,null,null,"00:00:00",null,null,null,null,null,null,null,null,{"$f":"VLOOKUP(N401,CisacSocietycodes!$A$2:$C$365,2,0)","v":{"$error":"#N/A"}},null,0,0,0,"00","00","00",0,"00","00","00",0,0,0,0,0,0,"00:00:00",0]
[null,null,null,null,null,null,"00:00:00",null,null,null,null,null,null,null,null,{"$f":"VLOOKUP(N402,CisacSocietycodes!$A$2:$C$365,2,0)","v":{"$error":"#N/A"}},null,0,0,0,"00","00","00",0,"00","00","00",0,0,0,0,0,0,"00:00:00",0]
[null,null,null,null,null,null,"00:00:00",null,null,null,null,null,null,null,null,{"$f":"VLOOKUP(N403,CisacSocietycodes!$A$2:$C$365,2,0)","v":{"$error":"#N/A"}},null,0,0,0,"00","00","00",0,"00","00","00",0,0,0,0,0,0,"00:00:00",0]
[null,null,null,null,null,null,"00:00:00",null,null,null,null,null,null,null,null,{"$f":"VLOOKUP(N404,CisacSocietycodes!$A$2:$C$365,2,0)","v":{"$error":"#N/A"}},null,0,0,0,"00","00","00",0,"00","00","00",0,0,0,0,0,0,"00:00:00",0]
[null,null,null,null,null,null,"00:00:00",null,null,null,null,null,null,null,null,{"$f":"VLOOKUP(N405,CisacSocietycodes!$A$2:$C$365,2,0)","v":{"$error":"#N/A"}},null,0,0,0,"00","00","00",0,"00","00","00",0,0,0,0,0,0,"00:00:00",0]
[null,null,null,null,null,null,"00:00:00",null,null,null,null,null,null,null,null,{"$f":"VLOOKUP(N406,CisacSocietycodes!$A$2:$C$365,2,0)","v":{"$error":"#N/A"}},null,0,0,0,{"$f":" LEFT((TEXT(AC406, \"000000\")), 2)","v":"00"},{"$f":" RIGHT(LEFT((TEXT(AC406, \"000000\")), 4), 2)","v":"00"},{"$f":" TEXT((ROUND(RIGHT((TEXT(AC406, \"000000\")), 2), 2)), \"00\")","v":"00"},{"$f":"((Y406 * 3600) + (Z406 * 60 )+( AA406 )) - ((U406 * 3600) + (V406 * 60 )+( W406 ))","v":0},{"$f":" LEFT((TEXT(AD406, \"000000\")), 2)","v":"00"},{"$f":" RIGHT(LEFT((TEXT(AD406, \"000000\")), 4), 2)","v":"00"},{"$f":" TEXT((ROUND(RIGHT((TEXT(AD406, \"000000\")), 2), 2)), \"00\")","v":"00"},{"$f":"(Y406 * 3600) + (Z406 * 60 )+( AA406 )","v":0},0,{"$f":"IF(F406<>\"\",F406,E406)","v":0},{"$f":" ROUNDDOWN((X406/ 3600), 0)","v":0},{"$f":"ROUNDDOWN((((X406 / 3600) - AE406) * 60), 0)","v":0},{"$f":" ((X406) / 60) - (TEXT(ROUNDDOWN((X406 / 60), 0), \"00\"))","v":0},{"$f":" (TEXT(AE406, \"00\")) & \":\" &  (TEXT(AF406, \"00\")) & \":\" &  (TEXT((AG406) * 60, \"00\"))","v":"00:00:00"},{"$f":"X406","v":0}]
[null,null,null,null,null,null,{"$f":"IF(X407<>\"\",AH407,0)","v":"00:00:00"},null,null,null,null,null,null,null,null,{"$f":"VLOOKUP(N407,CisacSocietycodes!$A$2:$C$365,2,0)","v":{"$error":"#N/A"}},null,0,0,0,"00","00","00",0,"00","00","00",0,{"$f":"IF(F407<>\"\",0,D407)","v":0},0,0,0,0,"00:00:00",0]
[null,null,null,null,null,null,"00:00:00",null,null,null,null,null,null,null,null,{"$f":"VLOOKUP(N408,CisacSocietycodes!$A$2:$C$365,2,0)","v":{"$error":"#N/A"}},null,0,0,0,"00","00","00",0,"00","00","00",0,0,0,0,0,0,"00:00:00",0]
[null,null,null,null,null,null,"00:00:00",null,null,null,null,null,null,null,null,{"$f":"VLOOKUP(N409,CisacSocietycodes!$A$2:$C$365,2,0)","v":{"$error":"#N/A"}},null,0,0,0,"00","00","00",0,"00","00","00",0,0,0,0,0,0,"00:00:00",0]
[null,null,null,null,null,null,"00:00:00",null,null,null,null,null,null,null,null,{"$f":"VLOOKUP(N410,CisacSocietycodes!$A$2:$C$365,2,0)","v":{"$error":"#N/A"}},null,0,0,0,"00","00","00",0,"00","00","00",0,0,0,0,0,0,"00:00:00",0]
[null,null,null,null,null,null,"00:00:00",null,null,null,null,null,null,null,null,{"$f":"VLOOKUP(N411,CisacSocietycodes!$A$2:$C$365,2,0)","v":{"$error":"#N/A"}},null,0,0,0,"00","00","00",0,"00","00","00",0,0,0,0,0,0,"00:00:00",0]
[null,null,null,null,null,null,"00:00:00",null,null,null,null,null,null,null,null,{"$f":"VLOOKUP(N412,CisacSocietycodes!$A$2:$C$365,2,0)","v":{"$error":"#N/A"}},null,0,0,0,"00","00","00",0,"00","00","00",0,0,0,0,0,0,"00:00:00",0]
[null,null,null,null,null,null,"00:00:00",null,null,null,null,null,null,null,null,{"$f":"VLOOKUP(N413,CisacSocietycodes!$A$2:$C$365,2,0)","v":{"$error":"#N/A"}},null,0,0,0,"00","00","00",0,"00","00","00",0,0,0,0,0,0,"00:00:00",0]
[null,null,null,null,null,null,"00:00:00",null,null,null,null,null,null,null,null,{"$f":"VLOOKUP(N414,CisacSocietycodes!$A$2:$C$365,2,0)","v":{"$error":"#N/A"}},null,0,0,0,"00","00","00",0,"00","00","00",0,0,0,0,0,0,"00:00:00",0]
[null,null,null,null,null,null,"00:00:00",null,null,null,null,null,null,null,null,{"$f":"VLOOKUP(N415,CisacSocietycodes!$A$2:$C$365,2,0)","v":{"$error":"#N/A"}},null,0,0,0,"00","00","00",0,"00","00","00",0,0,0,0,0,0,"00:00:00",0]
[null,null,null,null,null,null,"00:00:00",null,null,null,null,null,null,null,null,{"$f":"VLOOKUP(N416,CisacSocietycodes!$A$2:$C$365,2,0)","v":{"$error":"#N/A"}},null,0,0,0,"00","00","00",0,"00","00","00",0,0,0,0,0,0,"00:00:00",0]
[null,null,null,null,null,null,"00:00:00",null,null,null,null,null,null,null,null,{"$f":"VLOOKUP(N417,CisacSocietycodes!$A$2:$C$365,2,0)","v":{"$error":"#N/A"}},null,0,0,0,"00","00","00",0,"00","00","00",0,0,0,0,0,0,"00:00:00",0]
[null,null,null,null,null,null,"00:00:00",null,null,null,null,null,null,null,null,{"$f":"VLOOKUP(N418,CisacSocietycodes!$A$2:$C$365,2,0)","v":{"$error":"#N/A"}},null,0,0,0,"00","00","00",0,"00","00","00",0,0,0,0,0,0,"00:00:00",0]
[null,null,null,null,null,null,"00:00:00",null,null,null,null,null,null,null,null,{"$f":"VLOOKUP(N419,CisacSocietycodes!$A$2:$C$365,2,0)","v":{"$error":"#N/A"}},null,0,0,0,"00","00","00",0,"00","00","00",0,0,0,0,0,0,"00:00:00",0]
[null,null,null,null,null,null,"00:00:00",null,null,null,null,null,null,null,null,{"$f":"VLOOKUP(N420,CisacSocietycodes!$A$2:$C$365,2,0)","v":{"$error":"#N/A"}},null,0,0,0,"00","00","00",0,"00","00","00",0,0,0,0,0,0,"00:00:00",0]
[null,null,null,null,null,null,"00:00:00",null,null,null,null,null,null,null,null,{"$f":"VLOOKUP(N421,CisacSocietycodes!$A$2:$C$365,2,0)","v":{"$error":"#N/A"}},null,0,0,0,"00","00","00",0,"00","00","00",0,0,0,0,0,0,"00:00:00",0]
[null,null,null,null,null,null,"00:00:00",null,null,null,null,null,null,null,null,{"$f":"VLOOKUP(N422,CisacSocietycodes!$A$2:$C$365,2,0)","v":{"$error":"#N/A"}},null,0,0,0,"00","00","00",0,"00","00","00",0,0,0,0,0,0,"00:00:00",0]
[null,null,null,null,null,null,"00:00:00",null,null,null,null,null,null,null,null,{"$f":"VLOOKUP(N423,CisacSocietycodes!$A$2:$C$365,2,0)","v":{"$error":"#N/A"}},null,0,0,0,"00","00","00",0,"00","00","00",0,0,0,0,0,0,"00:00:00",0]
[null,null,null,null,null,null,"00:00:00",null,null,null,null,null,null,null,null,{"$f":"VLOOKUP(N424,CisacSocietycodes!$A$2:$C$365,2,0)","v":{"$error":"#N/A"}},null,0,0,0,"00","00","00",0,"00","00","00",0,0,0,0,0,0,"00:00:00",0]
[null,null,null,null,null,null,"00:00:00",null,null,null,null,null,null,null,null,{"$f":"VLOOKUP(N425,CisacSocietycodes!$A$2:$C$365,2,0)","v":{"$error":"#N/A"}},null,0,0,0,"00","00","00",0,"00","00","00",0,0,0,0,0,0,"00:00:00",0]
[null,null,null,null,null,null,"00:00:00",null,null,null,null,null,null,null,null,{"$f":"VLOOKUP(N426,CisacSocietycodes!$A$2:$C$365,2,0)","v":{"$error":"#N/A"}},null,0,0,0,"00","00","00",0,"00","00","00",0,0,0,0,0,0,"00:00:00",0]
[null,null,null,null,null,null,"00:00:00",null,null,null,null,null,null,null,null,{"$f":"VLOOKUP(N427,CisacSocietycodes!$A$2:$C$365,2,0)","v":{"$error":"#N/A"}},null,0,0,0,"00","00","00",0,"00","00","00",0,0,0,0,0,0,"00:00:00",0]
[null,null,null,null,null,null,"00:00:00",null,null,null,null,null,null,null,null,{"$f":"VLOOKUP(N428,CisacSocietycodes!$A$2:$C$365,2,0)","v":{"$error":"#N/A"}},null,0,0,0,"00","00","00",0,"00","00","00",0,0,0,0,0,0,"00:00:00",0]
[null,null,null,null,null,null,"00:00:00",null,null,null,null,null,null,null,null,{"$f":"VLOOKUP(N429,CisacSocietycodes!$A$2:$C$365,2,0)","v":{"$error":"#N/A"}},null,0,0,0,"00","00","00",0,"00","00","00",0,0,0,0,0,0,"00:00:00",0]
[null,null,null,null,null,null,"00:00:00",null,null,null,null,null,null,null,null,{"$f":"VLOOKUP(N430,CisacSocietycodes!$A$2:$C$365,2,0)","v":{"$error":"#N/A"}},null,0,0,0,"00","00","00",0,"00","00","00",0,0,0,0,0,0,"00:00:00",0]
[null,null,null,null,null,null,"00:00:00",null,null,null,null,null,null,null,null,{"$f":"VLOOKUP(N431,CisacSocietycodes!$A$2:$C$365,2,0)","v":{"$error":"#N/A"}},null,0,0,0,"00","00","00",0,"00","00","00",0,0,0,0,0,0,"00:00:00",0]
[null,null,null,null,null,null,"00:00:00",null,null,null,null,null,null,null,null,{"$f":"VLOOKUP(N432,CisacSocietycodes!$A$2:$C$365,2,0)","v":{"$error":"#N/A"}},null,0,0,0,"00","00","00",0,"00","00","00",0,0,0,0,0,0,"00:00:00",0]
[null,null,null,null,null,null,"00:00:00",null,null,null,null,null,null,null,null,{"$f":"VLOOKUP(N433,CisacSocietycodes!$A$2:$C$365,2,0)","v":{"$error":"#N/A"}},null,0,0,0,"00","00","00",0,"00","00","00",0,0,0,0,0,0,"00:00:00",0]
[null,null,null,null,null,null,"00:00:00",null,null,null,null,null,null,null,null,{"$f":"VLOOKUP(N434,CisacSocietycodes!$A$2:$C$365,2,0)","v":{"$error":"#N/A"}},null,0,0,0,"00","00","00",0,"00","00","00",0,0,0,0,0,0,"00:00:00",0]
[null,null,null,null,null,null,"00:00:00",null,null,null,null,null,null,null,null,{"$f":"VLOOKUP(N435,CisacSocietycodes!$A$2:$C$365,2,0)","v":{"$error":"#N/A"}},null,0,0,0,"00","00","00",0,"00","00","00",0,0,0,0,0,0,"00:00:00",0]
[null,null,null,null,null,null,"00:00:00",null,null,null,null,null,null,null,null,{"$f":"VLOOKUP(N436,CisacSocietycodes!$A$2:$C$365,2,0)","v":{"$error":"#N/A"}},null,0,0,0,"00","00","00",0,"00","00","00",0,0,0,0,0,0,"00:00:00",0]
[null,null,null,null,null,null,"00:00:00",null,null,null,null,null,null,null,null,{"$f":"VLOOKUP(N437,CisacSocietycodes!$A$2:$C$365,2,0)","v":{"$error":"#N/A"}},null,0,0,0,"00","00","00",0,"00","00","00",0,0,0,0,0,0,"00:00:00",0]
[null,null,null,null,null,null,"00:00:00",null,null,null,null,null,null,null,null,{"$f":"VLOOKUP(N438,CisacSocietycodes!$A$2:$C$365,2,0)","v":{"$error":"#N/A"}},null,0,0,0,"00","00","00",0,"00","00","00",0,0,0,0,0,0,"00:00:00",0]
[null,null,null,null,null,null,"00:00:00",null,null,null,null,null,null,null,null,{"$f":"VLOOKUP(N439,CisacSocietycodes!$A$2:$C$365,2,0)","v":{"$error":"#N/A"}},null,0,0,0,"00","00","00",0,"00","00","00",0,0,0,0,0,0,"00:00:00",0]
[null,null,null,null,null,null,"00:00:00",null,null,null,null,null,null,null,null,{"$f":"VLOOKUP(N440,CisacSocietycodes!$A$2:$C$365,2,0)","v":{"$error":"#N/A"}},null,0,0,0,"00","00","00",0,"00","00","00",0,0,0,0,0,0,"00:00:00",0]
[null,null,null,null,null,null,"00:00:00",null,null,null,null,null,null,null,null,{"$f":"VLOOKUP(N441,CisacSocietycodes!$A$2:$C$365,2,0)","v":{"$error":"#N/A"}},null,0,0,0,"00","00","00",0,"00","00","00",0,0,0,0,0,0,"00:00:00",0]
[null,null,null,null,null,null,"00:00:00",null,null,null,null,null,null,null,null,{"$f":"VLOOKUP(N442,CisacSocietycodes!$A$2:$C$365,2,0)","v":{"$error":"#N/A"}},null,0,0,0,"00","00","00",0,"00","00","00",0,0,0,0,0,0,"00:00:00",0]
[null,null,null,null,null,null,"00:00:00",null,null,null,null,null,null,null,null,{"$f":"VLOOKUP(N443,CisacSocietycodes!$A$2:$C$365,2,0)","v":{"$error":"#N/A"}},null,0,0,0,"00","00","00",0,"00","00","00",0,0,0,0,0,0,"00:00:00",0]
[null,null,null,null,null,null,"00:00:00",null,null,null,null,null,null,null,null,{"$f":"VLOOKUP(N444,CisacSocietycodes!$A$2:$C$365,2,0)","v":{"$error":"#N/A"}},null,0,0,0,"00","00","00",0,"00","00","00",0,0,0,0,0,0,"00:00:00",0]
[null,null,null,null,null,null,"00:00:00",null,null,null,null,null,null,null,null,{"$f":"VLOOKUP(N445,CisacSocietycodes!$A$2:$C$365,2,0)","v":{"$error":"#N/A"}},null,0,0,0,"00","00","00",0,"00","00","00",0,0,0,0,0,0,"00:00:00",0]
[null,null,null,null,null,null,"00:00:00",null,null,null,null,null,null,null,null,{"$f":"VLOOKUP(N446,CisacSocietycodes!$A$2:$C$365,2,0)","v":{"$error":"#N/A"}},null,0,0,0,"00","00","00",0,"00","00","00",0,0,0,0,0,0,"00:00:00",0]
[null,null,null,null,null,null,"00:00:00",null,null,null,null,null,null,null,null,{"$f":"VLOOKUP(N447,CisacSocietycodes!$A$2:$C$365,2,0)","v":{"$error":"#N/A"}},null,0,0,0,"00","00","00",0,"00","00","00",0,0,0,0,0,0,"00:00:00",0]
[null,null,null,null,null,null,"00:00:00",null,null,null,null,null,null,null,null,{"$f":"VLOOKUP(N448,CisacSocietycodes!$A$2:$C$365,2,0)","v":{"$error":"#N/A"}},null,0,0,0,"00","00","00",0,"00","00","00",0,0,0,0,0,0,"00:00:00",0]
[null,null,null,null,null,null,"00:00:00",null,null,null,null,null,null,null,null,{"$f":"VLOOKUP(N449,CisacSocietycodes!$A$2:$C$365,2,0)","v":{"$error":"#N/A"}},null,0,0,0,"00","00","00",0,"00","00","00",0,0,0,0,0,0,"00:00:00",0]
[null,null,null,null,null,null,"00:00:00",null,null,null,null,null,null,null,null,{"$f":"VLOOKUP(N450,CisacSocietycodes!$A$2:$C$365,2,0)","v":{"$error":"#N/A"}},null,0,0,0,"00","00","00",0,"00","00","00",0,0,0,0,0,0,"00:00:00",0]
[null,null,null,null,null,null,"00:00:00",null,null,null,null,null,null,null,null,{"$f":"VLOOKUP(N451,CisacSocietycodes!$A$2:$C$365,2,0)","v":{"$error":"#N/A"}},null,0,0,0,"00","00","00",0,"00","00","00",0,0,0,0,0,0,"00:00:00",0]
[null,null,null,null,null,null,"00:00:00",null,null,null,null,null,null,null,null,{"$f":"VLOOKUP(N452,CisacSocietycodes!$A$2:$C$365,2,0)","v":{"$error":"#N/A"}},null,0,0,0,"00","00","00",0,"00","00","00",0,0,0,0,0,0,"00:00:00",0]
[null,null,null,null,null,null,"00:00:00",null,null,null,null,null,null,null,null,{"$f":"VLOOKUP(N453,CisacSocietycodes!$A$2:$C$365,2,0)","v":{"$error":"#N/A"}},null,0,0,0,"00","00","00",0,"00","00","00",0,0,0,0,0,0,"00:00:00",0]
[null,null,null,null,null,null,"00:00:00",null,null,null,null,null,null,null,null,{"$f":"VLOOKUP(N454,CisacSocietycodes!$A$2:$C$365,2,0)","v":{"$error":"#N/A"}},null,0,0,0,"00","00","00",0,"00","00","00",0,0,0,0,0,0,"00:00:00",0]
[null,null,null,null,null,null,"00:00:00",null,null,null,null,null,null,null,null,{"$f":"VLOOKUP(N455,CisacSocietycodes!$A$2:$C$365,2,0)","v":{"$error":"#N/A"}},null,0,0,0,"00","00","00",0,"00","00","00",0,0,0,0,0,0,"00:00:00",0]
[null,null,null,null,null,null,"00:00:00",null,null,null,null,null,null,null,null,{"$f":"VLOOKUP(N456,CisacSocietycodes!$A$2:$C$365,2,0)","v":{"$error":"#N/A"}},null,0,0,0,"00","00","00",0,"00","00","00",0,0,0,0,0,0,"00:00:00",0]
[null,null,null,null,null,null,"00:00:00",null,null,null,null,null,null,null,null,{"$f":"VLOOKUP(N457,CisacSocietycodes!$A$2:$C$365,2,0)","v":{"$error":"#N/A"}},null,0,0,0,"00","00","00",0,"00","00","00",0,0,0,0,0,0,"00:00:00",0]
[null,null,null,null,null,null,"00:00:00",null,null,null,null,null,null,null,null,{"$f":"VLOOKUP(N458,CisacSocietycodes!$A$2:$C$365,2,0)","v":{"$error":"#N/A"}},null,0,0,0,"00","00","00",0,"00","00","00",0,0,0,0,0,0,"00:00:00",0]
[null,null,null,null,null,null,"00:00:00",null,null,null,null,null,null,null,null,{"$f":"VLOOKUP(N459,CisacSocietycodes!$A$2:$C$365,2,0)","v":{"$error":"#N/A"}},null,0,0,0,"00","00","00",0,"00","00","00",0,0,0,0,0,0,"00:00:00",0]
[null,null,null,null,null,null,"00:00:00",null,null,null,null,null,null,null,null,{"$f":"VLOOKUP(N460,CisacSocietycodes!$A$2:$C$365,2,0)","v":{"$error":"#N/A"}},null,0,0,0,"00","00","00",0,"00","00","00",0,0,0,0,0,0,"00:00:00",0]
[null,null,null,null,null,null,"00:00:00",null,null,null,null,null,null,null,null,{"$f":"VLOOKUP(N461,CisacSocietycodes!$A$2:$C$365,2,0)","v":{"$error":"#N/A"}},null,0,0,0,"00","00","00",0,"00","00","00",0,0,0,0,0,0,"00:00:00",0]
[null,null,null,null,null,null,"00:00:00",null,null,null,null,null,null,null,null,{"$f":"VLOOKUP(N462,CisacSocietycodes!$A$2:$C$365,2,0)","v":{"$error":"#N/A"}},null,0,0,0,"00","00","00",0,"00","00","00",0,0,0,0,0,0,"00:00:00",0]
[null,null,null,null,null,null,"00:00:00",null,null,null,null,null,null,null,null,{"$f":"VLOOKUP(N463,CisacSocietycodes!$A$2:$C$365,2,0)","v":{"$error":"#N/A"}},null,0,0,0,"00","00","00",0,"00","00","00",0,0,0,0,0,0,"00:00:00",0]
[null,null,null,null,null,null,"00:00:00",null,null,null,null,null,null,null,null,{"$f":"VLOOKUP(N464,CisacSocietycodes!$A$2:$C$365,2,0)","v":{"$error":"#N/A"}},null,0,0,0,"00","00","00",0,"00","00","00",0,0,0,0,0,0,"00:00:00",0]
[null,null,null,null,null,null,"00:00:00",null,null,null,null,null,null,null,null,{"$f":"VLOOKUP(N465,CisacSocietycodes!$A$2:$C$365,2,0)","v":{"$error":"#N/A"}},null,0,0,0,"00","00","00",0,"00","00","00",0,0,0,0,0,0,"00:00:00",0]
[null,null,null,null,null,null,"00:00:00",null,null,null,null,null,null,null,null,{"$f":"VLOOKUP(N466,CisacSocietycodes!$A$2:$C$365,2,0)","v":{"$error":"#N/A"}},null,0,0,0,"00","00","00",0,"00","00","00",0,0,0,0,0,0,"00:00:00",0]
[null,null,null,null,null,null,"00:00:00",null,null,null,null,null,null,null,null,{"$f":"VLOOKUP(N467,CisacSocietycodes!$A$2:$C$365,2,0)","v":{"$error":"#N/A"}},null,0,0,0,"00","00","00",0,"00","00","00",0,0,0,0,0,0,"00:00:00",0]
[null,null,null,null,null,null,"00:00:00",null,null,null,null,null,null,null,null,{"$f":"VLOOKUP(N468,CisacSocietycodes!$A$2:$C$365,2,0)","v":{"$error":"#N/A"}},null,0,0,0,"00","00","00",0,"00","00","00",0,0,0,0,0,0,"00:00:00",0]
[null,null,null,null,null,null,"00:00:00",null,null,null,null,null,null,null,null,{"$f":"VLOOKUP(N469,CisacSocietycodes!$A$2:$C$365,2,0)","v":{"$error":"#N/A"}},null,0,0,0,"00","00","00",0,"00","00","00",0,0,0,0,0,0,"00:00:00",0]
[null,null,null,null,null,null,"00:00:00",null,null,null,null,null,null,null,null,{"$f":"VLOOKUP(N470,CisacSocietycodes!$A$2:$C$365,2,0)","v":{"$error":"#N/A"}},null,0,0,0,{"$f":" LEFT((TEXT(AC470, \"000000\")), 2)","v":"00"},{"$f":" RIGHT(LEFT((TEXT(AC470, \"000000\")), 4), 2)","v":"00"},{"$f":" TEXT((ROUND(RIGHT((TEXT(AC470, \"000000\")), 2), 2)), \"00\")","v":"00"},{"$f":"((Y470 * 3600) + (Z470 * 60 )+( AA470 )) - ((U470 * 3600) + (V470 * 60 )+( W470 ))","v":0},{"$f":" LEFT((TEXT(AD470, \"000000\")), 2)","v":"00"},{"$f":" RIGHT(LEFT((TEXT(AD470, \"000000\")), 4), 2)","v":"00"},{"$f":" TEXT((ROUND(RIGHT((TEXT(AD470, \"000000\")), 2), 2)), \"00\")","v":"00"},{"$f":"(Y470 * 3600) + (Z470 * 60 )+( AA470 )","v":0},0,{"$f":"IF(F470<>\"\",F470,E470)","v":0},{"$f":" ROUNDDOWN((X470/ 3600), 0)","v":0},{"$f":"ROUNDDOWN((((X470 / 3600) - AE470) * 60), 0)","v":0},{"$f":" ((X470) / 60) - (TEXT(ROUNDDOWN((X470 / 60), 0), \"00\"))","v":0},{"$f":" (TEXT(AE470, \"00\")) & \":\" &  (TEXT(AF470, \"00\")) & \":\" &  (TEXT((AG470) * 60, \"00\"))","v":"00:00:00"},{"$f":"X470","v":0}]
[null,null,null,null,null,null,{"$f":"IF(X471<>\"\",AH471,0)","v":"00:00:00"},null,null,null,null,null,null,null,null,{"$f":"VLOOKUP(N471,CisacSocietycodes!$A$2:$C$365,2,0)","v":{"$error":"#N/A"}},null,0,0,0,"00","00","00",0,"00","00","00",0,{"$f":"IF(F471<>\"\",0,D471)","v":0},0,0,0,0,"00:00:00",0]
[null,null,null,null,null,null,"00:00:00",null,null,null,null,null,null,null,null,{"$f":"VLOOKUP(N472,CisacSocietycodes!$A$2:$C$365,2,0)","v":{"$error":"#N/A"}},null,0,0,0,"00","00","00",0,"00","00","00",0,0,0,0,0,0,"00:00:00",0]
[null,null,null,null,null,null,"00:00:00",null,null,null,null,null,null,null,null,{"$f":"VLOOKUP(N473,CisacSocietycodes!$A$2:$C$365,2,0)","v":{"$error":"#N/A"}},null,0,0,0,"00","00","00",0,"00","00","00",0,0,0,0,0,0,"00:00:00",0]
[null,null,null,null,null,null,"00:00:00",null,null,null,null,null,null,null,null,{"$f":"VLOOKUP(N474,CisacSocietycodes!$A$2:$C$365,2,0)","v":{"$error":"#N/A"}},null,0,0,0,"00","00","00",0,"00","00","00",0,0,0,0,0,0,"00:00:00",0]
[null,null,null,null,null,null,"00:00:00",null,null,null,null,null,null,null,null,{"$f":"VLOOKUP(N475,CisacSocietycodes!$A$2:$C$365,2,0)","v":{"$error":"#N/A"}},null,0,0,0,"00","00","00",0,"00","00","00",0,0,0,0,0,0,"00:00:00",0]
[null,null,null,null,null,null,"00:00:00",null,null,null,null,null,null,null,null,{"$f":"VLOOKUP(N476,CisacSocietycodes!$A$2:$C$365,2,0)","v":{"$error":"#N/A"}},null,0,0,0,"00","00","00",0,"00","00","00",0,0,0,0,0,0,"00:00:00",0]
[null,null,null,null,null,null,"00:00:00",null,null,null,null,null,null,null,null,{"$f":"VLOOKUP(N477,CisacSocietycodes!$A$2:$C$365,2,0)","v":{"$error":"#N/A"}},null,0,0,0,"00","00","00",0,"00","00","00",0,0,0,0,0,0,"00:00:00",0]
[null,null,null,null,null,null,"00:00:00",null,null,null,null,null,null,null,null,{"$f":"VLOOKUP(N478,CisacSocietycodes!$A$2:$C$365,2,0)","v":{"$error":"#N/A"}},null,0,0,0,"00","00","00",0,"00","00","00",0,0,0,0,0,0,"00:00:00",0]
[null,null,null,null,null,null,"00:00:00",null,null,null,null,null,null,null,null,{"$f":"VLOOKUP(N479,CisacSocietycodes!$A$2:$C$365,2,0)","v":{"$error":"#N/A"}},null,0,0,0,"00","00","00",0,"00","00","00",0,0,0,0,0,0,"00:00:00",0]
[null,null,null,null,null,null,"00:00:00",null,null,null,null,null,null,null,null,{"$f":"VLOOKUP(N480,CisacSocietycodes!$A$2:$C$365,2,0)","v":{"$error":"#N/A"}},null,0,0,0,"00","00","00",0,"00","00","00",0,0,0,0,0,0,"00:00:00",0]
[null,null,null,null,null,null,"00:00:00",null,null,null,null,null,null,null,null,{"$f":"VLOOKUP(N481,CisacSocietycodes!$A$2:$C$365,2,0)","v":{"$error":"#N/A"}},null,0,0,0,"00","00","00",0,"00","00","00",0,0,0,0,0,0,"00:00:00",0]
[null,null,null,null,null,null,"00:00:00",null,null,null,null,null,null,null,null,{"$f":"VLOOKUP(N482,CisacSocietycodes!$A$2:$C$365,2,0)","v":{"$error":"#N/A"}},null,0,0,0,"00","00","00",0,"00","00","00",0,0,0,0,0,0,"00:00:00",0]
[null,null,null,null,null,null,"00:00:00",null,null,null,null,null,null,null,null,{"$f":"VLOOKUP(N483,CisacSocietycodes!$A$2:$C$365,2,0)","v":{"$error":"#N/A"}},null,0,0,0,"00","00","00",0,"00","00","00",0,0,0,0,0,0,"00:00:00",0]
[null,null,null,null,null,null,"00:00:00",null,null,null,null,null,null,null,null,{"$f":"VLOOKUP(N484,CisacSocietycodes!$A$2:$C$365,2,0)","v":{"$error":"#N/A"}},null,0,0,0,"00","00","00",0,"00","00","00",0,0,0,0,0,0,"00:00:00",0]
[null,null,null,null,null,null,"00:00:00",null,null,null,null,null,null,null,null,{"$f":"VLOOKUP(N485,CisacSocietycodes!$A$2:$C$365,2,0)","v":{"$error":"#N/A"}},null,0,0,0,"00","00","00",0,"00","00","00",0,0,0,0,0,0,"00:00:00",0]
[null,null,null,null,null,null,"00:00:00",null,null,null,null,null,null,null,null,{"$f":"VLOOKUP(N486,CisacSocietycodes!$A$2:$C$365,2,0)","v":{"$error":"#N/A"}},null,0,0,0,"00","00","00",0,"00","00","00",0,0,0,0,0,0,"00:00:00",0]
[null,null,null,null,null,null,"00:00:00",null,null,null,null,null,null,null,null,{"$f":"VLOOKUP(N487,CisacSocietycodes!$A$2:$C$365,2,0)","v":{"$error":"#N/A"}},null,0,0,0,"00","00","00",0,"00","00","00",0,0,0,0,0,0,"00:00:00",0]
[null,null,null,null,null,null,"00:00:00",null,null,null,null,null,null,null,null,{"$f":"VLOOKUP(N488,CisacSocietycodes!$A$2:$C$365,2,0)","v":{"$error":"#N/A"}},null,0,0,0,"00","00","00",0,"00","00","00",0,0,0,0,0,0,"00:00:00",0]
[null,null,null,null,null,null,"00:00:00",null,null,null,null,null,null,null,null,{"$f":"VLOOKUP(N489,CisacSocietycodes!$A$2:$C$365,2,0)","v":{"$error":"#N/A"}},null,0,0,0,"00","00","00",0,"00","00","00",0,0,0,0,0,0,"00:00:00",0]
[null,null,null,null,null,null,"00:00:00",null,null,null,null,null,null,null,null,{"$f":"VLOOKUP(N490,CisacSocietycodes!$A$2:$C$365,2,0)","v":{"$error":"#N/A"}},null,0,0,0,"00","00","00",0,"00","00","00",0,0,0,0,0,0,"00:00:00",0]
[null,null,null,null,null,null,"00:00:00",null,null,null,null,null,null,null,null,{"$f":"VLOOKUP(N491,CisacSocietycodes!$A$2:$C$365,2,0)","v":{"$error":"#N/A"}},null,0,0,0,"00","00","00",0,"00","00","00",0,0,0,0,0,0,"00:00:00",0]
[null,null,null,null,null,null,"00:00:00",null,null,null,null,null,null,null,null,{"$f":"VLOOKUP(N492,CisacSocietycodes!$A$2:$C$365,2,0)","v":{"$error":"#N/A"}},null,0,0,0,"00","00","00",0,"00","00","00",0,0,0,0,0,0,"00:00:00",0]
[null,null,null,null,null,null,"00:00:00",null,null,null,null,null,null,null,null,{"$f":"VLOOKUP(N493,CisacSocietycodes!$A$2:$C$365,2,0)","v":{"$error":"#N/A"}},null,0,0,0,"00","00","00",0,"00","00","00",0,0,0,0,0,0,"00:00:00",0]
[null,null,null,null,null,null,"00:00:00",null,null,null,null,null,null,null,null,{"$f":"VLOOKUP(N494,CisacSocietycodes!$A$2:$C$365,2,0)","v":{"$error":"#N/A"}},null,0,0,0,"00","00","00",0,"00","00","00",0,0,0,0,0,0,"00:00:00",0]
[null,null,null,null,null,null,"00:00:00",null,null,null,null,null,null,null,null,{"$f":"VLOOKUP(N495,CisacSocietycodes!$A$2:$C$365,2,0)","v":{"$error":"#N/A"}},null,0,0,0,"00","00","00",0,"00","00","00",0,0,0,0,0,0,"00:00:00",0]
[null,null,null,null,null,null,"00:00:00",null,null,null,null,null,null,null,null,{"$f":"VLOOKUP(N496,CisacSocietycodes!$A$2:$C$365,2,0)","v":{"$error":"#N/A"}},null,0,0,0,"00","00","00",0,"00","00","00",0,0,0,0,0,0,"00:00:00",0]
[null,null,null,null,null,null,"00:00:00",null,null,null,null,null,null,null,null,{"$f":"VLOOKUP(N497,CisacSocietycodes!$A$2:$C$365,2,0)","v":{"$error":"#N/A"}},null,0,0,0,"00","00","00",0,"00","00","00",0,0,0,0,0,0,"00:00:00",0]
[null,null,null,null,null,null,"00:00:00",null,null,null,null,null,null,null,null,{"$f":"VLOOKUP(N498,CisacSocietycodes!$A$2:$C$365,2,0)","v":{"$error":"#N/A"}},null,0,0,0,"00","00","00",0,"00","00","00",0,0,0,0,0,0,"00:00:00",0]
[null,null,null,null,null,null,"00:00:00",null,null,null,null,null,null,null,null,{"$f":"VLOOKUP(N499,CisacSocietycodes!$A$2:$C$365,2,0)","v":{"$error":"#N/A"}},null,0,0,0,"00","00","00",0,"00","00","00",0,0,0,0,0,0,"00:00:00",0]
[null,null,null,null,null,null,"00:00:00",null,null,null,null,null,null,null,null,{"$f":"VLOOKUP(N500,CisacSocietycodes!$A$2:$C$365,2,0)","v":{"$error":"#N/A"}},null,0,0,0,"00","00","00",0,"00","00","00",0,0,0,0,0,0,"00:00:00",0]
[null,null,null,null,null,null,{"$f":"(SUM(G22:G500))","v":0},null,null,null,null,null,null,null,null,null,null,920,null,0,0,0,"00","00",null,null,null,null,"00",null,0,0,0,0,0]
["Fin de la feuille de travail",null,null,null,null,null,null,null,null,null,null,null,null,null,null,null,null,null,null,null,{"$f":" LEFT((TEXT(AC502, \"000000\")), 2)","v":"00"},{"$f":" RIGHT(LEFT((TEXT(AC502, \"000000\")), 4), 2)","v":"00"},{"$f":" TEXT((ROUND(RIGHT((TEXT(AC502, \"000000\")), 2), 2)), \"00\")","v":"00"},{"$f":"SUM(X22:X501)","v":0},null,null,null,null,{"$f":"SUM(AC22:AC501)","v":0},null,{"$f":" ROUNDDOWN((X502/ 3600), 0)","v":0},{"$f":"ROUNDDOWN((((X502 / 3600) - AE502) * 60), 0)","v":0},{"$f":" ((X502) / 60) - (TEXT(ROUNDDOWN((X502 / 60), 0), \"00\"))","v":0},{"$f":" (TEXT(AE502, \"00\")) & \":\" &  (TEXT(AF502, \"00\")) & \":\" &  (TEXT((AG502) * 60, \"00\"))","v":"00:00:00"},{"$f":"SUM(AI22:AI501)","v":0}]

{"sheet":"Menus déroulants et valeurs","index":2,"n_rows":1619,"n_cols":3,"rows_kept":1619,"cut":false,"hidden":true,"merged":[]}
["Menus déroulants et leurs valeurs associées du rapport de contenu musical harmonisé"]
[]
["Section supérieure du rapport de contenu musical harmonisé"]
[]
["Champ","Valeurs du menu déroulant"]
[]
["Classification de rapport de contenu musical","Original"]
[null,"Révision"]
[null,"Ébauche"]
[]
["Type de production","Pas une série"]
[null,"Série"]
[]
["Catégorie de production","Animation, dessin animé"]
[null,"Publicités télé"]
[null,"Documentaire"]
[null,"Long métrage, film commercial, téléfilm, film"]
[null,"Infopublicité, programme payant"]
[null,"Minisérie"]
[null,"Multimédia"]
[null,"Nouvelles"]
[null,"Unique, non série"]
[null,"Autre"]
[null,"Réalité"]
[null,"Télésérie, série câblée"]
[null,"Téléroman, Télévovela"]
[null,"Spéciaux"]
[null,"Événement sportif, programmation en lien avec le sport"]
[null,"Bandes-annonces"]
[]
["Version","Oui"]
[null,"Non"]
[]
["Catégorie de version","3-D"]
[null,"Ligne aérienne"]
[null,"Appli"]
[null,"Noir et blanc"]
[null,"Câble "]
[null,"Couleur"]
[null,"Version du réalisateur"]
[null,"Fournisseur de service numérique"]
[null,"Domestique"]
[null,"Vidéo maison"]
[null,"Internet"]
[null,"International"]
[null,"Long"]
[null,"Vidéoclip"]
[null,"Réseau"]
[null,"Nouveau doublage"]
[null,"Nouvelle musique"]
[null,"Original"]
[null,"Restauré"]
[null,"Court "]
[null,"Film muet"]
[null,"Souscrit"]
[null,"Film commercial"]
[null,"Parc thématique"]
[]
["Territoire/pays de la version","CANADA"]
[null,"ÉTATS-UNIS"]
[null,"MONDE"]
[null,"AFGHANISTAN"]
[null,"AFRIQUE"]
[null,"ALBANIE"]
[null,"ALGÉRIE"]
[null,"AMÉRIQUE"]
[null,"CONTINENT AMÉRICAIN"]
[null,"ANDORRE"]
[null,"ANGOLA"]
[null,"ANTIGUA-ET-BARBUDA"]
[null,"ANTILLES"]
[null,"ARGENTINE"]
[null,"ARMÉNIE"]
[null,"ASIE"]
[null,"ASTRALASIE"]
[null,"AUSTRALIE"]
[null,"AUTRICHE"]
[null,"AZERBAÏDJAN"]
[null,"BAHAMAS"]
[null,"BAHREÏN"]
[null,"BALKANS"]
[null,"PAYS BALTES"]
[null,"BANGLADESH"]
[null,"BARBADE"]
[null,"BIÉLORUSSIE"]
[null,"BELGIQUE"]
[null,"BELIZE"]
[null,"BÉNIN"]
[null,"BHOUTAN"]
[null,"BOLIVIE"]
[null,"BOSNIE-HERZÉGOVINE"]
[null,"BOTSWANA"]
[null,"BRÉSIL"]
[null,"ÎLES BRITANNIQUES"]
[null,"BRUNEI DARUSSALAM"]
[null,"BULGARIE"]
[null,"BURKINA FASO"]
[null,"BIRMANIE"]
[null,"BURUNDI"]
[null,"CAMBODGE"]
[null,"CAMEROUN"]
[null,"CAP VERT"]
[null,"RÉPUBLIQUE CENTRAFRICAINE"]
[null,"AMÉRIQUE CENTRALE"]
[null,"TCHAD"]
[null,"CHILI"]
[null,"CHINE"]
[null,"COLOMBIE"]
[null,"COMORES"]
[null,"CONGO, RÉPUBLIQUE DÉMOCRATIQUE DU"]
[null,"COSTA RICA"]
[null,"CÔTE D’IVOIRE"]
[null,"CROATIE"]
[null,"CUBA"]
[null,"CHYPRE"]
[null,"RÉPUBLIQUE TCHÈQUE"]
[null,"DANEMARK"]
[null,"DJIBOUTI"]
[null,"DOMINIQUE"]
[null,"RÉPUBLIQUE DOMINICAINE"]
[null,"EUROPE DE L’EST"]
[null,"ÉQUATEUR"]
[null,"ÉGYPTE"]
[null,"EL SALVADOR"]
[null,"GUINÉE ÉQUATORIALE"]
[null,"ÉRYTHRÉE"]
[null,"ESTONIE"]
[null,"ÉTHIOPIE"]
[null,"EUROPE"]
[null,"CONTINENT EUROPÉEN"]
[null,"FIDJI"]
[null,"FINLANDE"]
[null,"FRANCE "]
[null,"POLYNÉSIE FRANÇAISE"]
[null,"GABON"]
[null,"GAMBIE"]
[null,"GÉORGIE"]
[null,"ALLEMAGNE"]
[null,"GHANA"]
[null,"GRÈCE"]
[null,"GRENADE"]
[null,"PAYS GERMANOPHONES"]
[null,"GUATEMALA"]
[null,"GUINÉE"]
[null,"GUINÉE-BISSAU"]
[null,"GUYANE"]
[null,"HAÏTI"]
[null,"SAINT-SIÈGE (ÉTAT DE LA CITÉ DU VATICAN)"]
[null,"HONDURAS"]
[null,"HONG KONG"]
[null,"HONGRIE"]
[null,"ISLANDE"]
[null,"INDE"]
[null,"INDONÉSIE"]
[null,"IRAN"]
[null,"IRAK"]
[null,"IRLANDE"]
[null,"ISRAËL"]
[null,"ITALIE"]
[null,"JAMAÏQUE"]
[null,"JAPON"]
[null,"JORDANIE"]
[null,"KAZAKHSTAN"]
[null,"KENYA"]
[null,"KIRIBATI"]
[null,"KOWEÏT"]
[null,"KIRGHIZISTAN"]
[null,"RÉPUBLIQUE DÉMOCRATIQUE POPULAIRE DU LAOS"]
[null,"LETTONIE"]
[null,"LIBAN"]
[null,"LESOTHO"]
[null,"LIBÉRIA"]
[null,"LIBYE"]
[null,"LIECHTENSTEIN"]
[null,"LITHUANIE"]
[null,"LUXEMBOURG"]
[null,"MACÉDOINE"]
[null,"MADAGASCAR"]
[null,"MALAWI"]
[null,"MALAISIE"]
[null,"MALDIVES"]
[null,"MALI"]
[null,"MALTE"]
[null,"ÎLES MARSHALL"]
[null,"MAURITANIE"]
[null,"MAURICE"]
[null,"MEXIQUE"]
[null,"MICRONÉSIE"]
[null,"MOYEN-ORIENT"]
[null,"MOLDAVIE"]
[null,"MONACO"]
[null,"MONGOLIE"]
[null,"MAROC"]
[null,"MOZAMBIQUE"]
[null,"MYANMAR"]
[null,"NAMIBIE"]
[null,"NAURU "]
[null,"NÉPAL"]
[null,"PAYS-BAS"]
[null,"NOUVELLE-ZÉLANDE"]
[null,"NICARAGUA"]
[null,"NIGER"]
[null,"NIGÉRIA"]
[null,"PAYS NORDIQUES"]
[null,"AFRIQUE DU NORD"]
[null,"AMÉRIQUE DU NORD"]
[null,"CORÉE DU NORD"]
[null,"NORVÈGE"]
[null,"OCÉANIE"]
[null,"OMAN"]
[null,"PAKISTAN"]
[null,"PALAU"]
[null,"PANAMA"]
[null,"PAPOUASIE–NOUVELLE-GUINÉE"]
[null,"PARAGUAY"]
[null,"PÉROU"]
[null,"PHILIPPINES"]
[null,"POLOGNE"]
[null,"PORTUGAL"]
[null,"PORTO RICO"]
[null,"QATAR"]
[null,"ROUMANIE"]
[null,"FÉDÉRATION RUSSE"]
[null,"RWANDA"]
[null,"SAINT-CHRISTOPHE-ET-NIÉVÈS"]
[null,"SAINTE-LUCIE"]
[null,"SAINT-VINCENT-ET-LES-GRENADINES"]
[null,"SAMOA"]
[null,"SAINT-MARIN"]
[null,"SAO TOMÉ-ET-PRINCIPE"]
[null,"ARABIE SAOUDITE"]
[null,"SCANDINAVIE"]
[null,"SÉNÉGAL"]
[null,"SERBIE-ET-MONTÉNÉGRO"]
[null,"SEYCHELLES"]
[null,"SIERRA LEONE"]
[null,"SINGAPOUR"]
[null,"SLOVAQUIE"]
[null,"SLOVÉNIE"]
[null,"ÎLES SALOMON"]
[null,"SOMALIE"]
[null,"AFRIQUE DU SUD"]
[null,"AMÉRIQUE DU SUD"]
[null,"ASIE DU SUD-EST"]
[null,"CORÉE DU SUD"]
[null,"ESPAGNE "]
[null,"SRI LANKA"]
[null,"SOUDAN"]
[null,"SURINAME"]
[null,"SWAZILAND"]
[null,"SUÈDE"]
[null,"SUISSE"]
[null,"SYRIE"]
[null,"TAIWAN"]
[null,"TADJIKISTAN"]
[null,"TANZANIE"]
[null,"THAÏLANDE"]
[null,"TIMOR ORIENTAL"]
[null,"TOGO"]
[null,"TONGA"]
[null,"TRINIDAD ET TOBAGO"]
[null,"TUNISIE"]
[null,"TURQUIE"]
[null,"TURKMÉNISTAN"]
[null,"TUVALU"]
[null,"OUGANDA"]
[null,"UKRAINE"]
[null,"ÉMIRATS ARABES UNIS"]
[null,"ROYAUME-UNI"]
[null,"URUGUAY"]
[null,"URSS"]
[null,"OUZBÉKISTAN"]
[null,"VANUATU"]
[null,"VENEZUELA"]
[null,"VIETNAM"]
[null,"INDES OCCIDENTALES"]
[null,"SAHARA OCCIDENTAL"]
[null,"YÉMEN"]
[null,"ZAÏRE"]
[null,"ZAMBIE"]
[null,"ZIMBABWE"]
["Territoire de première diffusion","CANADA"]
[null,"ÉTATS-UNIS"]
[null,"AFGHANISTAN"]
[null,"AFRIQUE"]
[null,"ALBANIE"]
[null,"ALGÉRIE"]
[null,"AMÉRIQUE"]
[null,"CONTINENT AMÉRICAIN"]
[null,"ANDORRE"]
[null,"ANGOLA"]
[null,"ANTIGUA-ET-BARBUDA"]
[null,"ANTILLES"]
[null,"ARGENTINE"]
[null,"ARMÉNIE"]
[null,"ASIE"]
[null,"ASTRALASIE"]
[null,"AUSTRALIE"]
[null,"AUTRICHE"]
[null,"AZERBAÏDJAN"]
[null,"BAHAMAS"]
[null,"BAHREÏN"]
[null,"BALKANS"]
[null,"PAYS BALTES"]
[null,"BANGLADESH"]
[null,"BARBADE"]
[null,"BIÉLORUSSIE"]
[null,"BELGIQUE"]
[null,"BELIZE"]
[null,"BÉNIN"]
[null,"BHOUTAN"]
[null,"BOLIVIE"]
[null,"BOSNIE-HERZÉGOVINE"]
[null,"BOTSWANA"]
[null,"BRÉSIL"]
[null,"ÎLES BRITANNIQUES"]
[null,"BRUNEI DARUSSALAM"]
[null,"BULGARIE"]
[null,"BURKINA FASO"]
[null,"BIRMANIE"]
[null,"BURUNDI"]
[null,"CAMBODGE"]
[null,"CAMEROUN"]
[null,"CAP VERT"]
[null,"RÉPUBLIQUE CENTRAFRICAINE"]
[null,"AMÉRIQUE CENTRALE"]
[null,"TCHAD"]
[null,"CHILI"]
[null,"CHINE"]
[null,"COLOMBIE"]
[null,"COMORES"]
[null,"CONGO, RÉPUBLIQUE DÉMOCRATIQUE DU"]
[null,"COSTA RICA"]
[null,"CÔTE D’IVOIRE"]
[null,"CROATIE"]
[null,"CUBA"]
[null,"CHYPRE"]
[null,"RÉPUBLIQUE TCHÈQUE"]
[null,"DANEMARK"]
[null,"DJIBOUTI"]
[null,"DOMINIQUE"]
[null,"RÉPUBLIQUE DOMINICAINE"]
[null,"EUROPE DE L’EST"]
[null,"ÉQUATEUR"]
[null,"ÉGYPTE"]
[null,"EL SALVADOR"]
[null,"GUINÉE ÉQUATORIALE"]
[null,"ÉRYTHRÉE"]
[null,"ESTONIE"]
[null,"ÉTHIOPIE"]
[null,"EUROPE"]
[null,"CONTINENT EUROPÉEN"]
[null,"FIDJI"]
[null,"FINLANDE"]
[null,"FRANCE "]
[null,"POLYNÉSIE FRANÇAISE"]
[null,"GABON"]
[null,"GAMBIE"]
[null,"GÉORGIE"]
[null,"ALLEMAGNE"]
[null,"GHANA"]
[null,"GRÈCE"]
[null,"GRENADE"]
[null,"PAYS GERMANOPHONES"]
[null,"GUATEMALA"]
[null,"GUINÉE"]
[null,"GUINÉE-BISSAU"]
[null,"GUYANE"]
[null,"HAÏTI"]
[null,"SAINT-SIÈGE (ÉTAT DE LA CITÉ DU VATICAN)"]
[null,"HONDURAS"]
[null,"HONG KONG"]
[null,"HONGRIE"]
[null,"ISLANDE"]
[null,"INDE"]
[null,"INDONÉSIE"]
[null,"IRAN"]
[null,"IRAK"]
[null,"IRLANDE"]
[null,"ISRAEL"]
[null,"ITALIE"]
[null,"JAMAÏQUE"]
[null,"JAPON"]
[null,"JORDANIE"]
[null,"KAZAKHSTAN"]
[null,"KENYA"]
[null,"KIRIBATI"]
[null,"KOWEÏT"]
[null,"KIRGHIZISTAN"]
[null,"RÉPUBLIQUE DÉMOCRATIQUE POPULAIRE DU LAOS"]
[null,"LETTONIE"]
[null,"LIBAN"]
[null,"LESOTHO"]
[null,"LIBÉRIA"]
[null,"LIBYE"]
[null,"LIECHTENSTEIN"]
[null,"LITHUANIE"]
[null,"LUXEMBOURG"]
[null,"MACÉDOINE"]
[null,"MADAGASCAR"]
[null,"MALAWI"]
[null,"MALAISIE"]
[null,"MALDIVES"]
[null,"MALI"]
[null,"MALTE"]
[null,"ÎLES MARSHALL"]
[null,"MAURITANIE"]
[null,"MAURICE"]
[null,"MEXIQUE"]
[null,"MICRONÉSIE"]
[null,"MOYEN-ORIENT"]
[null,"MOLDAVIE"]
[null,"MONACO"]
[null,"MONGOLIE"]
[null,"MAROC"]
[null,"MOZAMBIQUE"]
[null,"MYANMAR"]
[null,"NAMIBIE"]
[null,"NAURU "]
[null,"NÉPAL"]
[null,"PAYS-BAS"]
[null,"NOUVELLE-ZÉLANDE"]
[null,"NICARAGUA"]
[null,"NIGER"]
[null,"NIGÉRIA"]
[null,"PAYS NORDIQUES"]
[null,"AFRIQUE DU NORD"]
[null,"AMÉRIQUE DU NORD"]
[null,"CORÉE DU NORD"]
[null,"NORVÈGE"]
[null,"OCÉANIE"]
[null,"OMAN"]
[null,"PAKISTAN"]
[null,"PALAU"]
[null,"PANAMA"]
[null,"PAPOUASIE–NOUVELLE-GUINÉE"]
[null,"PARAGUAY"]
[null,"PÉROU"]
[null,"PHILIPPINES"]
[null,"POLOGNE"]
[null,"PORTUGAL"]
[null,"PORTO RICO"]
[null,"QATAR"]
[null,"ROUMANIE"]
[null,"FÉDÉRATION RUSSE"]
[null,"RWANDA"]
[null,"SAINT-CHRISTOPHE-ET-NIÉVÈS"]
[null,"SAINTE-LUCIE"]
[null,"SAINT-VINCENT-ET-LES-GRENADINES"]
[null,"SAMOA"]
[null,"SAINT-MARIN"]
[null,"SAO TOMÉ-ET-PRINCIPE"]
[null,"ARABIE SAOUDITE"]
[null,"SCANDINAVIE"]
[null,"SÉNÉGAL"]
[null,"SERBIE-ET-MONTÉNÉGRO"]
[null,"SEYCHELLES"]
[null,"SIERRA LEONE"]
[null,"SINGAPOUR"]
[null,"SLOVAQUIE"]
[null,"SLOVÉNIE"]
[null,"ÎLES SALOMON"]
[null,"SOMALIE"]
[null,"AFRIQUE DU SUD"]
[null,"AMÉRIQUE DU SUD"]
[null,"ASIE DU SUD-EST"]
[null,"CORÉE DU SUD"]
[null,"ESPAGNE "]
[null,"SRI LANKA"]
[null,"SOUDAN"]
[null,"SURINAME"]
[null,"SWAZILAND"]
[null,"SUÈDE"]
[null,"SUISSE"]
[null,"SYRIE"]
[null,"TAIWAN"]
[null,"TADJIKISTAN"]
[null,"TANZANIE"]
[null,"THAÏLANDE"]
[null,"TIMOR ORIENTAL"]
[null,"TOGO"]
[null,"TONGA"]
[null,"TRINIDAD ET TOBAGO"]
[null,"TUNISIE"]
[null,"TURQUIE"]
[null,"TURKMÉNISTAN"]
[null,"TUVALU"]
[null,"OUGANDA"]
[null,"UKRAINE"]
[null,"ÉMIRATS ARABES UNIS"]
[null,"ROYAUME-UNI"]
[null,"URUGUAY"]
[null,"URSS"]
[null,"OUZBÉKISTAN"]
[null,"VANUATU"]
[null,"VENEZUELA"]
[null,"VIETNAM"]
[null,"INDES OCCIDENTALES"]
[null,"SAHARA OCCIDENTAL"]
[null,"YÉMEN"]
[null,"ZAÏRE"]
[null,"ZAMBIE"]
[null,"ZIMBABWE"]
[]
["Langue","Anglais"]
[null,"Français"]
[null,"Abkhaze"]
[null,"Afar"]
[null,"Afrikaans"]
[null,"Albanais"]
[null,"Amharique"]
[null,"Arabe"]
[null,"Arménien"]
[null,"Assamais"]
[null,"Aymara"]
[null,"Azerbaïdjanais"]
[null,"Bachkir"]
[null,"Basque"]
[null,"Bengale"]
[null,"Bhutani"]
[null,"Bihari"]
[null,"Bislama"]
[null,"Breton"]
[null,"Bulgare"]
[null,"Birman"]
[null,"Biélorusse"]
[null,"Khmer"]
[null,"Catalan"]
[null,"Chinois"]
[null,"Corse"]
[null,"Croate"]
[null,"Tchèque"]
[null,"Danois"]
[null,"Néerlandais"]
[null,"Esperanto"]
[null,"Estonien"]
[null,"Féringien"]
[null,"Farsi"]
[null,"Fidjien"]
[null,"Finlandais"]
[null,"Frison"]
[null,"Galicien"]
[null,"Géorgien"]
[null,"Allemand"]
[null,"Grec"]
[null,"Groenlandais"]
[null,"Guarani"]
[null,"Gujarati"]
[null,"Hausa"]
[null,"Hawaï"]
[null,"Hébreux"]
[null,"Hindi"]
[null,"Hongrois"]
[null,"Islandais"]
[null,"Indonésien"]
[null,"Interlingua"]
[null,"Interlingue"]
[null,"Inupiaq"]
[null,"Irlandais"]
[null,"Italien"]
[null,"Japonais"]
[null,"Javanais"]
[null,"Kannada"]
[null,"Kashmiri"]
[null,"Kazakh"]
[null,"Kinyarwanda"]
[null,"Kirghiz"]
[null,"Kiroundi"]
[null,"Coréen"]
[null,"Kurde"]
[null,"Laotien"]
[null,"Latin"]
[null,"Letton"]
[null,"Lingala"]
[null,"Lithuanien"]
[null,"Macédonien"]
[null,"Malgache"]
[null,"Malais"]
[null,"Malayalam"]
[null,"Maltais"]
[null,"Maori"]
[null,"Marathi"]
[null,"Moldave"]
[null,"Mongol"]
[null,"Nauru"]
[null,"Ndébélé"]
[null,"Népalais"]
[null,"Sotho du nord"]
[null,"Norvégien"]
[null,"Occitan"]
[null,"Oriya"]
[null,"Oromo"]
[null,"Papiamento"]
[null,"Pashto"]
[null,"Polonais"]
[null,"Portugais"]
[null,"Punjabi"]
[null,"Quechua"]
[null,"Rhéto-roman"]
[null,"Roumain"]
[null,"Russe"]
[null,"Samoan"]
[null,"Sango"]
[null,"Sanskrit"]
[null,"Gaélique d’Écosse"]
[null,"Serbe"]
[null,"Serbo-croate"]
[null,"Sesotho"]
[null,"Setswana"]
[null,"Shona"]
[null,"Sindhi"]
[null,"Singhalais"]
[null,"Siswati"]
[null,"Slovaque"]
[null,"Slovène"]
[null,"Somalien"]
[null,"Espagnol"]
[null,"Soudanais"]
[null,"Swahili"]
[null,"Suédois"]
[null,"Tagalog"]
[null,"Tadjik"]
[null,"Tamil"]
[null,"Tatar"]
[null,"Telugu"]
[null,"Thai"]
[null,"Tibétain"]
[null,"Tigrigna"]
[null,"Tonga"]
[null,"Tsonga"]
[null,"Turc"]
[null,"Turkmène"]
[null,"Twi"]
[null,"Ukrainien"]
[null,"Urdu"]
[null,"Ouzbek"]
[null,"Venda"]
[null,"Vietnamien"]
[null,"Volapük"]
[null,"Gallois"]
[null,"Wolof"]
[null,"Xhosa"]
[null,"Yiddish"]
[null,"Yoruba"]
[null,"Zoulou"]
[]
["Pays de production 1","CANADA"]
[null,"ÉTATS-UNIS"]
[null,"AFGHANISTAN"]
[null,"AFRIQUE"]
[null,"ALBANIE"]
[null,"ALGÉRIE"]
[null,"AMÉRIQUE"]
[null,"CONTINENT AMÉRICAIN"]
[null,"ANDORRE"]
[null,"ANGOLA"]
[null,"ANTIGUA-ET-BARBUDA"]
[null,"ANTILLES"]
[null,"ARGENTINE"]
[null,"ARMÉNIE"]
[null,"ASIE"]
[null,"ASTRALASIE"]
[null,"AUSTRALIE"]
[null,"AUTRICHE"]
[null,"AZERBAÏDJAN"]
[null,"BAHAMAS"]
[null,"BAHREÏN"]
[null,"BALKANS"]
[null,"PAYS BALTES"]
[null,"BANGLADESH"]
[null,"BARBADE"]
[null,"BIÉLORUSSIE"]
[null,"BELGIQUE"]
[null,"BELIZE"]
[null,"BÉNIN"]
[null,"BHOUTAN"]
[null,"BOLIVIE"]
[null,"BOSNIE-HERZÉGOVINE"]
[null,"BOTSWANA"]
[null,"BRÉSIL"]
[null,"ÎLES BRITANNIQUES"]
[null,"BRUNEI DARUSSALAM"]
[null,"BULGARIE"]
[null,"BURKINA FASO"]
[null,"BIRMANIE"]
[null,"BURUNDI"]
[null,"CAMBODGE"]
[null,"CAMEROUN"]
[null,"CAP VERT"]
[null,"RÉPUBLIQUE CENTRAFRICAINE"]
[null,"AMÉRIQUE CENTRALE"]
[null,"TCHAD"]
[null,"CHILI"]
[null,"CHINE"]
[null,"COLOMBIE"]
[null,"COMORES"]
[null,"CONGO, RÉPUBLIQUE DÉMOCRATIQUE DU"]
[null,"COSTA RICA"]
[null,"CÔTE D’IVOIRE"]
[null,"CROATIE"]
[null,"CUBA"]
[null,"CHYPRE"]
[null,"RÉPUBLIQUE TCHÈQUE"]
[null,"DANEMARK"]
[null,"DJIBOUTI"]
[null,"DOMINIQUE"]
[null,"RÉPUBLIQUE DOMINICAINE"]
[null,"EUROPE DE L’EST"]
[null,"ÉQUATEUR"]
[null,"ÉGYPTE"]
[null,"EL SALVADOR"]
[null,"GUINÉE ÉQUATORIALE"]
[null,"ÉRYTHRÉE"]
[null,"ESTONIE"]
[null,"ÉTHIOPIE"]
[null,"EUROPE"]
[null,"CONTINENT EUROPÉEN"]
[null,"FIDJI"]
[null,"FINLANDE"]
[null,"FRANCE "]
[null,"POLYNÉSIE FRANÇAISE"]
[null,"GABON"]
[null,"GAMBIE"]
[null,"GÉORGIE"]
[null,"ALLEMAGNE"]
[null,"GHANA"]
[null,"GRÈCE"]
[null,"GRENADE"]
[null,"PAYS GERMANOPHONES"]
[null,"GUATEMALA"]
[null,"GUINÉE"]
[null,"GUINÉE-BISSAU"]
[null,"GUYANE"]
[null,"HAÏTI"]
[null,"SAINT-SIÈGE (ÉTAT DE LA CITÉ DU VATICAN)"]
[null,"HONDURAS"]
[null,"HONG KONG"]
[null,"HONGRIE"]
[null,"ISLANDE"]
[null,"INDE"]
[null,"INDONÉSIE"]
[null,"IRAN"]
[null,"IRAK"]
[null,"IRLANDE"]
[null,"ISRAEL"]
[null,"ITALIE"]
[null,"JAMAÏQUE"]
[null,"JAPON"]
[null,"JORDANIE"]
[null,"KAZAKHSTAN"]
[null,"KENYA"]
[null,"KIRIBATI"]
[null,"KOWEÏT"]
[null,"KIRGHIZISTAN"]
[null,"RÉPUBLIQUE DÉMOCRATIQUE POPULAIRE DU LAOS"]
[null,"LETTONIE"]
[null,"LIBAN"]
[null,"LESOTHO"]
[null,"LIBÉRIA"]
[null,"LIBYE"]
[null,"LIECHTENSTEIN"]
[null,"LITHUANIE"]
[null,"LUXEMBOURG"]
[null,"MACÉDOINE"]
[null,"MADAGASCAR"]
[null,"MALAWI"]
[null,"MALAISIE"]
[null,"MALDIVES"]
[null,"MALI"]
[null,"MALTE"]
[null,"ÎLES MARSHALL"]
[null,"MAURITANIE"]
[null,"MAURICE"]
[null,"MEXIQUE"]
[null,"MICRONÉSIE"]
[null,"MOYEN-ORIENT"]
[null,"MOLDAVIE"]
[null,"MONACO"]
[null,"MONGOLIE"]
[null,"MAROC"]
[null,"MOZAMBIQUE"]
[null,"MYANMAR"]
[null,"NAMIBIE"]
[null,"NAURU "]
[null,"NÉPAL"]
[null,"PAYS-BAS"]
[null,"NOUVELLE-ZÉLANDE"]
[null,"NICARAGUA"]
[null,"NIGER"]
[null,"NIGÉRIA"]
[null,"PAYS NORDIQUES"]
[null,"AFRIQUE DU NORD"]
[null,"AMÉRIQUE DU NORD"]
[null,"CORÉE DU NORD"]
[null,"NORVÈGE"]
[null,"OCÉANIE"]
[null,"OMAN"]
[null,"PAKISTAN"]
[null,"PALAU"]
[null,"PANAMA"]
[null,"PAPOUASIE–NOUVELLE-GUINÉE"]
[null,"PARAGUAY"]
[null,"PÉROU"]
[null,"PHILIPPINES"]
[null,"POLOGNE"]
[null,"PORTUGAL"]
[null,"PORTO RICO"]
[null,"QATAR"]
[null,"ROUMANIE"]
[null,"FÉDÉRATION RUSSE"]
[null,"RWANDA"]
[null,"SAINT-CHRISTOPHE-ET-NIÉVÈS"]
[null,"SAINTE-LUCIE"]
[null,"SAINT-VINCENT-ET-LES-GRENADINES"]
[null,"SAMOA"]
[null,"SAINT-MARIN"]
[null,"SAO TOMÉ-ET-PRINCIPE"]
[null,"ARABIE SAOUDITE"]
[null,"SCANDINAVIE"]
[null,"SÉNÉGAL"]
[null,"SERBIE-ET-MONTÉNÉGRO"]
[null,"SEYCHELLES"]
[null,"SIERRA LEONE"]
[null,"SINGAPOUR"]
[null,"SLOVAQUIE"]
[null,"SLOVÉNIE"]
[null,"ÎLES SALOMON"]
[null,"SOMALIE"]
[null,"AFRIQUE DU SUD"]
[null,"AMÉRIQUE DU SUD"]
[null,"ASIE DU SUD-EST"]
[null,"CORÉE DU SUD"]
[null,"ESPAGNE "]
[null,"SRI LANKA"]
[null,"SOUDAN"]
[null,"SURINAME"]
[null,"SWAZILAND"]
[null,"SUÈDE"]
[null,"SUISSE"]
[null,"SYRIE"]
[null,"TAIWAN"]
[null,"TADJIKISTAN"]
[null,"TANZANIE"]
[null,"THAÏLANDE"]
[null,"TIMOR ORIENTAL"]
[null,"TOGO"]
[null,"TONGA"]
[null,"TRINIDAD ET TOBAGO"]
[null,"TUNISIE"]
[null,"TURQUIE"]
[null,"TURKMÉNISTAN"]
[null,"TUVALU"]
[null,"OUGANDA"]
[null,"UKRAINE"]
[null,"ÉMIRATS ARABES UNIS"]
[null,"ROYAUME-UNI"]
[null,"URUGUAY"]
[null,"URSS"]
[null,"OUZBÉKISTAN"]
[null,"VANUATU"]
[null,"VENEZUELA"]
[null,"VIETNAM"]
[null,"INDES OCCIDENTALES"]
[null,"SAHARA OCCIDENTAL"]
[null,"YÉMEN"]
[null,"ZAÏRE"]
[null,"ZAMBIE"]
[null,"ZIMBABWE"]
[]
["Pays de production 2","CANADA"]
[null,"ÉTATS-UNIS"]
[null,"AFGHANISTAN"]
[null,"AFRIQUE"]
[null,"ALBANIE"]
[null,"ALGÉRIE"]
[null,"AMÉRIQUE"]
[null,"CONTINENT AMÉRICAIN"]
[null,"ANDORRE"]
[null,"ANGOLA"]
[null,"ANTIGUA-ET-BARBUDA"]
[null,"ANTILLES"]
[null,"ARGENTINE"]
[null,"ARMÉNIE"]
[null,"ASIE"]
[null,"ASTRALASIE"]
[null,"AUSTRALIE"]
[null,"AUTRICHE"]
[null,"AZERBAÏDJAN"]
[null,"BAHAMAS"]
[null,"BAHREÏN"]
[null,"BALKANS"]
[null,"PAYS BALTES"]
[null,"BANGLADESH"]
[null,"BARBADE"]
[null,"BIÉLORUSSIE"]
[null,"BELGIQUE"]
[null,"BELIZE"]
[null,"BÉNIN"]
[null,"BHOUTAN"]
[null,"BOLIVIE"]
[null,"BOSNIE-HERZÉGOVINE"]
[null,"BOTSWANA"]
[null,"BRÉSIL"]
[null,"ÎLES BRITANNIQUES"]
[null,"BRUNEI DARUSSALAM"]
[null,"BULGARIE"]
[null,"BURKINA FASO"]
[null,"BIRMANIE"]
[null,"BURUNDI"]
[null,"CAMBODGE"]
[null,"CAMEROUN"]
[null,"CAP VERT"]
[null,"RÉPUBLIQUE CENTRAFRICAINE"]
[null,"AMÉRIQUE CENTRALE"]
[null,"TCHAD"]
[null,"CHILI"]
[null,"CHINE"]
[null,"COLOMBIE"]
[null,"COMORES"]
[null,"CONGO, RÉPUBLIQUE DÉMOCRATIQUE DU"]
[null,"COSTA RICA"]
[null,"CÔTE D’IVOIRE"]
[null,"CROATIE"]
[null,"CUBA"]
[null,"CHYPRE"]
[null,"RÉPUBLIQUE TCHÈQUE"]
[null,"DANEMARK"]
[null,"DJIBOUTI"]
[null,"DOMINIQUE"]
[null,"RÉPUBLIQUE DOMINICAINE"]
[null,"EUROPE DE L’EST"]
[null,"ÉQUATEUR"]
[null,"ÉGYPTE"]
[null,"EL SALVADOR"]
[null,"GUINÉE ÉQUATORIALE"]
[null,"ÉRYTHRÉE"]
[null,"ESTONIE"]
[null,"ÉTHIOPIE"]
[null,"EUROPE"]
[null,"CONTINENT EUROPÉEN"]
[null,"FIDJI"]
[null,"FINLANDE"]
[null,"FRANCE "]
[null,"POLYNÉSIE FRANÇAISE"]
[null,"GABON"]
[null,"GAMBIE"]
[null,"GÉORGIE"]
[null,"ALLEMAGNE"]
[null,"GHANA"]
[null,"GRÈCE"]
[null,"GRENADE"]
[null,"PAYS GERMANOPHONES"]
[null,"GUATEMALA"]
[null,"GUINÉE"]
[null,"GUINÉE-BISSAU"]
[null,"GUYANE"]
[null,"HAÏTI"]
[null,"SAINT-SIÈGE (ÉTAT DE LA CITÉ DU VATICAN)"]
[null,"HONDURAS"]
[null,"HONG KONG"]
[null,"HONGRIE"]
[null,"ISLANDE"]
[null,"INDE"]
[null,"INDONÉSIE"]
[null,"IRAN"]
[null,"IRAK"]
[null,"IRLANDE"]
[null,"ISRAEL"]
[null,"ITALIE"]
[null,"JAMAÏQUE"]
[null,"JAPON"]
[null,"JORDANIE"]
[null,"KAZAKHSTAN"]
[null,"KENYA"]
[null,"KIRIBATI"]
[null,"KOWEÏT"]
[null,"KIRGHIZISTAN"]
[null,"RÉPUBLIQUE DÉMOCRATIQUE POPULAIRE DU LAOS"]
[null,"LETTONIE"]
[null,"LIBAN"]
[null,"LESOTHO"]
[null,"LIBÉRIA"]
[null,"LIBYE"]
[null,"LIECHTENSTEIN"]
[null,"LITHUANIE"]
[null,"LUXEMBOURG"]
[null,"MACÉDOINE"]
[null,"MADAGASCAR"]
[null,"MALAWI"]
[null,"MALAISIE"]
[null,"MALDIVES"]
[null,"MALI"]
[null,"MALTE"]
[null,"ÎLES MARSHALL"]
[null,"MAURITANIE"]
[null,"MAURICE"]
[null,"MEXIQUE"]
[null,"MICRONÉSIE"]
[null,"MOYEN-ORIENT"]
[null,"MOLDAVIE"]
[null,"MONACO"]
[null,"MONGOLIE"]
[null,"MAROC"]
[null,"MOZAMBIQUE"]
[null,"MYANMAR"]
[null,"NAMIBIE"]
[null,"NAURU "]
[null,"NÉPAL"]
[null,"PAYS-BAS"]
[null,"NOUVELLE-ZÉLANDE"]
[null,"NICARAGUA"]
[null,"NIGER"]
[null,"NIGÉRIA"]
[null,"PAYS NORDIQUES"]
[null,"AFRIQUE DU NORD"]
[null,"AMÉRIQUE DU NORD"]
[null,"CORÉE DU NORD"]
[null,"NORVÈGE"]
[null,"OCÉANIE"]
[null,"OMAN"]
[null,"PAKISTAN"]
[null,"PALAU"]
[null,"PANAMA"]
[null,"PAPOUASIE–NOUVELLE-GUINÉE"]
[null,"PARAGUAY"]
[null,"PÉROU"]
[null,"PHILIPPINES"]
[null,"POLOGNE"]
[null,"PORTUGAL"]
[null,"PORTO RICO"]
[null,"QATAR"]
[null,"ROUMANIE"]
[null,"FÉDÉRATION RUSSE"]
[null,"RWANDA"]
[null,"SAINT-CHRISTOPHE-ET-NIÉVÈS"]
[null,"SAINTE-LUCIE"]
[null,"SAINT-VINCENT-ET-LES-GRENADINES"]
[null,"SAMOA"]
[null,"SAINT-MARIN"]
[null,"SAO TOMÉ-ET-PRINCIPE"]
[null,"ARABIE SAOUDITE"]
[null,"SCANDINAVIE"]
[null,"SÉNÉGAL"]
[null,"SERBIE-ET-MONTÉNÉGRO"]
[null,"SEYCHELLES"]
[null,"SIERRA LEONE"]
[null,"SINGAPOUR"]
[null,"SLOVAQUIE"]
[null,"SLOVÉNIE"]
[null,"ÎLES SALOMON"]
[null,"SOMALIE"]
[null,"AFRIQUE DU SUD"]
[null,"AMÉRIQUE DU SUD"]
[null,"ASIE DU SUD-EST"]
[null,"CORÉE DU SUD"]
[null,"ESPAGNE "]
[null,"SRI LANKA"]
[null,"SOUDAN"]
[null,"SURINAME"]
[null,"SWAZILAND"]
[null,"SUÈDE"]
[null,"SUISSE"]
[null,"SYRIE"]
[null,"TAIWAN"]
[null,"TADJIKISTAN"]
[null,"TANZANIE"]
[null,"THAÏLANDE"]
[null,"TIMOR ORIENTAL"]
[null,"TOGO"]
[null,"TONGA"]
[null,"TRINIDAD ET TOBAGO"]
[null,"TUNISIE"]
[null,"TURQUIE"]
[null,"TURKMÉNISTAN"]
[null,"TUVALU"]
[null,"OUGANDA"]
[null,"UKRAINE"]
[null,"ÉMIRATS ARABES UNIS"]
[null,"ROYAUME-UNI"]
[null,"URUGUAY"]
[null,"URSS"]
[null,"OUZBÉKISTAN"]
[null,"VANUATU"]
[null,"VENEZUELA"]
[null,"VIETNAM"]
[null,"INDES OCCIDENTALES"]
[null,"SAHARA OCCIDENTAL"]
[null,"YÉMEN"]
[null,"ZAÏRE"]
[null,"ZAMBIE"]
[null,"ZIMBABWE"]
[]
["Pays de production 3","CANADA"]
[null,"ÉTATS-UNIS"]
[null,"AFGHANISTAN"]
[null,"AFRIQUE"]
[null,"ALBANIE"]
[null,"ALGÉRIE"]
[null,"AMÉRIQUE"]
[null,"CONTINENT AMÉRICAIN"]
[null,"ANDORRE"]
[null,"ANGOLA"]
[null,"ANTIGUA-ET-BARBUDA"]
[null,"ANTILLES"]
[null,"ARGENTINE"]
[null,"ARMÉNIE"]
[null,"ASIE"]
[null,"ASTRALASIE"]
[null,"AUSTRALIE"]
[null,"AUTRICHE"]
[null,"AZERBAÏDJAN"]
[null,"BAHAMAS"]
[null,"BAHREÏN"]
[null,"BALKANS"]
[null,"PAYS BALTES"]
[null,"BANGLADESH"]
[null,"BARBADE"]
[null,"BIÉLORUSSIE"]
[null,"BELGIQUE"]
[null,"BELIZE"]
[null,"BÉNIN"]
[null,"BHOUTAN"]
[null,"BOLIVIE"]
[null,"BOSNIE-HERZÉGOVINE"]
[null,"BOTSWANA"]
[null,"BRÉSIL"]
[null,"ÎLES BRITANNIQUES"]
[null,"BRUNEI DARUSSALAM"]
[null,"BULGARIE"]
[null,"BURKINA FASO"]
[null,"BIRMANIE"]
[null,"BURUNDI"]
[null,"CAMBODGE"]
[null,"CAMEROUN"]
[null,"CAP VERT"]
[null,"RÉPUBLIQUE CENTRAFRICAINE"]
[null,"AMÉRIQUE CENTRALE"]
[null,"TCHAD"]
[null,"CHILI"]
[null,"CHINE"]
[null,"COLOMBIE"]
[null,"COMORES"]
[null,"CONGO, RÉPUBLIQUE DÉMOCRATIQUE DU"]
[null,"COSTA RICA"]
[null,"CÔTE D’IVOIRE"]
[null,"CROATIE"]
[null,"CUBA"]
[null,"CHYPRE"]
[null,"RÉPUBLIQUE TCHÈQUE"]
[null,"DANEMARK"]
[null,"DJIBOUTI"]
[null,"DOMINIQUE"]
[null,"RÉPUBLIQUE DOMINICAINE"]
[null,"EUROPE DE L’EST"]
[null,"ÉQUATEUR"]
[null,"ÉGYPTE"]
[null,"EL SALVADOR"]
[null,"GUINÉE ÉQUATORIALE"]
[null,"ÉRYTHRÉE"]
[null,"ESTONIE"]
[null,"ÉTHIOPIE"]
[null,"EUROPE"]
[null,"CONTINENT EUROPÉEN"]
[null,"FIDJI"]
[null,"FINLANDE"]
[null,"FRANCE "]
[null,"POLYNÉSIE FRANÇAISE"]
[null,"GABON"]
[null,"GAMBIE"]
[null,"GÉORGIE"]
[null,"ALLEMAGNE"]
[null,"GHANA"]
[null,"GRÈCE"]
[null,"GRENADE"]
[null,"PAYS GERMANOPHONES"]
[null,"GUATEMALA"]
[null,"GUINÉE"]
[null,"GUINÉE-BISSAU"]
[null,"GUYANE"]
[null,"HAÏTI"]
[null,"SAINT-SIÈGE (ÉTAT DE LA CITÉ DU VATICAN)"]
[null,"HONDURAS"]
[null,"HONG KONG"]
[null,"HONGRIE"]
[null,"ISLANDE"]
[null,"INDE"]
[null,"INDONÉSIE"]
[null,"IRAN"]
[null,"IRAK"]
[null,"IRLANDE"]
[null,"ISRAEL"]
[null,"ITALIE"]
[null,"JAMAÏQUE"]
[null,"JAPON"]
[null,"JORDANIE"]
[null,"KAZAKHSTAN"]
[null,"KENYA"]
[null,"KIRIBATI"]
[null,"KOWEÏT"]
[null,"KIRGHIZISTAN"]
[null,"RÉPUBLIQUE DÉMOCRATIQUE POPULAIRE DU LAOS"]
[null,"LETTONIE"]
[null,"LIBAN"]
[null,"LESOTHO"]
[null,"LIBÉRIA"]
[null,"LIBYE"]
[null,"LIECHTENSTEIN"]
[null,"LITHUANIE"]
[null,"LUXEMBOURG"]
[null,"MACÉDOINE"]
[null,"MADAGASCAR"]
[null,"MALAWI"]
[null,"MALAISIE"]
[null,"MALDIVES"]
[null,"MALI"]
[null,"MALTE"]
[null,"ÎLES MARSHALL"]
[null,"MAURITANIE"]
[null,"MAURICE"]
[null,"MEXIQUE"]
[null,"MICRONÉSIE"]
[null,"MOYEN-ORIENT"]
[null,"MOLDAVIE"]
[null,"MONACO"]
[null,"MONGOLIE"]
[null,"MAROC"]
[null,"MOZAMBIQUE"]
[null,"MYANMAR"]
[null,"NAMIBIE"]
[null,"NAURU "]
[null,"NÉPAL"]
[null,"PAYS-BAS"]
[null,"NOUVELLE-ZÉLANDE"]
[null,"NICARAGUA"]
[null,"NIGER"]
[null,"NIGÉRIA"]
[null,"PAYS NORDIQUES"]
[null,"AFRIQUE DU NORD"]
[null,"AMÉRIQUE DU NORD"]
[null,"CORÉE DU NORD"]
[null,"NORVÈGE"]
[null,"OCÉANIE"]
[null,"OMAN"]
[null,"PAKISTAN"]
[null,"PALAU"]
[null,"PANAMA"]
[null,"PAPOUASIE–NOUVELLE-GUINÉE"]
[null,"PARAGUAY"]
[null,"PÉROU"]
[null,"PHILIPPINES"]
[null,"POLOGNE"]
[null,"PORTUGAL"]
[null,"PORTO RICO"]
[null,"QATAR"]
[null,"ROUMANIE"]
[null,"FÉDÉRATION RUSSE"]
[null,"RWANDA"]
[null,"SAINT-CHRISTOPHE-ET-NIÉVÈS"]
[null,"SAINTE-LUCIE"]
[null,"SAINT-VINCENT-ET-LES-GRENADINES"]
[null,"SAMOA"]
[null,"SAINT-MARIN"]
[null,"SAO TOMÉ-ET-PRINCIPE"]
[null,"ARABIE SAOUDITE"]
[null,"SCANDINAVIE"]
[null,"SÉNÉGAL"]
[null,"SERBIE-ET-MONTÉNÉGRO"]
[null,"SEYCHELLES"]
[null,"SIERRA LEONE"]
[null,"SINGAPOUR"]
[null,"SLOVAQUIE"]
[null,"SLOVÉNIE"]
[null,"ÎLES SALOMON"]
[null,"SOMALIE"]
[null,"AFRIQUE DU SUD"]
[null,"AMÉRIQUE DU SUD"]
[null,"ASIE DU SUD-EST"]
[null,"CORÉE DU SUD"]
[null,"ESPAGNE "]
[null,"SRI LANKA"]
[null,"SOUDAN"]
[null,"SURINAME"]
[null,"SWAZILAND"]
[null,"SUÈDE"]
[null,"SUISSE"]
[null,"SYRIE"]
[null,"TAIWAN"]
[null,"TADJIKISTAN"]
[null,"TANZANIE"]
[null,"THAÏLANDE"]
[null,"TIMOR ORIENTAL"]
[null,"TOGO"]
[null,"TONGA"]
[null,"TRINIDAD ET TOBAGO"]
[null,"TUNISIE"]
[null,"TURQUIE"]
[null,"TURKMÉNISTAN"]
[null,"TUVALU"]
[null,"OUGANDA"]
[null,"UKRAINE"]
[null,"ÉMIRATS ARABES UNIS"]
[null,"ROYAUME-UNI"]
[null,"URUGUAY"]
[null,"URSS"]
[null,"OUZBÉKISTAN"]
[null,"VANUATU"]
[null,"VENEZUELA"]
[null,"VIETNAM"]
[null,"INDES OCCIDENTALES"]
[null,"SAHARA OCCIDENTAL"]
[null,"YÉMEN"]
[null,"ZAÏRE"]
[null,"ZAMBIE"]
[null,"ZIMBABWE"]
[]
["Rôle du fournisseur du rapport de contenu musical","Diffuseur"]
[null,"Compositeur"]
[null,"Distributeur"]
[null,"Producteur"]
[null,"Éditeur"]
[]
["Rôle de la partie AV intéressée","Acteur"]
[null,"Auteur du scénario"]
[null,"Auteur des sous-titres"]
[null,"Réalisateur"]
[null,"Directeur de la photographie"]
[null,"Distributeur"]
[null,"Monteur"]
[null,"Producteur"]
[null,"Compagnie de production"]
[null,"Ingénieur du son"]
[]
["Rôle de la partie AV intéressée","Acteur"]
[null,"Auteur du scénario"]
[null,"Auteur des sous-titres"]
[null,"Réalisateur"]
[null,"Directeur de la photographie"]
[null,"Distributeur"]
[null,"Monteur"]
[null,"Producteur"]
[null,"Compagnie de production"]
[null,"Ingénieur du son"]
[]
["Rôle de la partie AV intéressée","Acteur"]
[null,"Auteur du scénario"]
[null,"Auteur des sous-titres"]
[null,"Réalisateur"]
[null,"Directeur de la photographie"]
[null,"Distributeur"]
[null,"Monteur"]
[null,"Producteur"]
[null,"Compagnie de production"]
[null,"Ingénieur du son"]
[]
[]
["Section détails du rapport de contenu musical harmonisé"]
[]
["Source de la musique","Oeuvres de commande","Commande spéciale"]
[null,"Musique de production/Musicothèque"]
[null,"Musique existante"]
[null,"Non spécifié"]
[]
["Rôle de la partie musicale intéressée","Auteur, parolier"]
[null,"Adapteur"]
[null,"Administrateur"]
[null,"Arrangeur"]
[null,"Compositeur"]
[null,"Compositeur/Auteur"]
[null,"Éditeur original"]
[null,"Éditeur substitut"]
[null,"Participant aux revenus de l’éditeur"]
[null,"Interprète associé"]
[null,"Sous-auteur"]
[null,"Sous-éditeur"]
[null,"Sous-arrangeur"]
[null,"Traducteur"]
[]
["Société d’affiliation","SOCAN"]
[null,"Aucune société"]
[null,"AACIMH"]
[null,"AAS"]
[null,"ABRAMUS"]
[null,"ACAM"]
[null,"ACCESS COPYRIGHT"]
[null,"ACCS"]
[null,"ACDAM"]
[null,"ACS"]
[null,"ACUM"]
[null,"ADAGP"]
[null,"ADAVIS"]
[null,"ADDAF"]
[null,"AEI-GUATEMALA"]
[null,"AEPI"]
[null,"AGADU"]
[null,"AKKA-LAA"]
[null,"AKM"]
[null,"ALBAUTOR"]
[null,"ALCS"]
[null,"AMAR"]
[null,"AMCOS"]
[null,"AMRA"]
[null,"AMUS"]
[null,"APA"]
[null,"APDAYC"]
[null,"APG-Japan"]
[null,"APRA"]
[null,"APSAV"]
[null,"ARGENTORES"]
[null,"ARMAUTHOR NGO"]
[null,"ARS"]
[null,"ARTEGSTION"]
[null,"ARTISJUS"]
[null,"ASCAP"]
[null,"AsDAC"]
[null,"ASDACS"]
[null,"ASSIM"]
[null,"ATHINA-SADA-S.A.D.A."]
[null,"ATN"]
[null,"AuPO CINEMA"]
[null,"AUSTRO-MECHANA (AUME)"]
[null,"AUTODIAHIRISI"]
[null,"AUTORARTE"]
[null,"AUTVIS"]
[null,"AWGACS"]
[null,"BBDA"]
[null,"BCDA"]
[null,"BeAT"]
[null,"BGDA"]
[null,"BILD-KUNST"]
[null,"BILDRECHT GmbH"]
[null,"Bildupphovsratt (Visual Copyright Society)"]
[null,"BMDA"]
[null,"BMI"]
[null,"BNDA"]
[null,"BONO"]
[null,"BSCAP"]
[null,"BSDA"]
[null,"BUBEDRA"]
[null,"BUMA"]
[null,"BUMDA"]
[null,"BURIDA"]
[null,"BUTODORA"]
[null,"CA"]
[null,"CARCC"]
[null,"CASH"]
[null,"CMC"]
[null,"CMRRA"]
[null,"COMPASS"]
[null,"COPY-DAN BILLEDER"]
[null,"COSCAP"]
[null,"COSOMA"]
[null,"COSON"]
[null,"COSOTA"]
[null,"COTT"]
[null,"CPSN"]
[null,"CREAIMAGEN"]
[null,"CSCS"]
[null,"DAC"]
[null,"DACS"]
[null,"DALRO"]
[null,"DAMA"]
[null,"DASC"]
[null,"DGA"]
[null,"DHFR"]
[null,"DILIA"]
[null,"DIRECTORES"]
[null,"DIRECTORS UK"]
[null,"DRCC"]
[null,"EAU"]
[null,"ECCO"]
[null,"FILMAUTOR"]
[null,"FILSCAP"]
[null,"GAI Uz"]
[null,"GCA (former SSA)"]
[null,"GEMA"]
[null,"GESAC"]
[null,"GESTOR"]
[null,"HDS-ZAMP"]
[null,"HUNGART"]
[null,"IMRO"]
[null,"IPRS"]
[null,"IVARO"]
[null,"JACAP"]
[null,"JASPAR"]
[null,"JASRAC"]
[null,"KazAK"]
[null,"KODA"]
[null,"KOMCA"]
[null,"KOPIOSTO"]
[null,"KOSA"]
[null,"KUVASTO"]
[null,"Kyrayzpatent"]
[null,"LATGA-A"]
[null,"LATINAUTOR"]
[null,"LIRA"]
[null,"LITA"]
[null,"LITERAR-MECHANA"]
[null,"MACP"]
[null,"MASA (MRMS)"]
[null,"MCA"]
[null,"MCPS"]
[null,"MCSC"]
[null,"MCSK"]
[null,"MCSN"]
[null,"MCT"]
[null,"MESAM"]
[null,"MILMUS"]
[null,"MOSCAP"]
[null,"MRCSN"]
[null,"MSG"]
[null,"MUSICAUTOR"]
[null,"MUST"]
[null,"NASCAM"]
[null,"NCB"]
[null,"NCIP"]
[null,"NICAUTOR"]
[null,"OMDA"]
[null,"ONDA"]
[null,"OSA"]
[null,"OTPDA"]
[null,"PAM CG"]
[null,"PAPPRI"]
[null,"PICTORIGHT"]
[null,"PROLITTERIS"]
[null,"PRS"]
[null,"RAO"]
[null,"RSAU"]
[null,"RUR"]
[null,"SABAM"]
[null,"SACD"]
[null,"SACEM"]
[null,"SACEMLUXEMBOURG"]
[null,"SACENC"]
[null,"SACERAU"]
[null,"SACIM"]
[null,"SACK"]
[null,"SACM"]
[null,"SACS"]
[null,"SACVEN"]
[null,"SADAIC"]
[null,"SADEMBRA"]
[null,"SADIA"]
[null,"SAIF"]
[null,"SAMRO"]
[null,"SANASTO"]
[null,"SARTEC"]
[null,"SASUR"]
[null,"SAVA"]
[null,"SAYCE"]
[null,"SAYCO"]
[null,"SAZAS"]
[null,"SBACEM"]
[null,"SCAM"]
[null,"SCD"]
[null,"SDADV"]
[null,"SDCSI"]
[null,"SESAC INC."]
[null,"SESAM"]
[null,"SETEM"]
[null,"SFP-ZAPA"]
[null,"SGACEDOM"]
[null,"SGAE"]
[null,"SGDL"]
[null,"SIAE"]
[null,"SICAM"]
[null,"SOBODAYCOM"]
[null,"SOCILANDRA"]
[null,"SOCINPRO"]
[null,"SODRAC"]
[null,"SOFAM"]
[null,"SOGEM"]
[null,"SOKOJ"]
[null,"SOMAAP"]
[null,"SOMAS"]
[null,"SOPE"]
[null,"SOZA"]
[null,"SPA"]
[null,"SPAC"]
[null,"SPACQ"]
[null,"SQN"]
[null,"SSA"]
[null,"STEF"]
[null,"STEMRA"]
[null,"STIM"]
[null,"SUISA"]
[null,"SUISSIMAGE"]
[null,"TALI"]
[null,"TEOSTO"]
[null,"The Author's Registry Inc"]
[null,"The Society of Authors (SOA)"]
[null,"TONO"]
[null,"UACRR"]
[null,"UBC"]
[null,"UCMR-ADA"]
[null,"UFFICIO GIURIDICO"]
[null,"UFW"]
[null,"UNAC-SA"]
[null,"UPRAVIS"]
[null,"UPRS"]
[null,"VAGA"]
[null,"VCPMC"]
[null,"VDFS"]
[null,"VEGAP"]
[null,"VEVAM"]
[null,"VISCOPY"]
[null,"WAMI"]
[null,"WGA"]
[null,"ZAIKS"]
[null,"ZAMCOPS"]
[null,"ZAMP - MACEDOINE"]
[null,"ZAMP Association of Slovenia"]
[null,"ZIMURA"]
["Champ","Sélections du menu déroulant"]
[]
["Utilisation de la Musique","MUSIQUE DE FOND"]
[null,"GÉNÉRIQUE DE FIN"]
[null,"EN VEDETTE/VISUELLE"]
[null,"THÈME D’OUVERTURE"]
[null,"INDICATIF/LOGO"]

{"sheet":"CisacSocietycodes","index":3,"n_rows":365,"n_cols":2,"rows_kept":365,"cut":false,"hidden":true,"merged":[]}
["Society Acronym","Society Code"]
["AACIMH",226]
["AAS",253]
["ABRAC",217]
["ABRAMUS",201]
["ABYROY",288]
["ACAM",107]
["ACCESS COPYRIGHT",210]
["ACCS",306]
["ACDAM",103]
["ACEMLA",76]
["ACS",260]
["ACUM",1]
["ADAGP",148]
["ADAVIS",230]
["ADDAF",2]
["AEI",250]
["AEI-GUATEMALA",250]
["AEPI",3]
["AGADU",4]
["AGAYC",114]
["AIPA",289]
["AKKA-LAA",122]
["AKM",5]
["ALBAUTOR",127]
["ALCS",54]
["AMAR",30]
["AMAR SOMBRÁS",30]
["AMCOS",12]
["AMPAL",162]
["AMRA",17]
["AMUS",273]
["ANACIM",218]
["ANCO",323]
["APA",15]
["APDAYC",7]
["APG-Japan",163]
["APRA",8]
["APSAV",164]
["ARGENTORES",14]
["ARMAUTHOR",209]
["ARMAUTHOR NGO",209]
["ARMONIA",320]
["ARS",149]
["ARTEGESTION",236]
["ARTISJUS",9]
["ASCAP",10]
["ASCRL",334]
["AsDAC",202]
["ASDACS",251]
["ASSIM",219]
["ATHINA- SADA - S.A.D.A.",281]
["ATIDA",220]
["ATN",141]
["AUPO CINEMA",274]
["AUSTRO-MECHANA (AUME)",11]
["AUTODIA",275]
["AUTODIAHIRISI",561]
["AUTORARTE",166]
["AUTVIS",231]
["AWA",13]
["AWGACS",203]
["AzDG",290]
["BBDA",45]
["BCDA",47]
["BeAT",266]
["BEELDRECHT",150]
["BGDA",18]
["BILD-KUNST",132]
["BILDRECHT GmbH",157]
["Bildupphovsrätt (Visual Copyright Society)",152]
["BMDA",19]
["BMI",21]
["BNDA",125]
["BONO",151]
["BSCAP",238]
["BSDA",25]
["BUBEDRA",37]
["BUCADA",6]
["BUMA",23]
["BUMDA",16]
["BURAFO",167]
["BURIDA",24]
["BUS",152]
["BUTODRA",130]
["CAL",168]
["CAPAC",27]
["CAPASSO",283]
["CARCC",264]
["CASH",26]
["CELAS",322]
["CHA",108]
["CIAGP",0]
["CIAM",0]
["CISAC",312]
["CIS-Net AVI",316]
["CMC",239]
["CMRRA",88]
["COLCCMA",252]
["COMPASS",106]
["COPY-DAN BILLEDER",139]
["Copyright Agency",168]
["CopyRo",175]
["COSBOTS",331]
["COSCAP",169]
["COSGA",123]
["COSOMA",124]
["COSON",268]
["COSOTA",223]
["COSOZA",284]
["COTT",96]
["CPSN",170]
["CREAIMAGEN",171]
["CRSEA",325]
["CSCS",212]
["CSI",315]
["DAC",248]
["DACIN SARA",296]
["DACS",153]
["DALRO",142]
["DAMA",240]
["DASC",276]
["DBCA",293]
["DEGNZ",332]
["DGA",172]
["DGK",333]
["DHFR",271]
["DILIA",31]
["DIRECTORES",173]
["DIRECTORS UK",145]
["DIVA",310]
["DRCC",213]
["EAU",116]
["ECAD",308]
["ECCO",214]
["ESMAA",784]
["EVA",322]
["FastTrack DCN",313]
["FILMAUTOR",147]
["FILMJUS",174]
["FILSCAP",32]
["FONOPERU",222]
["GAI Uz",261]
["GCA",204]
["GCA (former SSA)",204]
["GEDAR",297]
["GEMA",35]
["GEMA-US",556]
["GESAC",301]
["GESTOR",232]
["GHAMRO",285]
["GRD",555]
["HAA",144]
["HDS-ZAMP",111]
["HEXACORP LTD",783]
["HFA",34]
["HUNGART",154]
["ICE",319]
["ICG",229]
["ICSC",329]
["IDA",314]
["IMJV",305]
["IMPF",326]
["IMRO",128]
["INTL-REP",317]
["IPRS",36]
["ISOCRATIS",335]
["IVARO",247]
["JACAP",176]
["JASPAR",270]
["JASRAC",38]
["KazAK",177]
["KCI",109]
["KODA",40]
["KOLAA",287]
["KOMCA",118]
["KOPIOSTO",138]
["KOSA",178]
["KOSCAP",336]
["KUVASTO",179]
["Kyrgyzpatent",215]
["LAA",113]
["LATGA",110]
["LATGA-A",110]
["LATINAUTOR",302]
["LatinNet",309]
["LIRA",120]
["LITA",28]
["LITERAR-MECHANA",41]
["LVG",42]
["MACA",265]
["MACP",104]
["MASA (MRMS)",105]
["MCPS",44]
["MCPS-PRS Alliance",311]
["MCSC",119]
["MCSK",43]
["MCSN",22]
["MCT",126]
["MESAM",117]
["MIS@ASIA",307]
["MOSCAP",272]
["MRCSN",258]
["MRS",46]
["MSG",200]
["MUSICAUTOR",39]
["MUSIKEDITION",180]
["MUST",161]
["MÜST",161]
["NASCAM",102]
["NCB",48]
["NCIP",160]
["NexTone",782]
["NICAUTOR",241]
["NMPA",181]
["NORD-DOC",303]
["OAZA",327]
["ODDA",286]
["OFA",291]
["OLE MEDIA MANAGEMENT",562]
["OMDA",33]
["ONDA",49]
["OOA-S",298]
["OSA",50]
["OTDAV",82]
["OTPDA",82]
["PAECOL",560]
["PAM CG",249]
["PAPPRI",182]
["PICTORIGHT",256]
["PROCAN",53]
["PROLITTERIS",51]
["PRS",52]
["PUBLISHERS",321]
["RAO",94]
["REDES",294]
["ROMS",228]
["RSAU",277]
["RUR",278]
["SAA",328]
["Sabam",55]
["SABEM",221]
["SACD",56]
["SACEM",58]
["SACEM LUXEMBOURG",233]
["SACEM-LIBAN",559]
["SACEMLUXEMBOURG",233]
["SACEM-US",557]
["SACENC",235]
["SACERAU",57]
["SACIM",242]
["SACIM, EGC",242]
["SACK",183]
["SACM",59]
["SACS",263]
["SACVEN",60]
["SADA",131]
["SADAIC",61]
["SADEMBRA",62]
["SADH",135]
["SADIA",243]
["SAIF",225]
["SAMRO",63]
["SANASTO",280]
["SARRAL",81]
["SARTEC",184]
["SASUR",244]
["SAVA",257]
["SAYCE",65]
["SAYCO",84]
["SAZAS",112]
["SBACEM",66]
["SBAT",67]
["Scam",73]
["SCD",29]
["SCM-COOPERATIVA",299]
["SDADV",279]
["SDCSI",259]
["SDRM",68]
["SESAC Inc.",71]
["SESAM",185]
["SETEM",245]
["SFF",192]
["SGA",208]
["SGACEDOM",227]
["SGAE",72]
["SGAE-NY",558]
["SGDL",186]
["SGS",318]
["SIAE",74]
["SICAM",86]
["SINEBIR",262]
["SLPRS",134]
["SNAC",187]
["SOBODAYCOM",129]
["SOCAN",101]
["Société de l'Image",188]
["SOCILADRA",254]
["SOCINADA",92]
["SOCINPRO",189]
["SODART",205]
["SODAV",25]
["SODOMAPLA",255]
["SODRAC",20]
["SOFAM",137]
["SOGEM",70]
["SOKOJ",64]
["SOMAAP",155]
["SOMAS",224]
["SONECA",83]
["SONGCODE",304]
["SOPE",190]
["SOUNDREEF",781]
["SOZA",85]
["SPA",69]
["SPAC",146]
["SPACEM",87]
["SPACQ",191]
["SQN",216]
["SSA",91]
["STEF",77]
["STEMRA",78]
["STIM",79]
["SUISA",80]
["SUISSIMAGE",75]
["TALI",237]
["TEATERAUTOR",143]
["TEOSTO",89]
["TEST_RME",0]
["The Author's Registry Inc.",207]
["The Society of Authors (SOA)",193]
["TONO",90]
["UACRR",140]
["UBC",93]
["UCMR-ADA",115]
["UFFICIO GIURIDICO",194]
["UFFICIO LEGALE",194]
["UFW",206]
["UNAC-SA",282]
["UNISON",780]
["UPRAVIS",267]
["UPRS",234]
["VAGA",156]
["VBK",157]
["VCPMC",246]
["VdFS",121]
["VEGAP",158]
["VEVAM",195]
["VG BILD-KUNST",132]
["VG WORT",95]
["VISCOPY",159]
["VISDA",139]
["WAMI",269]
["WDW",0]
["WGA",196]
["WGJ",197]
["WID Centre",300]
["ZAIKS",97]
["ZAMCOPS",133]
["ZAMP - Macédoine",136]
["ZAMP Association of Slovenia",198]
["ZAMP Slovenia",198]
["ZAMP-MACEDOINE",136]
["ZAPA",199]
["ZIMURA",98]

{"sheet":"Guide de l’utilisateur","index":4,"n_rows":19,"n_cols":1,"rows_kept":19,"cut":false,"hidden":false,"merged":[[18,0,18,1]]}
["Guide l’utilisateur"]
["Les champs marqués d’un astérisque (*) sont obligatoires"]
["Les cellules avec une liste déroulante sont également surlignées en orange."]
["Notes"]
["Le numéro de séquence de chaque titre musical s’affiche automatiquement lorsque le titre musical est saisi. *NOTE* il n’est pas nécessaire d’ajouter le titre de la musique dans chaque ligne pour la même séquence d’œuvre/« cue » # "]
["La durée totale de la musique dans la partie supérieure du rapport de contenu musical est un champ libre et doit être saisie sous la forme HH:MM:SS. "]
["La durée calculée de la musique est automatiquement remplie en fonction des durées de la musique ajoutées au corps du rapport de contenu musical. "]
["La durée de la musique (colonne F) est un champ obligatoire.  "]
["Il y a 2 façons de fournir ces informations obligatoires"]
["Option 1 : utiliser les champs Début et Fin des colonnes D et E. Si vous utilisez cette option, le champ Durée calculée de la musique de la colonne G se remplira automatiquement"]
["ou"]
["Option 2 : utiliser la durée de la musique dans la colonne F – si vous utilisez cette option, le champ Durée calculée de la musique de la colonne G se remplira aussi automatiquement"]
["Exemple de la façon d’indiquer une version du rapport de contenu musical où les territoires sont exclus "]
[{"$error":"#VALUE!"}]
["Exemple de source de l’identifiant AV, Identifiant AV, Source de l'identifiant de production, Identifiant de production"]
[{"$error":"#VALUE!"}]
["Note : Lorsque vous insérez une nouvelle ligne, veuillez copier une ligne existante puis la coller en utilisant « insérer les cellules copiées ». Ce processus reportera toutes les formules et macros dans la ligne insérée."]
[{"$error":"#VALUE!"}]
["Fin de la feuille de travail"]

{"sheet":"Normes et règles","index":5,"n_rows":69,"n_cols":4,"rows_kept":69,"cut":false,"hidden":false,"merged":[[19,0,19,3],[46,0,46,3],[62,0,62,3],[12,0,12,3],[13,0,13,3],[14,0,14,3],[15,0,15,3],[16,0,16,3],[17,0,17,3],[11,0,11,3],[0,0,0,3],[1,0,1,3],[2,0,2,3],[3,0,3,3],[4,0,4,3],[5,0,5,3],[6,0,6,3],[7,0,7,3],[8,0,8,3],[9,0,9,3],[10,0,10,3]]}
["Terminologie des rapports de contenu musical"]
["Source de la musique"]
["Existant/Licencié/Indépendant :  Une œuvre musicale qui existait avant la commande de la production AV, par exemple une chanson pop lancée commercialement."]
["Musique de production/Musicothèque :  La musique de production (également connue sous le nom de musique de bibliothèque ou musicothèque) comprend une œuvre musicale et un enregistrement sonore dont les droits sont regroupés pour une synchronisation ou un doublage sous licence dans des productions audio ou audiovisuelles (des publicités télévisées ou radio aux longs métrages)."]
["Oeuvres de commande: Oeuvre musicale originale de commande écrite spécifiquement pour une production audiovisuelle, (Terminologie parfois employée par le marché américain uniquement : score ou work-for-hire.)"]
["Utilisation de la musique"]
["Thème d'ouverture (ou principal) : désigne la musique qui identifie un programme, un film ou une série au début ou à l'intérieur du programme, du film ou de la série."]
["Thème de clôture (ou de fin) : musique qui identifie un programme, un film ou une série à la fin ou à l'intérieur du programme, du film ou de la série."]
["Musique visuelle / de premier plan ou musique source : musique s’inscrivant dans l’une ou l’autre des catégories suivantes:\n(a) musique interprétée par un ou plusieurs personnages représentés à l’écran ou présentée comme parvenant aux oreilles d’un ou plusieurs personnages dans la scène présentée;\n(b) musique interprétée dans un vidéoclip\n(c) musique exécutée en rapport avec des séquences de danse chorégraphiée"]
["Musique de fond : Musique dramatique, musique de fond ou musique de partition s’entend de musique qui n’est ni un thème musical ni de la musique visuelle."]
["Indicatif musical : musique qui identifie la société de production au début et/ou à la fin d'une émission de télévision, d'un film ou d'une série télévisée et qui n'est pas un thème."]
["Type de droit"]
["Droit mécanique (reproduction) :  Le droit d’enregistrer, de reproduire et de distribuer une œuvre sur un support sonore (p. ex., fichiers numériques, CD, DVD, Blu-Ray, etc.)"]
["Droit d’exécution :  Le droit d’exécuter ou de transmettre publiquement des œuvres musicales, littéraires ou dramatiques en direct ou par le biais de médias enregistrés."]
["Droit de synchronisation :  Le droit d’inclure et de combiner une œuvre, soit complètement, soit en partie, en relation temporelle avec des œuvres ou d’autres catégories pour la création d’une production audiovisuelle, d’une œuvre multimédia ou d’une base de données."]
["Autre"]
["Domaine public :  Les œuvres du domaine public sont celles dont les droits de propriété intellectuelle ont expiré, ont été perdus ou sont inapplicables. Comme les droits varient d’un pays à l’autre, une œuvre peut être soumise à des droits dans un pays et être dans le domaine public dans un autre."]
["Éléments de données des rapports de contenu musical"]
["Libellé du champ","Valeurs","Condition \nO = obligatoire\nC = conditionnel\nF = faculatif","Description"]
["Production"]
["Type de production","Alphanumérique","O","Type d’œuvre AV, valeurs = F pour film/production unique ou S pour Série. "]
["Catégorie de production","Alphanumérique","O","Type d’œuvre AV, genre, etc"]
["Titre de la production","Alphanumérique","O","Titre de l’œuvre AV, du film, de la série ou de l’émission"]
["Titre de l’épisode ","Alphanumérique","C","Titre d’un épisode"]
["Numéro de l’épisode","Alphanumérique","C","Numéro assigné à un épisode"]
["Numéro de la saison","Alphanumérique","F","Numéro assigné à une saison"]
["Autres titres de la production","Alphanumérique","F","Tout autre titre sous lequel le film, la série ou l’émission peut être connu incluant en langue étrangère"]
["Autres titres de l’épisode","Alphanumérique","F","Tout autre titre sous lequel l’épisode peut être connu incluant en langue étrangère"]
["Langue","Alphanumérique","F","Langue de la production"]
["Durée de la production","Durée HHMMSS","O","Durée de l’œuvre AV, du programme/émission exprimée en heures, minutes et secondes"]
["Durée totale de la musique","Durée HHMMSS","F","Durée totale de la musique jouée dans l’œuvre AV, le programme ou l’émission, exprimée en heures, minutes et secondes"]
["Version","Oui/Non?","F","Indique s’il existe des versions différentes de la même œuvre AV, programme/émission"]
["Catégorie de version","Alphanumérique","C","Le type spécifique du contenu AV pour lequel l’œuvre audiovisuelle a été créée, si applicable"]
["Commentaire sur la version","Alphanumérique","C","Champ de texte ouvert pour inclure des informations supplémentaires sur la version, par exemple le nom du fournisseur de service numérique ou du diffuseur."]
["Territoire/pays de la version","Alphanumérique","C","Territoire ou pays pour lequel la version a été produite"]
["Année de production","Date AAAA","O","Année de production, l’année où la production du film ou de l’épisode d’une série a été achevée"]
["Pays de production","ISO 3133 2 \nAlpha Code","O","Pays d’origine de la société de production de l’œuvre audiovisuelle"]
["Première date de parution","Date\nAAAAMMJJ","F","Première date à laquelle l’œuvre AV a été diffusée ou exploitée. Date de première diffusion. Date de première exploitation"]
["Source de l’identifiant AV","Alphanumérique","F","Identifiants internationaux de l’œuvre AV, EIDR, ISAN, etc."]
["Identifiant AV","Alphanumérique","F","Numéro de l'identifiant AV"]
["Source de l’identifiant de production","Alphanumérique","F","Source de l’identifiant détenu localement pour l’œuvre AV. Par exemple en provenance d’une ODE, d’une maison de production, d’un éditeur, etc."]
["Identifiant de production/ID","Alphanumérique","F","Autre identifiant pour l’œuvre AV. Identifiant du film, de l’émission, de la série ou de l’épisode d’une série"]
["Rôle des parties AV intéressées","Alphanumérique","F","Parties intéressées de l’œuvre AV, par exemple le producteur, l’acteur, le réalisateur du film, etc. "]
["Nom de la partie AV intéressée","Alphanumérique","F","Nom de l’acteur, du réalisateur, de la compagnie de production, etc."]
["Réseau/Station","Alphanumérique","F","Télédiffuseur, réseau ou station où la production a été diffusée la première fois"]
["Territoire de première diffusion","Alphanumérique","F","Territoire ou pays où la production a été diffusée la première fois"]
["Musique"]
["Numéro de séquence","Alphanumérique","F","Nombre de l’ordre des « cues » (pas nécessairement l’ordre de la musique utilisée)"]
["Titre de la musique","Alphanumérique","F","Titre ou nom du « cue », de la chanson, de l’œuvre ou de la pièce"]
["Rôle de la partie musicale intéressée","Alphanumérique","O","Parties intéressées dans l’œuvre musicale :\nAuteur, parolier, etc."]
["Nom de la partie musicale intéressée","Alphanumérique","O","Nom du compositeur, de l’auteur, de l’éditeur, etc."]
["Société d’affiliation","CISAC 3\nCode caractère","F","Société des parties intéressées, par exemple le compositeur, l’auteur, l’arrangeur, l’éditeur, etc. (obligatoire pour les sociétés)"]
["Numéro IPI","Numéro à 11 chiffres","F","Le numéro du nom IPI assigné au compositeur, à l’auteur, à l’arrangeur, à l’éditeur, etc. (obligatoire pour les sociétés)"]
["Durée de la musique","Durée HHMMSS","O","Durée de l’œuvre musicale exprimée en heures, minutes et secondes"]
["Début","Durée HHMMSS","F","Moment où l’œuvre musicale débute"]
["Fin","Durée HHMMSS","F","Moment où l’œuvre musicale se termine"]
["% de parts des parties musicales intéressées","001.00 à 100.00","C","Pourcentage de la musique contrôlé par compositeurs 50 % parts et l’éditeur 50 % parts\nObligatoire pour les compagnies de production américaines s’il s’agit d’une commande (obligatoire pour les sociétés)"]
["Source de la musique","Alphanumérique","O","Source de l’œuvre musicale. Commande = originale = œuvre réalisée contre rémunération"]
["ISWC",null,"F","\"International Standard Work Code\" assigné à cette œuvre."]
["ISRC",null,"F","\"International Standard Recording Code\" assigné à cette œuvre."]
["Interprète","Alphanumérique","F","Nom de l’interprète de l’œuvre musicale."]
["Utilisation de la musique","Alphanumérique","O","Manière dont l’œuvre musicale a été utilisée dans l’œuvre AV"]
["Information sure le rapport de contenu musical"]
["Classification de rapport de contenu musical","Alphanumérique","O","Classification du rapport de contenu musical"]
["Fournisseur du rapport de contenu musical","Alphanumérique","O","Nom du fournisseur du rapport de contenu musical"]
["Rapport de contenu musical préparé par","Alphanumérique","O","Nom de la personne qui a créé le rapport de contenu musical"]
["Rôle du fournisseur du rapport de contenu musical","Alphanumérique","F","Ce fournisseur peut être : diffuseur, compositeur, distributeur, producteur, éditeur ou société"]
["Date de soumission/Date de révision","Date AAAAMMJJ","O","Date à laquelle le rapport de contenu musical a été soumis ou mis à jour la dernière fois"]
["Fin de la classeur"]

{"sheet":"z","index":6,"n_rows":0,"n_cols":0,"rows_kept":0,"cut":false,"hidden":true,"merged":[]}

{"sheet":"Drop Down Menu and values","index":7,"n_rows":1613,"n_cols":2,"rows_kept":1613,"cut":false,"hidden":true,"merged":[]}
["Harmonized Cue sheet drop down fields and their values"]
[]
["Upper portion of the Harmonized Cue sheet"]
[]
["Field","Drop Down Values"]
[]
["Cue Sheet Classification","Original"]
[null,"Revision"]
[null,"Draft"]
[]
["Production Type","Not A Series"]
[null,"Series"]
[]
["Production Category","Animation, Cartoon"]
[null,"Commercials"]
[null,"Documentary"]
[null,"Feature Film, Theatrical, TV Movie, Movie"]
[null,"Infomercial, Paid Program"]
[null,"Mini-Series"]
[null,"Multimedia"]
[null,"News"]
[null,"One Offs, Non Series"]
[null,"Other"]
[null,"Reality"]
[null,"TV Series, Cable Series etc"]
[null,"Soap Opera, Tele-Novelas"]
[null,"Specials"]
[null,"Sporting Event, Sports Related Programme"]
[null,"Trailers"]
[]
["Version","Yes"]
[null,"No"]
[]
["Version Category","3-D"]
[null,"Airline"]
[null,"App"]
[null,"Black and White"]
[null,"Cable "]
[null,"Color"]
[null,"Director's Cut"]
[null,"Digital Service Provider"]
[null,"Domestic"]
[null,"Home Video"]
[null,"Internet"]
[null,"International"]
[null,"Long"]
[null,"Music Video"]
[null,"Network"]
[null,"New Dubbing"]
[null,"New Music"]
[null,"Original"]
[null,"Restored"]
[null,"Short "]
[null,"Silent Movie"]
[null,"Syndicated"]
[null,"Theatrical"]
[null,"Theme Park"]
[]
["Version Territory/Country","CANADA"]
[null,"USA"]
[null,"WORLD"]
[null,"AFGHANISTAN"]
[null,"AFRICA"]
[null,"ALBANIA"]
[null,"ALGERIA"]
[null,"AMERICA"]
[null,"AMERICAN CONTINENT"]
[null,"ANDORRA"]
[null,"ANGOLA"]
[null,"ANTIGUA AND BARBUDA"]
[null,"ANTILLES"]
[null,"ARGENTINA"]
[null,"ARMENIA"]
[null,"ASIA"]
[null,"AUSTRALASIA"]
[null,"AUSTRALIA"]
[null,"AUSTRIA"]
[null,"AZERBAIJAN"]
[null,"BAHAMAS"]
[null,"BAHRAIN"]
[null,"BALKANS"]
[null,"BALTIC STATES"]
[null,"BANGLADESH"]
[null,"BARBADOS"]
[null,"BELARUS"]
[null,"BELGIUM"]
[null,"BELIZE"]
[null,"BENIN"]
[null,"BHUTAN"]
[null,"BOLIVIA"]
[null,"BOSNIA AND HERZEGOVINA"]
[null,"BOTSWANA"]
[null,"BRAZIL"]
[null,"BRITISH ISLES"]
[null,"BRUNEI DARUSSALAM"]
[null,"BULGARIA"]
[null,"BURKINA FASO"]
[null,"BURMA"]
[null,"BURUNDI"]
[null,"CAMBODIA"]
[null,"CAMEROON"]
[null,"CAPE VERDE"]
[null,"CENTRAL AFRICAN REPUBLIC"]
[null,"CENTRAL AMERICA"]
[null,"CHAD"]
[null,"CHILE"]
[null,"CHINA"]
[null,"COLOMBIA"]
[null,"COMOROS"]
[null,"CONGO, THE DEMOCRATIC REPUBLIC OF THE"]
[null,"COSTA RICA"]
[null,"COTE D'IVOIRE"]
[null,"CORATIA"]
[null,"CUBA"]
[null,"CYPRUS"]
[null,"CZECH REPUBLIC"]
[null,"DENMARK"]
[null,"DJIBOUTI"]
[null,"DOMINICA"]
[null,"DOMINICAN REPUBLIC"]
[null,"EASTERN EUROPE"]
[null,"ECUADOR"]
[null,"EGYPT"]
[null,"EL SALVADOR"]
[null,"EQUATORIAL GUINEA"]
[null,"ERITREA"]
[null,"ESTONIA"]
[null,"ETHIOPIA"]
[null,"EUROPE"]
[null,"EUROPEAN CONTINENT"]
[null,"FIJI"]
[null,"FINLAND"]
[null,"FRANCE "]
[null,"FRENCH POLYNESIA"]
[null,"GABON"]
[null,"GAMBIA"]
[null,"GEORGIA"]
[null,"GERMANY"]
[null,"GHANA"]
[null,"GREECE"]
[null,"GRENADA"]
[null,"GSA COUNTRIES"]
[null,"GUATEMALA"]
[null,"GUINEA"]
[null,"GUINEA-BISSAU"]
[null,"GUYANA"]
[null,"HAITI"]
[null,"HOLY SEE (VATICAN CITY STATE)"]
[null,"HONDURAS"]
[null,"HONG KONG"]
[null,"HUNGARY"]
[null,"ICELAND"]
[null,"INDIA"]
[null,"INDONESIA"]
[null,"IRAN"]
[null,"IRAQ"]
[null,"IRELAND"]
[null,"ISRAEL"]
[null,"ITALY"]
[null,"JAMAICA"]
[null,"JAPAN"]
[null,"JORDAN"]
[null,"KAZAKHSTAN"]
[null,"KENYA"]
[null,"KIRIBATI"]
[null,"KUWAIT"]
[null,"KYRGYZSTAN"]
[null,"LAO PEOPLE'S DEMOCRATIC REPUBLIC"]
[null,"LATVIA"]
[null,"LEBANON"]
[null,"LESOTHO"]
[null,"LIBERIA"]
[null,"LIBYA"]
[null,"LIECHTENSTEIN"]
[null,"LITHUANIA"]
[null,"LUXEMBOURG"]
[null,"MACEDONIA"]
[null,"MADAGASCAR"]
[null,"MALAWI"]
[null,"MALAYSIA"]
[null,"MALDIVES"]
[null,"MALI"]
[null,"MALTA"]
[null,"MARSHALL ISLANDS"]
[null,"MAURITANIA"]
[null,"MAURITIUS"]
[null,"MEXICO"]
[null,"MICRONESIA"]
[null,"MIDDLE EAST"]
[null,"MOLDOVA"]
[null,"MONACO"]
[null,"MONGOLIA"]
[null,"MOROCCO"]
[null,"MOZAMBIQUE"]
[null,"MYANMAR"]
[null,"NAMIBIA"]
[null,"NAURU "]
[null,"NEPAL"]
[null,"NETHERLANDS"]
[null,"NEW ZEALAND"]
[null,"NICARAGUA"]
[null,"NIGER"]
[null,"NIGERIA"]
[null,"NORDIC COUNTRIES"]
[null,"NORTH AFRICA"]
[null,"NORTH AMERICA"]
[null,"NORTH KOREA"]
[null,"NORWAY"]
[null,"OCEANIA"]
[null,"OMAN"]
[null,"PAKISTAN"]
[null,"PALAU"]
[null,"PANAMA"]
[null,"PAPUA NEW GUINEA"]
[null,"PARAGUAY"]
[null,"PERU"]
[null,"PHILIPPINES"]
[null,"POLAND"]
[null,"PORTUGAL"]
[null,"PUERTO RICO"]
[null,"QATAR"]
[null,"ROMANIA"]
[null,"RUSSIAN FEDERATION"]
[null,"RWANDA"]
[null,"SAINT KITTS AND NEVIS"]
[null,"SAINT LUCIA"]
[null,"SAINT VINCENT AND THE GRENADINES"]
[null,"SAMOA"]
[null,"SAN MARINO"]
[null,"SAO TOME AND PRINCIPE"]
[null,"SAUDI ARABIA"]
[null,"SCANDINAVIA"]
[null,"SENEGAL"]
[null,"SERVIA AND MONTENEGRO"]
[null,"SEYCHELLES"]
[null,"SIERRA LEONE"]
[null,"SINGAPORE"]
[null,"SLOVAKIA"]
[null,"SLOVENIA"]
[null,"SOLOMON ISLANDS"]
[null,"SOMALIA"]
[null,"SOUTH AFRICA"]
[null,"SOUTH AMERICA"]
[null,"SOUTH EAST ASIA"]
[null,"SOUTH KOREA"]
[null,"SPAIN "]
[null,"SRI LANKA"]
[null,"SUDAN"]
[null,"SURINAME"]
[null,"SWAZILAND"]
[null,"SWEDEN"]
[null,"SWITZERLAND"]
[null,"SYRIA"]
[null,"TAIWAN"]
[null,"TAJIKISTAN"]
[null,"TANZANIA"]
[null,"THAILAND"]
[null,"TIMOR-LESTE"]
[null,"TOGO"]
[null,"TONGA"]
[null,"TRINIDAD AND TOBAGO"]
[null,"TUNISIA"]
[null,"TURKEY"]
[null,"TURKMENISTAN"]
[null,"TUVALU"]
[null,"UGANDA"]
[null,"UKRAINE"]
[null,"UNITED ARAB EMIRATES"]
[null,"UNITED KINGDOM"]
[null,"URUGUAY"]
[null,"USSR"]
[null,"UZBEKISTAN"]
[null,"VANUATU"]
[null,"VENEZUELA"]
[null,"VIETNAM"]
[null,"WEST INDIES"]
[null,"WESTERN SAHARA"]
[null,"WORLD"]
[null,"YEMEN"]
[null,"ZAIRE"]
[null,"ZAMBIA"]
[null,"ZIMBABWE"]
["Territory of First Broadcast","CANADA"]
[null,"USA"]
[null,"AFGHANISTAN"]
[null,"AFRICA"]
[null,"ALBANIA"]
[null,"ALGERIA"]
[null,"AMERICA"]
[null,"AMERICAN CONTINENT"]
[null,"ANDORRA"]
[null,"ANGOLA"]
[null,"ANTIGUA AND BARBUDA"]
[null,"ANTILLES"]
[null,"ARGENTINA"]
[null,"ARMENIA"]
[null,"ASIA"]
[null,"AUSTRALASIA"]
[null,"AUSTRALIA"]
[null,"AUSTRIA"]
[null,"AZERBAIJAN"]
[null,"BAHAMAS"]
[null,"BAHRAIN"]
[null,"BALKANS"]
[null,"BALTIC STATES"]
[null,"BANGLADESH"]
[null,"BARBADOS"]
[null,"BELARUS"]
[null,"BELGIUM"]
[null,"BELIZE"]
[null,"BENIN"]
[null,"BHUTAN"]
[null,"BOLIVIA"]
[null,"BOSNIA AND HERZEGOVINA"]
[null,"BOTSWANA"]
[null,"BRAZIL"]
[null,"BRITISH ISLES"]
[null,"BRUNEI DARUSSALAM"]
[null,"BULGARIA"]
[null,"BURKINA FASO"]
[null,"BURMA"]
[null,"BURUNDI"]
[null,"CAMBODIA"]
[null,"CAMEROON"]
[null,"CAPE VERDE"]
[null,"CENTRAL AFRICAN REPUBLIC"]
[null,"CENTRAL AMERICA"]
[null,"CHAD"]
[null,"CHILE"]
[null,"CHINA"]
[null,"COLOMBIA"]
[null,"COMOROS"]
[null,"CONGO, THE DEMOCRATIC REPUBLIC OF THE"]
[null,"COSTA RICA"]
[null,"COTE D'IVOIRE"]
[null,"CORATIA"]
[null,"CUBA"]
[null,"CYPRUS"]
[null,"CZECH REPUBLIC"]
[null,"DENMARK"]
[null,"DJIBOUTI"]
[null,"DOMINICA"]
[null,"DOMINICAN REPUBLIC"]
[null,"EASTERN EUROPE"]
[null,"ECUADOR"]
[null,"EGYPT"]
[null,"EL SALVADOR"]
[null,"EQUATORIAL GUINEA"]
[null,"ERITREA"]
[null,"ESTONIA"]
[null,"ETHIOPIA"]
[null,"EUROPE"]
[null,"EUROPEAN CONTINENT"]
[null,"FIJI"]
[null,"FINLAND"]
[null,"FRANCE "]
[null,"FRENCH POLYNESIA"]
[null,"GABON"]
[null,"GAMBIA"]
[null,"GEORGIA"]
[null,"GERMANY"]
[null,"GHANA"]
[null,"GREECE"]
[null,"GRENADA"]
[null,"GSA COUNTRIES"]
[null,"GUATEMALA"]
[null,"GUINEA"]
[null,"GUINEA-BISSAU"]
[null,"GUYANA"]
[null,"HAITI"]
[null,"HOLY SEE (VATICAN CITY STATE)"]
[null,"HONDURAS"]
[null,"HONG KONG"]
[null,"HUNGARY"]
[null,"ICELAND"]
[null,"INDIA"]
[null,"INDONESIA"]
[null,"IRAN"]
[null,"IRAQ"]
[null,"IRELAND"]
[null,"ISRAEL"]
[null,"ITALY"]
[null,"JAMAICA"]
[null,"JAPAN"]
[null,"JORDAN"]
[null,"KAZAKHSTAN"]
[null,"KENYA"]
[null,"KIRIBATI"]
[null,"KUWAIT"]
[null,"KYRGYZSTAN"]
[null,"LAO PEOPLE'S DEMOCRATIC REPUBLIC"]
[null,"LATVIA"]
[null,"LEBANON"]
[null,"LESOTHO"]
[null,"LIBERIA"]
[null,"LIBYA"]
[null,"LIECHTENSTEIN"]
[null,"LITHUANIA"]
[null,"LUXEMBOURG"]
[null,"MACEDONIA"]
[null,"MADAGASCAR"]
[null,"MALAWI"]
[null,"MALAYSIA"]
[null,"MALDIVES"]
[null,"MALI"]
[null,"MALTA"]
[null,"MARSHALL ISLANDS"]
[null,"MAURITANIA"]
[null,"MAURITIUS"]
[null,"MEXICO"]
[null,"MICRONESIA"]
[null,"MIDDLE EAST"]
[null,"MOLDOVA"]
[null,"MONACO"]
[null,"MONGOLIA"]
[null,"MOROCCO"]
[null,"MOZAMBIQUE"]
[null,"MYANMAR"]
[null,"NAMIBIA"]
[null,"NAURU "]
[null,"NEPAL"]
[null,"NETHERLANDS"]
[null,"NEW ZEALAND"]
[null,"NICARAGUA"]
[null,"NIGER"]
[null,"NIGERIA"]
[null,"NORDIC COUNTRIES"]
[null,"NORTH AFRICA"]
[null,"NORTH AMERICA"]
[null,"NORTH KOREA"]
[null,"NORWAY"]
[null,"OCEANIA"]
[null,"OMAN"]
[null,"PAKISTAN"]
[null,"PALAU"]
[null,"PANAMA"]
[null,"PAPUA NEW GUINEA"]
[null,"PARAGUAY"]
[null,"PERU"]
[null,"PHILIPPINES"]
[null,"POLAND"]
[null,"PORTUGAL"]
[null,"PUERTO RICO"]
[null,"QATAR"]
[null,"ROMANIA"]
[null,"RUSSIAN FEDERATION"]
[null,"RWANDA"]
[null,"SAINT KITTS AND NEVIS"]
[null,"SAINT LUCIA"]
[null,"SAINT VINCENT AND THE GRENADINES"]
[null,"SAMOA"]
[null,"SAN MARINO"]
[null,"SAO TOME AND PRINCIPE"]
[null,"SAUDI ARABIA"]
[null,"SCANDINAVIA"]
[null,"SENEGAL"]
[null,"SERVIA AND MONTENEGRO"]
[null,"SEYCHELLES"]
[null,"SIERRA LEONE"]
[null,"SINGAPORE"]
[null,"SLOVAKIA"]
[null,"SLOVENIA"]
[null,"SOLOMON ISLANDS"]
[null,"SOMALIA"]
[null,"SOUTH AFRICA"]
[null,"SOUTH AMERICA"]
[null,"SOUTH EAST ASIA"]
[null,"SOUTH KOREA"]
[null,"SPAIN "]
[null,"SRI LANKA"]
[null,"SUDAN"]
[null,"SURINAME"]
[null,"SWAZILAND"]
[null,"SWEDEN"]
[null,"SWITZERLAND"]
[null,"SYRIA"]
[null,"TAIWAN"]
[null,"TAJIKISTAN"]
[null,"TANZANIA"]
[null,"THAILAND"]
[null,"TIMOR-LESTE"]
[null,"TOGO"]
[null,"TONGA"]
[null,"TRINIDAD AND TOBAGO"]
[null,"TUNISIA"]
[null,"TURKEY"]
[null,"TURKMENISTAN"]
[null,"TUVALU"]
[null,"UGANDA"]
[null,"UKRAINE"]
[null,"UNITED ARAB EMIRATES"]
[null,"UNITED KINGDOM"]
[null,"URUGUAY"]
[null,"USSR"]
[null,"UZBEKISTAN"]
[null,"VANUATU"]
[null,"VENEZUELA"]
[null,"VIETNAM"]
[null,"WEST INDIES"]
[null,"WESTERN SAHARA"]
[null,"YEMEN"]
[null,"ZAIRE"]
[null,"ZAMBIA"]
[null,"ZIMBABWE"]
[]
["Language","English"]
[null,"French"]
[null,"Abkhazian"]
[null,"Afar"]
[null,"Afrikaans"]
[null,"Albanian"]
[null,"Amharic"]
[null,"Arabic"]
[null,"Armenian"]
[null,"Assamese"]
[null,"Aymara"]
[null,"Azerbaijani"]
[null,"Bashkir"]
[null,"Basque"]
[null,"Bengali"]
[null,"Bhutani"]
[null,"Bihari"]
[null,"Bislama"]
[null,"Breton"]
[null,"Bulgarian"]
[null,"Burmese"]
[null,"Byelorussian"]
[null,"Cambodian"]
[null,"Catalan"]
[null,"Chinese"]
[null,"Corsican"]
[null,"Croatian"]
[null,"Czech"]
[null,"Danish"]
[null,"Dutch"]
[null,"Esperanto"]
[null,"Estonian"]
[null,"Faeroese"]
[null,"Farsi"]
[null,"Fiji"]
[null,"Finnish"]
[null,"Frisian"]
[null,"Galician"]
[null,"Georgian"]
[null,"German"]
[null,"Greek"]
[null,"Greenlandic"]
[null,"Guarani"]
[null,"Gujarati"]
[null,"Hausa"]
[null,"Hawaii"]
[null,"Hebrew"]
[null,"Hindi"]
[null,"Hungarian"]
[null,"Icelandic"]
[null,"Indonesian"]
[null,"Interlingua"]
[null,"Interlingue"]
[null,"Inupiak"]
[null,"Irish"]
[null,"Italian"]
[null,"Japanese"]
[null,"Javanese"]
[null,"Kannada"]
[null,"Kashmiri"]
[null,"Kazakh"]
[null,"Kinyarwanda"]
[null,"Kirghiz"]
[null,"Kirundi"]
[null,"Korean"]
[null,"Kurdish"]
[null,"Laothian"]
[null,"Latin"]
[null,"Latvian"]
[null,"Lingala"]
[null,"Lithuanian"]
[null,"Macedonian"]
[null,"Malagasy"]
[null,"Malay"]
[null,"Malayalam"]
[null,"Maltese"]
[null,"Maori"]
[null,"Marathi"]
[null,"Moldavian"]
[null,"Mongolian"]
[null,"Nauru"]
[null,"Ndebele"]
[null,"Nepali"]
[null,"North Sotho"]
[null,"Norwegian"]
[null,"Occitan"]
[null,"Oriya"]
[null,"Oromo"]
[null,"Papiamento"]
[null,"Pashto"]
[null,"Polish"]
[null,"Portuguese"]
[null,"Punjabi"]
[null,"Quechua"]
[null,"Rhaeto-Romance"]
[null,"Romanian"]
[null,"Russian"]
[null,"Samoan"]
[null,"Sangro"]
[null,"Sanskrit"]
[null,"Scots Gaelic"]
[null,"Serbian"]
[null,"Serbo-Croatian"]
[null,"Sesotho"]
[null,"Setswana"]
[null,"Shona"]
[null,"Sindhi"]
[null,"Singhalese"]
[null,"Siswati"]
[null,"Slovak"]
[null,"Slovenian"]
[null,"Somali"]
[null,"Spanish"]
[null,"Sudanese"]
[null,"Swahili"]
[null,"Swedish"]
[null,"Tagalog"]
[null,"Tajik"]
[null,"Tamil"]
[null,"Tatar"]
[null,"Telugu"]
[null,"Thai"]
[null,"Tibetan"]
[null,"Tigrinya"]
[null,"Tonga"]
[null,"Tsonga"]
[null,"Turkish"]
[null,"Turkmen"]
[null,"Twi"]
[null,"Ukranian"]
[null,"Urdu"]
[null,"Uzbek"]
[null,"Venda"]
[null,"Vietnamese"]
[null,"Volapuk"]
[null,"Welsh"]
[null,"Wolof"]
[null,"Xhosa"]
[null,"Yiddish"]
[null,"Yoruba"]
[null,"Zulu"]
[]
["Country of Production 1","CANADA"]
[null,"USA"]
[null,"AFGHANISTAN"]
[null,"AFRICA"]
[null,"ALBANIA"]
[null,"ALGERIA"]
[null,"AMERICA"]
[null,"AMERICAN CONTINENT"]
[null,"ANDORRA"]
[null,"ANGOLA"]
[null,"ANTIGUA AND BARBUDA"]
[null,"ANTILLES"]
[null,"ARGENTINA"]
[null,"ARMENIA"]
[null,"ASIA"]
[null,"AUSTRALASIA"]
[null,"AUSTRALIA"]
[null,"AUSTRIA"]
[null,"AZERBAIJAN"]
[null,"BAHAMAS"]
[null,"BAHRAIN"]
[null,"BALKANS"]
[null,"BALTIC STATES"]
[null,"BANGLADESH"]
[null,"BARBADOS"]
[null,"BELARUS"]
[null,"BELGIUM"]
[null,"BELIZE"]
[null,"BENIN"]
[null,"BHUTAN"]
[null,"BOLIVIA"]
[null,"BOSNIA AND HERZEGOVINA"]
[null,"BOTSWANA"]
[null,"BRAZIL"]
[null,"BRITISH ISLES"]
[null,"BRUNEI DARUSSALAM"]
[null,"BULGARIA"]
[null,"BURKINA FASO"]
[null,"BURMA"]
[null,"BURUNDI"]
[null,"CAMBODIA"]
[null,"CAMEROON"]
[null,"CAPE VERDE"]
[null,"CENTRAL AFRICAN REPUBLIC"]
[null,"CENTRAL AMERICA"]
[null,"CHAD"]
[null,"CHILE"]
[null,"CHINA"]
[null,"COLOMBIA"]
[null,"COMOROS"]
[null,"CONGO, THE DEMOCRATIC REPUBLIC OF THE"]
[null,"COSTA RICA"]
[null,"COTE D'IVOIRE"]
[null,"CORATIA"]
[null,"CUBA"]
[null,"CYPRUS"]
[null,"CZECH REPUBLIC"]
[null,"DENMARK"]
[null,"DJIBOUTI"]
[null,"DOMINICA"]
[null,"DOMINICAN REPUBLIC"]
[null,"EASTERN EUROPE"]
[null,"ECUADOR"]
[null,"EGYPT"]
[null,"EL SALVADOR"]
[null,"EQUATORIAL GUINEA"]
[null,"ERITREA"]
[null,"ESTONIA"]
[null,"ETHIOPIA"]
[null,"EUROPE"]
[null,"EUROPEAN CONTINENT"]
[null,"FIJI"]
[null,"FINLAND"]
[null,"FRANCE "]
[null,"FRENCH POLYNESIA"]
[null,"GABON"]
[null,"GAMBIA"]
[null,"GEORGIA"]
[null,"GERMANY"]
[null,"GHANA"]
[null,"GREECE"]
[null,"GRENADA"]
[null,"GSA COUNTRIES"]
[null,"GUATEMALA"]
[null,"GUINEA"]
[null,"GUINEA-BISSAU"]
[null,"GUYANA"]
[null,"HAITI"]
[null,"HOLY SEE (VATICAN CITY STATE)"]
[null,"HONDURAS"]
[null,"HONG KONG"]
[null,"HUNGARY"]
[null,"ICELAND"]
[null,"INDIA"]
[null,"INDONESIA"]
[null,"IRAN"]
[null,"IRAQ"]
[null,"IRELAND"]
[null,"ISRAEL"]
[null,"ITALY"]
[null,"JAMAICA"]
[null,"JAPAN"]
[null,"JORDAN"]
[null,"KAZAKHSTAN"]
[null,"KENYA"]
[null,"KIRIBATI"]
[null,"KUWAIT"]
[null,"KYRGYZSTAN"]
[null,"LAO PEOPLE'S DEMOCRATIC REPUBLIC"]
[null,"LATVIA"]
[null,"LEBANON"]
[null,"LESOTHO"]
[null,"LIBERIA"]
[null,"LIBYA"]
[null,"LIECHTENSTEIN"]
[null,"LITHUANIA"]
[null,"LUXEMBOURG"]
[null,"MACEDONIA"]
[null,"MADAGASCAR"]
[null,"MALAWI"]
[null,"MALAYSIA"]
[null,"MALDIVES"]
[null,"MALI"]
[null,"MALTA"]
[null,"MARSHALL ISLANDS"]
[null,"MAURITANIA"]
[null,"MAURITIUS"]
[null,"MEXICO"]
[null,"MICRONESIA"]
[null,"MIDDLE EAST"]
[null,"MOLDOVA"]
[null,"MONACO"]
[null,"MONGOLIA"]
[null,"MOROCCO"]
[null,"MOZAMBIQUE"]
[null,"MYANMAR"]
[null,"NAMIBIA"]
[null,"NAURU "]
[null,"NEPAL"]
[null,"NETHERLANDS"]
[null,"NEW ZEALAND"]
[null,"NICARAGUA"]
[null,"NIGER"]
[null,"NIGERIA"]
[null,"NORDIC COUNTRIES"]
[null,"NORTH AFRICA"]
[null,"NORTH AMERICA"]
[null,"NORTH KOREA"]
[null,"NORWAY"]
[null,"OCEANIA"]
[null,"OMAN"]
[null,"PAKISTAN"]
[null,"PALAU"]
[null,"PANAMA"]
[null,"PAPUA NEW GUINEA"]
[null,"PARAGUAY"]
[null,"PERU"]
[null,"PHILIPPINES"]
[null,"POLAND"]
[null,"PORTUGAL"]
[null,"PUERTO RICO"]
[null,"QATAR"]
[null,"ROMANIA"]
[null,"RUSSIAN FEDERATION"]
[null,"RWANDA"]
[null,"SAINT KITTS AND NEVIS"]
[null,"SAINT LUCIA"]
[null,"SAINT VINCENT AND THE GRENADINES"]
[null,"SAMOA"]
[null,"SAN MARINO"]
[null,"SAO TOME AND PRINCIPE"]
[null,"SAUDI ARABIA"]
[null,"SCANDINAVIA"]
[null,"SENEGAL"]
[null,"SERVIA AND MONTENEGRO"]
[null,"SEYCHELLES"]
[null,"SIERRA LEONE"]
[null,"SINGAPORE"]
[null,"SLOVAKIA"]
[null,"SLOVENIA"]
[null,"SOLOMON ISLANDS"]
[null,"SOMALIA"]
[null,"SOUTH AFRICA"]
[null,"SOUTH AMERICA"]
[null,"SOUTH EAST ASIA"]
[null,"SOUTH KOREA"]
[null,"SPAIN "]
[null,"SRI LANKA"]
[null,"SUDAN"]
[null,"SURINAME"]
[null,"SWAZILAND"]
[null,"SWEDEN"]
[null,"SWITZERLAND"]
[null,"SYRIA"]
[null,"TAIWAN"]
[null,"TAJIKISTAN"]
[null,"TANZANIA"]
[null,"THAILAND"]
[null,"TIMOR-LESTE"]
[null,"TOGO"]
[null,"TONGA"]
[null,"TRINIDAD AND TOBAGO"]
[null,"TUNISIA"]
[null,"TURKEY"]
[null,"TURKMENISTAN"]
[null,"TUVALU"]
[null,"UGANDA"]
[null,"UKRAINE"]
[null,"UNITED ARAB EMIRATES"]
[null,"UNITED KINGDOM"]
[null,"URUGUAY"]
[null,"USSR"]
[null,"UZBEKISTAN"]
[null,"VANUATU"]
[null,"VENEZUELA"]
[null,"VIETNAM"]
[null,"WEST INDIES"]
[null,"WESTERN SAHARA"]
[null,"YEMEN"]
[null,"ZAIRE"]
[null,"ZAMBIA"]
[null,"ZIMBABWE"]
[]
["Country of Production 2","CANADA"]
[null,"USA"]
[null,"AFGHANISTAN"]
[null,"AFRICA"]
[null,"ALBANIA"]
[null,"ALGERIA"]
[null,"AMERICA"]
[null,"AMERICAN CONTINENT"]
[null,"ANDORRA"]
[null,"ANGOLA"]
[null,"ANTIGUA AND BARBUDA"]
[null,"ANTILLES"]
[null,"ARGENTINA"]
[null,"ARMENIA"]
[null,"ASIA"]
[null,"AUSTRALASIA"]
[null,"AUSTRALIA"]
[null,"AUSTRIA"]
[null,"AZERBAIJAN"]
[null,"BAHAMAS"]
[null,"BAHRAIN"]
[null,"BALKANS"]
[null,"BALTIC STATES"]
[null,"BANGLADESH"]
[null,"BARBADOS"]
[null,"BELARUS"]
[null,"BELGIUM"]
[null,"BELIZE"]
[null,"BENIN"]
[null,"BHUTAN"]
[null,"BOLIVIA"]
[null,"BOSNIA AND HERZEGOVINA"]
[null,"BOTSWANA"]
[null,"BRAZIL"]
[null,"BRITISH ISLES"]
[null,"BRUNEI DARUSSALAM"]
[null,"BULGARIA"]
[null,"BURKINA FASO"]
[null,"BURMA"]
[null,"BURUNDI"]
[null,"CAMBODIA"]
[null,"CAMEROON"]
[null,"CAPE VERDE"]
[null,"CENTRAL AFRICAN REPUBLIC"]
[null,"CENTRAL AMERICA"]
[null,"CHAD"]
[null,"CHILE"]
[null,"CHINA"]
[null,"COLOMBIA"]
[null,"COMOROS"]
[null,"CONGO, THE DEMOCRATIC REPUBLIC OF THE"]
[null,"COSTA RICA"]
[null,"COTE D'IVOIRE"]
[null,"CORATIA"]
[null,"CUBA"]
[null,"CYPRUS"]
[null,"CZECH REPUBLIC"]
[null,"DENMARK"]
[null,"DJIBOUTI"]
[null,"DOMINICA"]
[null,"DOMINICAN REPUBLIC"]
[null,"EASTERN EUROPE"]
[null,"ECUADOR"]
[null,"EGYPT"]
[null,"EL SALVADOR"]
[null,"EQUATORIAL GUINEA"]
[null,"ERITREA"]
[null,"ESTONIA"]
[null,"ETHIOPIA"]
[null,"EUROPE"]
[null,"EUROPEAN CONTINENT"]
[null,"FIJI"]
[null,"FINLAND"]
[null,"FRANCE "]
[null,"FRENCH POLYNESIA"]
[null,"GABON"]
[null,"GAMBIA"]
[null,"GEORGIA"]
[null,"GERMANY"]
[null,"GHANA"]
[null,"GREECE"]
[null,"GRENADA"]
[null,"GSA COUNTRIES"]
[null,"GUATEMALA"]
[null,"GUINEA"]
[null,"GUINEA-BISSAU"]
[null,"GUYANA"]
[null,"HAITI"]
[null,"HOLY SEE (VATICAN CITY STATE)"]
[null,"HONDURAS"]
[null,"HONG KONG"]
[null,"HUNGARY"]
[null,"ICELAND"]
[null,"INDIA"]
[null,"INDONESIA"]
[null,"IRAN"]
[null,"IRAQ"]
[null,"IRELAND"]
[null,"ISRAEL"]
[null,"ITALY"]
[null,"JAMAICA"]
[null,"JAPAN"]
[null,"JORDAN"]
[null,"KAZAKHSTAN"]
[null,"KENYA"]
[null,"KIRIBATI"]
[null,"KUWAIT"]
[null,"KYRGYZSTAN"]
[null,"LAO PEOPLE'S DEMOCRATIC REPUBLIC"]
[null,"LATVIA"]
[null,"LEBANON"]
[null,"LESOTHO"]
[null,"LIBERIA"]
[null,"LIBYA"]
[null,"LIECHTENSTEIN"]
[null,"LITHUANIA"]
[null,"LUXEMBOURG"]
[null,"MACEDONIA"]
[null,"MADAGASCAR"]
[null,"MALAWI"]
[null,"MALAYSIA"]
[null,"MALDIVES"]
[null,"MALI"]
[null,"MALTA"]
[null,"MARSHALL ISLANDS"]
[null,"MAURITANIA"]
[null,"MAURITIUS"]
[null,"MEXICO"]
[null,"MICRONESIA"]
[null,"MIDDLE EAST"]
[null,"MOLDOVA"]
[null,"MONACO"]
[null,"MONGOLIA"]
[null,"MOROCCO"]
[null,"MOZAMBIQUE"]
[null,"MYANMAR"]
[null,"NAMIBIA"]
[null,"NAURU "]
[null,"NEPAL"]
[null,"NETHERLANDS"]
[null,"NEW ZEALAND"]
[null,"NICARAGUA"]
[null,"NIGER"]
[null,"NIGERIA"]
[null,"NORDIC COUNTRIES"]
[null,"NORTH AFRICA"]
[null,"NORTH AMERICA"]
[null,"NORTH KOREA"]
[null,"NORWAY"]
[null,"OCEANIA"]
[null,"OMAN"]
[null,"PAKISTAN"]
[null,"PALAU"]
[null,"PANAMA"]
[null,"PAPUA NEW GUINEA"]
[null,"PARAGUAY"]
[null,"PERU"]
[null,"PHILIPPINES"]
[null,"POLAND"]
[null,"PORTUGAL"]
[null,"PUERTO RICO"]
[null,"QATAR"]
[null,"ROMANIA"]
[null,"RUSSIAN FEDERATION"]
[null,"RWANDA"]
[null,"SAINT KITTS AND NEVIS"]
[null,"SAINT LUCIA"]
[null,"SAINT VINCENT AND THE GRENADINES"]
[null,"SAMOA"]
[null,"SAN MARINO"]
[null,"SAO TOME AND PRINCIPE"]
[null,"SAUDI ARABIA"]
[null,"SCANDINAVIA"]
[null,"SENEGAL"]
[null,"SERVIA AND MONTENEGRO"]
[null,"SEYCHELLES"]
[null,"SIERRA LEONE"]
[null,"SINGAPORE"]
[null,"SLOVAKIA"]
[null,"SLOVENIA"]
[null,"SOLOMON ISLANDS"]
[null,"SOMALIA"]
[null,"SOUTH AFRICA"]
[null,"SOUTH AMERICA"]
[null,"SOUTH EAST ASIA"]
[null,"SOUTH KOREA"]
[null,"SPAIN "]
[null,"SRI LANKA"]
[null,"SUDAN"]
[null,"SURINAME"]
[null,"SWAZILAND"]
[null,"SWEDEN"]
[null,"SWITZERLAND"]
[null,"SYRIA"]
[null,"TAIWAN"]
[null,"TAJIKISTAN"]
[null,"TANZANIA"]
[null,"THAILAND"]
[null,"TIMOR-LESTE"]
[null,"TOGO"]
[null,"TONGA"]
[null,"TRINIDAD AND TOBAGO"]
[null,"TUNISIA"]
[null,"TURKEY"]
[null,"TURKMENISTAN"]
[null,"TUVALU"]
[null,"UGANDA"]
[null,"UKRAINE"]
[null,"UNITED ARAB EMIRATES"]
[null,"UNITED KINGDOM"]
[null,"URUGUAY"]
[null,"USSR"]
[null,"UZBEKISTAN"]
[null,"VANUATU"]
[null,"VENEZUELA"]
[null,"VIETNAM"]
[null,"WEST INDIES"]
[null,"WESTERN SAHARA"]
[null,"YEMEN"]
[null,"ZAIRE"]
[null,"ZAMBIA"]
[null,"ZIMBABWE"]
[]
["Country of Production 3","CANADA"]
[null,"USA"]
[null,"AFGHANISTAN"]
[null,"AFRICA"]
[null,"ALBANIA"]
[null,"ALGERIA"]
[null,"AMERICA"]
[null,"AMERICAN CONTINENT"]
[null,"ANDORRA"]
[null,"ANGOLA"]
[null,"ANTIGUA AND BARBUDA"]
[null,"ANTILLES"]
[null,"ARGENTINA"]
[null,"ARMENIA"]
[null,"ASIA"]
[null,"AUSTRALASIA"]
[null,"AUSTRALIA"]
[null,"AUSTRIA"]
[null,"AZERBAIJAN"]
[null,"BAHAMAS"]
[null,"BAHRAIN"]
[null,"BALKANS"]
[null,"BALTIC STATES"]
[null,"BANGLADESH"]
[null,"BARBADOS"]
[null,"BELARUS"]
[null,"BELGIUM"]
[null,"BELIZE"]
[null,"BENIN"]
[null,"BHUTAN"]
[null,"BOLIVIA"]
[null,"BOSNIA AND HERZEGOVINA"]
[null,"BOTSWANA"]
[null,"BRAZIL"]
[null,"BRITISH ISLES"]
[null,"BRUNEI DARUSSALAM"]
[null,"BULGARIA"]
[null,"BURKINA FASO"]
[null,"BURMA"]
[null,"BURUNDI"]
[null,"CAMBODIA"]
[null,"CAMEROON"]
[null,"CAPE VERDE"]
[null,"CENTRAL AFRICAN REPUBLIC"]
[null,"CENTRAL AMERICA"]
[null,"CHAD"]
[null,"CHILE"]
[null,"CHINA"]
[null,"COLOMBIA"]
[null,"COMOROS"]
[null,"CONGO, THE DEMOCRATIC REPUBLIC OF THE"]
[null,"COSTA RICA"]
[null,"COTE D'IVOIRE"]
[null,"CORATIA"]
[null,"CUBA"]
[null,"CYPRUS"]
[null,"CZECH REPUBLIC"]
[null,"DENMARK"]
[null,"DJIBOUTI"]
[null,"DOMINICA"]
[null,"DOMINICAN REPUBLIC"]
[null,"EASTERN EUROPE"]
[null,"ECUADOR"]
[null,"EGYPT"]
[null,"EL SALVADOR"]
[null,"EQUATORIAL GUINEA"]
[null,"ERITREA"]
[null,"ESTONIA"]
[null,"ETHIOPIA"]
[null,"EUROPE"]
[null,"EUROPEAN CONTINENT"]
[null,"FIJI"]
[null,"FINLAND"]
[null,"FRANCE "]
[null,"FRENCH POLYNESIA"]
[null,"GABON"]
[null,"GAMBIA"]
[null,"GEORGIA"]
[null,"GERMANY"]
[null,"GHANA"]
[null,"GREECE"]
[null,"GRENADA"]
[null,"GSA COUNTRIES"]
[null,"GUATEMALA"]
[null,"GUINEA"]
[null,"GUINEA-BISSAU"]
[null,"GUYANA"]
[null,"HAITI"]
[null,"HOLY SEE (VATICAN CITY STATE)"]
[null,"HONDURAS"]
[null,"HONG KONG"]
[null,"HUNGARY"]
[null,"ICELAND"]
[null,"INDIA"]
[null,"INDONESIA"]
[null,"IRAN"]
[null,"IRAQ"]
[null,"IRELAND"]
[null,"ISRAEL"]
[null,"ITALY"]
[null,"JAMAICA"]
[null,"JAPAN"]
[null,"JORDAN"]
[null,"KAZAKHSTAN"]
[null,"KENYA"]
[null,"KIRIBATI"]
[null,"KUWAIT"]
[null,"KYRGYZSTAN"]
[null,"LAO PEOPLE'S DEMOCRATIC REPUBLIC"]
[null,"LATVIA"]
[null,"LEBANON"]
[null,"LESOTHO"]
[null,"LIBERIA"]
[null,"LIBYA"]
[null,"LIECHTENSTEIN"]
[null,"LITHUANIA"]
[null,"LUXEMBOURG"]
[null,"MACEDONIA"]
[null,"MADAGASCAR"]
[null,"MALAWI"]
[null,"MALAYSIA"]
[null,"MALDIVES"]
[null,"MALI"]
[null,"MALTA"]
[null,"MARSHALL ISLANDS"]
[null,"MAURITANIA"]
[null,"MAURITIUS"]
[null,"MEXICO"]
[null,"MICRONESIA"]
[null,"MIDDLE EAST"]
[null,"MOLDOVA"]
[null,"MONACO"]
[null,"MONGOLIA"]
[null,"MOROCCO"]
[null,"MOZAMBIQUE"]
[null,"MYANMAR"]
[null,"NAMIBIA"]
[null,"NAURU "]
[null,"NEPAL"]
[null,"NETHERLANDS"]
[null,"NEW ZEALAND"]
[null,"NICARAGUA"]
[null,"NIGER"]
[null,"NIGERIA"]
[null,"NORDIC COUNTRIES"]
[null,"NORTH AFRICA"]
[null,"NORTH AMERICA"]
[null,"NORTH KOREA"]
[null,"NORWAY"]
[null,"OCEANIA"]
[null,"OMAN"]
[null,"PAKISTAN"]
[null,"PALAU"]
[null,"PANAMA"]
[null,"PAPUA NEW GUINEA"]
[null,"PARAGUAY"]
[null,"PERU"]
[null,"PHILIPPINES"]
[null,"POLAND"]
[null,"PORTUGAL"]
[null,"PUERTO RICO"]
[null,"QATAR"]
[null,"ROMANIA"]
[null,"RUSSIAN FEDERATION"]
[null,"RWANDA"]
[null,"SAINT KITTS AND NEVIS"]
[null,"SAINT LUCIA"]
[null,"SAINT VINCENT AND THE GRENADINES"]
[null,"SAMOA"]
[null,"SAN MARINO"]
[null,"SAO TOME AND PRINCIPE"]
[null,"SAUDI ARABIA"]
[null,"SCANDINAVIA"]
[null,"SENEGAL"]
[null,"SERVIA AND MONTENEGRO"]
[null,"SEYCHELLES"]
[null,"SIERRA LEONE"]
[null,"SINGAPORE"]
[null,"SLOVAKIA"]
[null,"SLOVENIA"]
[null,"SOLOMON ISLANDS"]
[null,"SOMALIA"]
[null,"SOUTH AFRICA"]
[null,"SOUTH AMERICA"]
[null,"SOUTH EAST ASIA"]
[null,"SOUTH KOREA"]
[null,"SPAIN "]
[null,"SRI LANKA"]
[null,"SUDAN"]
[null,"SURINAME"]
[null,"SWAZILAND"]
[null,"SWEDEN"]
[null,"SWITZERLAND"]
[null,"SYRIA"]
[null,"TAIWAN"]
[null,"TAJIKISTAN"]
[null,"TANZANIA"]
[null,"THAILAND"]
[null,"TIMOR-LESTE"]
[null,"TOGO"]
[null,"TONGA"]
[null,"TRINIDAD AND TOBAGO"]
[null,"TUNISIA"]
[null,"TURKEY"]
[null,"TURKMENISTAN"]
[null,"TUVALU"]
[null,"UGANDA"]
[null,"UKRAINE"]
[null,"UNITED ARAB EMIRATES"]
[null,"UNITED KINGDOM"]
[null,"URUGUAY"]
[null,"USSR"]
[null,"UZBEKISTAN"]
[null,"VANUATU"]
[null,"VENEZUELA"]
[null,"VIETNAM"]
[null,"WEST INDIES"]
[null,"WESTERN SAHARA"]
[null,"YEMEN"]
[null,"ZAIRE"]
[null,"ZAMBIA"]
[null,"ZIMBABWE"]
[]
["Role of Cue Sheet Provider","Broadcaster"]
[null,"Composer"]
[null,"Distributor"]
[null,"Producer"]
[null,"Publisher"]
[]
["AV interested Party Role","Actor"]
[null,"Author of Screenplay"]
[null,"Author of Sub-Titles"]
[null,"Director"]
[null,"Director of Photography"]
[null,"Distributor"]
[null,"Editor"]
[null,"Producer"]
[null,"Production Company"]
[null,"Sound Engineer"]
[]
["AV interested Party Role","Actor"]
[null,"Author of Screenplay"]
[null,"Author of Sub-Titles"]
[null,"Director"]
[null,"Director of Photography"]
[null,"Distributor"]
[null,"Editor"]
[null,"Producer"]
[null,"Production Company"]
[null,"Sound Engineer"]
[]
["AV interested Party Role","Actor"]
[null,"Author of Screenplay"]
[null,"Author of Sub-Titles"]
[null,"Director"]
[null,"Director of Photography"]
[null,"Distributor"]
[null,"Editor"]
[null,"Producer"]
[null,"Production Company"]
[null,"Sound Engineer"]
[]
[]
["Cue sheet Details portion of the Harmonized Cue Sheet"]
[]
["Music Source","Specially Commissioned"]
[null,"Library/Production"]
[null,"Pre-existing"]
[null,"Unspecified"]
[]
["Music Interested Party Role","Author, Writer, Lyricist"]
[null,"Adaptor"]
[null,"Administrator"]
[null,"Arranger"]
[null,"Composer"]
[null,"Composer/Author"]
[null,"Original Publisher"]
[null,"Substitute Publisher"]
[null,"Publisher Income Participant"]
[null,"Associated Performer"]
[null,"Sub-Authro"]
[null,"Sub-Publisher"]
[null,"Sub-Arranger"]
[null,"Translator"]
[]
["Society of Affiliation","SOCAN"]
[null,"Non Society"]
[null,"AACIMH"]
[null,"AAS"]
[null,"ABRAMUS"]
[null,"ACAM"]
[null,"ACCESS COPYRIGHT"]
[null,"ACCS"]
[null,"ACDAM"]
[null,"ACS"]
[null,"ACUM"]
[null,"ADAGP"]
[null,"ADAVIS"]
[null,"ADDAF"]
[null,"AEI-GUATEMALA"]
[null,"AEPI"]
[null,"AGADU"]
[null,"AKKA-LAA"]
[null,"AKM"]
[null,"ALBAUTOR"]
[null,"ALCS"]
[null,"AMAR"]
[null,"AMCOS"]
[null,"AMRA"]
[null,"AMUS"]
[null,"APA"]
[null,"APDAYC"]
[null,"APG-Japan"]
[null,"APRA"]
[null,"APSAV"]
[null,"ARGENTORES"]
[null,"ARMAUTHOR NGO"]
[null,"ARS"]
[null,"ARTEGSTION"]
[null,"ARTISJUS"]
[null,"ASCAP"]
[null,"AsDAC"]
[null,"ASDACS"]
[null,"ASSIM"]
[null,"ATHINA-SADA-S.A.D.A."]
[null,"ATN"]
[null,"AuPO CINEMA"]
[null,"AUSTRO-MECHANA (AUME)"]
[null,"AUTODIAHIRISI"]
[null,"AUTORARTE"]
[null,"AUTVIS"]
[null,"AWGACS"]
[null,"BBDA"]
[null,"BCDA"]
[null,"BeAT"]
[null,"BGDA"]
[null,"BILD-KUNST"]
[null,"BILDRECHT GmbH"]
[null,"Bildupphovsratt (Visual Copyright Society)"]
[null,"BMDA"]
[null,"BMI"]
[null,"BNDA"]
[null,"BONO"]
[null,"BSCAP"]
[null,"BSDA"]
[null,"BUBEDRA"]
[null,"BUMA"]
[null,"BUMDA"]
[null,"BURIDA"]
[null,"BUTODORA"]
[null,"CA"]
[null,"CARCC"]
[null,"CASH"]
[null,"CMC"]
[null,"CMRRA"]
[null,"COMPASS"]
[null,"COPY-DAN BILLEDER"]
[null,"COSCAP"]
[null,"COSOMA"]
[null,"COSON"]
[null,"COSOTA"]
[null,"COTT"]
[null,"CPSN"]
[null,"CREAIMAGEN"]
[null,"CSCS"]
[null,"DAC"]
[null,"DACS"]
[null,"DALRO"]
[null,"DAMA"]
[null,"DASC"]
[null,"DGA"]
[null,"DHFR"]
[null,"DILIA"]
[null,"DIRECTORES"]
[null,"DIRECTORS UK"]
[null,"DRCC"]
[null,"EAU"]
[null,"ECCO"]
[null,"FILMAUTOR"]
[null,"FILSCAP"]
[null,"GAI Uz"]
[null,"GCA (former SSA)"]
[null,"GEMA"]
[null,"GESAC"]
[null,"GESTOR"]
[null,"HDS-ZAMP"]
[null,"HUNGART"]
[null,"IMRO"]
[null,"IPRS"]
[null,"IVARO"]
[null,"JACAP"]
[null,"JASPAR"]
[null,"JASRAC"]
[null,"KazAK"]
[null,"KODA"]
[null,"KOMCA"]
[null,"KOPIOSTO"]
[null,"KOSA"]
[null,"KUVASTO"]
[null,"Kyrayzpatent"]
[null,"LATGA-A"]
[null,"LATINAUTOR"]
[null,"LIRA"]
[null,"LITA"]
[null,"LITERAR-MECHANA"]
[null,"MACP"]
[null,"MASA (MRMS)"]
[null,"MCA"]
[null,"MCPS"]
[null,"MCSC"]
[null,"MCSK"]
[null,"MCSN"]
[null,"MCT"]
[null,"MESAM"]
[null,"MILMUS"]
[null,"MOSCAP"]
[null,"MRCSN"]
[null,"MSG"]
[null,"MUSICAUTOR"]
[null,"MUST"]
[null,"NASCAM"]
[null,"NCB"]
[null,"NCIP"]
[null,"NICAUTOR"]
[null,"OMDA"]
[null,"ONDA"]
[null,"OSA"]
[null,"OTPDA"]
[null,"PAM CG"]
[null,"PAPPRI"]
[null,"PICTORIGHT"]
[null,"PROLITTERIS"]
[null,"PRS"]
[null,"RAO"]
[null,"RSAU"]
[null,"RUR"]
[null,"SABAM"]
[null,"SACD"]
[null,"SACEM"]
[null,"SACEMLUXEMBOURG"]
[null,"SACENC"]
[null,"SACERAU"]
[null,"SACIM"]
[null,"SACK"]
[null,"SACM"]
[null,"SACS"]
[null,"SACVEN"]
[null,"SADAIC"]
[null,"SADEMBRA"]
[null,"SADIA"]
[null,"SAIF"]
[null,"SAMRO"]
[null,"SANASTO"]
[null,"SARTEC"]
[null,"SASUR"]
[null,"SAVA"]
[null,"SAYCE"]
[null,"SAYCO"]
[null,"SAZAS"]
[null,"SBACEM"]
[null,"SCAM"]
[null,"SCD"]
[null,"SDADV"]
[null,"SDCSI"]
[null,"SESAC INC."]
[null,"SESAM"]
[null,"SETEM"]
[null,"SFP-ZAPA"]
[null,"SGACEDOM"]
[null,"SGAE"]
[null,"SGDL"]
[null,"SIAE"]
[null,"SICAM"]
[null,"SOBODAYCOM"]
[null,"SOCILANDRA"]
[null,"SOCINPRO"]
[null,"SODRAC"]
[null,"SOFAM"]
[null,"SOGEM"]
[null,"SOKOJ"]
[null,"SOMAAP"]
[null,"SOMAS"]
[null,"SOPE"]
[null,"SOZA"]
[null,"SPA"]
[null,"SPAC"]
[null,"SPACQ"]
[null,"SQN"]
[null,"SSA"]
[null,"STEF"]
[null,"STEMRA"]
[null,"STIM"]
[null,"SUISA"]
[null,"SUISSIMAGE"]
[null,"TALI"]
[null,"TEOSTO"]
[null,"The Author's Registry Inc"]
[null,"The Society of Authors (SOA)"]
[null,"TONO"]
[null,"UACRR"]
[null,"UBC"]
[null,"UCMR-ADA"]
[null,"UFFICIO GIURIDICO"]
[null,"UFW"]
[null,"UNAC-SA"]
[null,"UPRAVIS"]
[null,"UPRS"]
[null,"VAGA"]
[null,"VCPMC"]
[null,"VDFS"]
[null,"VEGAP"]
[null,"VEVAM"]
[null,"VISCOPY"]
[null,"WAMI"]
[null,"WGA"]
[null,"ZAIKS"]
[null,"ZAMCOPS"]
[null,"ZAMP - MACEDOINE"]
[null,"ZAMP Association of Slovenia"]
[null,"ZIMURA"]

{"sheet":"Tables","index":8,"n_rows":1004,"n_cols":3,"rows_kept":1004,"cut":false,"hidden":true,"merged":[]}
["AV Work IP Role"]
[]
["Actor"]
["Author of Screenplay"]
["Author of Sub-Titles"]
["Director"]
["Director of Photography"]
["Distributor"]
["Editor"]
["Producer"]
["Production Company"]
["Sound Engineer"]
[]
["Cue Sheet Classification"]
[]
["Original"]
["Revision"]
["Draft"]
[]
["Production Type"]
[]
["Not a Series"]
["Series"]
[]
["Cue Usage"]
[]
["Background",{"$f":"_xlfn._xlws.SORT(_xlfn._xlws.FILTER(A27:A31,ISNUMBER(SEARCH(B5,A27:A31)),\"Not Found\"))","v":"Background"}]
["Closing Theme","Closing Theme"]
["Featured/Visual","Featured/Visual"]
["Opening Theme","Logo"]
["Logo","Opening Theme"]
[]
["Origin"]
[]
["Specially Commissioned"]
["Library/Production"]
["Pre-existing"]
["Unspecified"]
[]
["Version Category"]
[]
["3-D"]
["Airline"]
["App"]
["Black and White"]
["Cable"]
["Color"]
["Director’s cut"]
["Digital Service Provider"]
["Domestic"]
["Home Video"]
["Internet"]
["International"]
["Long"]
["Music Video"]
["Network"]
["New Dubbing"]
["New Music"]
["Original"]
["Restored"]
["Short"]
["Silent Movie"]
["Syndicated"]
["Theatrical"]
["Theme Park"]
[]
["Production Category"]
[]
["Animation, Cartoon"]
["Commercials"]
["Documentary"]
["Feature Film, Theatrical, TV Movie, Movie"]
["Infomercial, Paid Program"]
["Mini-Series"]
["Multimedia"]
["News"]
["One Offs, Non-Series"]
["Other"]
["Reality"]
["TV Series, Cable Series, etc."]
["Soap Opera, Tele-Novelas"]
["Specials"]
["Sporting Event, Sports Related Programme"]
["Trailers"]
[]
["Works IP Role"]
[]
["Author, Writer, Lyricist"]
["Adaptor"]
["Administrator"]
["Arranger"]
["Composer"]
["Composer/Author"]
["Original Publisher"]
["Substitute Publisher"]
["Publisher Income Participant"]
["Associated Performer"]
["Sub-Author"]
["Sub-Publisher"]
["Sub-Arranger"]
["Translator"]
[]
["Language"]
["English"]
["French"]
["Abkhazian"]
["Afar"]
["Afrikaans"]
["Akan"]
["Albanian"]
["Amharic"]
["Arabic"]
["Aragonese"]
["Armenian"]
["Assamese"]
["Avaric"]
["Avestan"]
["Aymara"]
["Azerbaijani"]
["Bambara"]
["Bashkir"]
["Basque"]
["Belarusian"]
["Bengali"]
["Bihari languages"]
["Bislama"]
["Bosnian"]
["Breton"]
["Bulgarian"]
["Burmese"]
["Catalan"]
["Central Khmer"]
["Chamorro"]
["Chechen"]
["Chinese"]
["Church Slavic"]
["Chuvash"]
["Cornish"]
["Corsican"]
["Cree"]
["Croatian"]
["Czech"]
["Danish"]
["Dhivehi"]
["Dutch"]
["Dzongkha"]
["English"]
["Esperanto"]
["Estonian"]
["Ewe"]
["Faroese"]
["Fijian"]
["Finnish"]
["French"]
["Fulah"]
["Galician"]
["Ganda"]
["Georgian"]
["German"]
["Guarani"]
["Gujarati"]
["Haitian"]
["Hausa"]
["Hebrew"]
["Herero"]
["Hindi"]
["Hiri Motu"]
["Hungarian"]
["Icelandic"]
["Ido"]
["Igbo"]
["Indonesian"]
["Interlingua (International Auxiliary Language Association)"]
["Interlingue"]
["Inuktitut"]
["Inupiaq"]
["Irish"]
["Italian"]
["Japanese"]
["Javanese"]
["Kalaallisut"]
["Kannada"]
["Kanuri"]
["Kashmiri"]
["Kazakh"]
["Kikuyu"]
["Kinyarwanda"]
["Kirghiz"]
["Komi"]
["Kongo"]
["Korean"]
["Kuanyama"]
["Kurdish"]
["Lao"]
["Latin"]
["Latvian"]
["Limburgan"]
["Lingala"]
["Lithuanian"]
["Luba-Katanga"]
["Luxembourgish"]
["Macedonian"]
["Malagasy"]
["Malay (macrolanguage)"]
["Malayalam"]
["Maltese"]
["Manx"]
["Maori"]
["Marathi"]
["Marshallese"]
["Modern Greek (1453-)"]
["Mongolian"]
["Nauru"]
["Navajo"]
["Ndonga"]
["Nepali"]
["North Ndebele"]
["Northern Sami"]
["Norwegian"]
["Norwegian Bokmål"]
["Norwegian Nynorsk"]
["Nyanja"]
["Occitan (post 1500)"]
["Ojibwa"]
["Oriya"]
["Oromo"]
["Ossetian"]
["Pali"]
["Panjabi"]
["Persian"]
["Polish"]
["Portuguese"]
["Pushto"]
["Quechua"]
["Romanian"]
["Romansh"]
["Rundi"]
["Russian"]
["Samoan"]
["Sango"]
["Sanskrit"]
["Sardinian"]
["Scottish Gaelic"]
["Serbian"]
["Serbo-Croatian"]
["Shona"]
["Sichuan Yi"]
["Sindhi"]
["Sinhala"]
["Slovak"]
["Slovenian"]
["Somali"]
["South Ndebele"]
["Southern Sotho"]
["Spanish"]
["Sundanese"]
["Swahili (macrolanguage)"]
["Swati"]
["Swedish"]
["Tagalog"]
["Tahitian"]
["Tajik"]
["Tamil"]
["Tatar"]
["Telugu"]
["Thai"]
["Tibetan"]
["Tigrinya"]
["Tonga (Tonga Islands)"]
["Tsonga"]
["Tswana"]
["Turkish"]
["Turkmen"]
["Twi"]
["Uighur"]
["Ukrainian"]
["Urdu"]
["Uzbek"]
["Venda"]
["Vietnamese"]
["Volapük"]
["Walloon"]
["Welsh"]
["Western Frisian"]
["Wolof"]
["Xhosa"]
["Yiddish"]
["Yoruba"]
["Zhuang"]
["Zulu"]
["Society of Affiliation"]
["SOCAN"]
["Non Society"]
["AACIMH"]
["AAS"]
["ABRAMUS"]
["ACAM"]
["ACCESS COPYRIGHT"]
["ACCS"]
["ACDAM"]
["ACS"]
["ACUM"]
["ADAGP"]
["ADAVIS"]
["ADDAF"]
["AEI-GUATEMALA"]
["AEPI"]
["AGADU"]
["AKKA-LAA"]
["AKM"]
["ALBAUTOR"]
["ALCS"]
["AMAR"]
["AMCOS"]
["AMRA"]
["AMUS"]
["APA"]
["APDAYC"]
["APG-Japan"]
["APRA"]
["APSAV"]
["ARGENTORES"]
["ARMAUTHOR NGO"]
["ARS"]
["ARTEGESTION"]
["ARTISJUS"]
["ASCAP"]
["AsDAC"]
["ASDACS"]
["ASSIM"]
["ATHINA- SADA - S.A.D.A."]
["ATN"]
["AuPO CINEMA"]
["AUSTRO-MECHANA (AUME)"]
["AUTODIAHIRISI"]
["AUTORARTE"]
["AUTVIS"]
["AWGACS"]
["BBDA"]
["BCDA"]
["BeAT"]
["BGDA"]
["BILD-KUNST"]
["BILDRECHT GmbH"]
["Bildupphovsrätt (Visual Copyright Society)"]
["BMDA"]
["BMI"]
["BNDA"]
["BONO"]
["BSCAP"]
["BSDA"]
["BUBEDRA"]
["BUMA"]
["BUMDA"]
["BURIDA"]
["BUTODRA"]
["CAL"]
["CARCC"]
["CASH"]
["CMC"]
["CMRRA"]
["COMPASS"]
["COPY-DAN BILLEDER"]
["COSCAP"]
["COSOMA"]
["COSON"]
["COSOTA"]
["COTT"]
["CPSN"]
["CREAIMAGEN"]
["CSCS"]
["DAC"]
["DACS"]
["DALRO"]
["DAMA"]
["DASC"]
["DGA"]
["DHFR"]
["DILIA"]
["DIRECTORES"]
["DIRECTORS UK"]
["DRCC"]
["EAU"]
["ECCO"]
["FILMAUTOR"]
["FILMJUS"]
["FILSCAP"]
["GAI Uz"]
["GCA (former SSA)"]
["GEMA"]
["GESAC"]
["GESTOR"]
["HDS-ZAMP"]
["HUNGART"]
["IMRO"]
["IPRS"]
["IVARO"]
["JACAP"]
["JASPAR"]
["JASRAC"]
["KazAK"]
["KODA"]
["KOMCA"]
["KOPIOSTO"]
["KOSA"]
["KUVASTO"]
["Kyrgyzpatent"]
["LATGA-A"]
["LATINAUTOR"]
["LIRA"]
["LITA"]
["LITERAR-MECHANA"]
["MACA"]
["MACP"]
["MASA (MRMS)"]
["MCPS"]
["MCSC"]
["MCSK"]
["MCSN"]
["MCT"]
["MESAM"]
["MOSCAP"]
["MRCSN"]
["MSG"]
["MUSICAUTOR"]
["MUST"]
["MÜST"]
["NASCAM"]
["NCB"]
["NCIP"]
["NICAUTOR"]
["OMDA"]
["ONDA"]
["OSA"]
["OTPDA"]
["PAM CG"]
["PAPPRI"]
["PICTORIGHT"]
["PROLITTERIS"]
["PRS"]
["RAO"]
["RSAU"]
["RUR"]
["SABAM"]
["SACD"]
["SACEM"]
["SACEMLUXEMBOURG"]
["SACENC"]
["SACERAU"]
["SACIM"]
["SACK"]
["SACM"]
["SACS"]
["SACVEN"]
["SADAIC"]
["SADEMBRA"]
["SADIA"]
["SAIF"]
["SAMRO"]
["SANASTO"]
["SARTEC"]
["SASUR"]
["SAVA"]
["SAYCE"]
["SAYCO"]
["SAZAS"]
["SBACEM"]
["SCAM"]
["SCD"]
["SDADV"]
["SDCSI"]
["SESAC Inc."]
["SESAM"]
["SETEM"]
["SFP-ZAPA"]
["SGACEDOM"]
["SGAE"]
["SGDL"]
["SIAE"]
["SICAM"]
["SOBODAYCOM"]
["SOCAN"]
["SOCILADRA"]
["SOCINPRO"]
["SODRAC"]
["SOFAM"]
["SOGEM"]
["SOKOJ"]
["SOMAAP"]
["SOMAS"]
["SOPE"]
["SOZA"]
["SPA"]
["SPAC"]
["SPACQ"]
["SQN"]
["SSA"]
["STEF"]
["STEMRA"]
["STIM"]
["SUISA"]
["SUISSIMAGE"]
["TALI"]
["TEOSTO"]
["The Author's Registry Inc."]
["The Society of Authors (SOA)"]
["TONO"]
["UACRR"]
["UBC"]
["UCMR-ADA"]
["UFFICIO GIURIDICO"]
["UFW "]
["UNAC-SA"]
["UPRAVIS"]
["UPRS"]
["VAGA"]
["VCPMC"]
["VDFS"]
["VEGAP"]
["VEVAM"]
["VISCOPY"]
["WAMI"]
["WGA"]
["ZAIKS"]
["ZAMCOPS"]
["ZAMP - Macédoine"]
["ZAMP Association of Slovenia"]
["ZIMURA"]
["Countries & Territories"]
[]
["CANADA"]
["USA"]
["AFGHANISTAN"]
["AFRICA"]
["ALBANIA"]
["ALGERIA"]
["AMERICA"]
["AMERICAN CONTINENT"]
["ANDORRA"]
["ANGOLA"]
["ANTIGUA AND BARBUDA"]
["ANTILLES"]
["ARGENTINA"]
["ARMENIA"]
["ASIA"]
["AUSTRALASIA"]
["AUSTRALIA"]
["AUSTRIA"]
["AZERBAIJAN"]
["BAHAMAS"]
["BAHRAIN"]
["BALKANS"]
["BALTIC STATES"]
["BANGLADESH"]
["BARBADOS"]
["BELARUS"]
["BELGIUM"]
["BELIZE"]
["BENIN"]
["BHUTAN"]
["BOLIVIA"]
["BOSNIA AND HERZEGOVINA"]
["BOTSWANA"]
["BRAZIL"]
["BRITISH ISLES"]
["BRUNEI DARUSSALAM"]
["BULGARIA"]
["BURKINA FASO"]
["BURMA"]
["BURUNDI"]
["CAMBODIA"]
["CAMEROON"]
["CAPE VERDE"]
["CENTRAL AFRICAN REPUBLIC"]
["CENTRAL AMERICA"]
["CHAD"]
["CHILE"]
["CHINA"]
["COLOMBIA"]
["COMOROS"]
["CONGO, THE DEMOCRATIC REPUBLIC OF THE"]
["COSTA RICA"]
["COTE D'IVOIRE"]
["CROATIA"]
["CUBA"]
["CYPRUS"]
["CZECH REPUBLIC"]
["DENMARK"]
["DJIBOUTI"]
["DOMINICA"]
["DOMINICAN REPUBLIC"]
["EASTERN EUROPE"]
["ECUADOR"]
["EGYPT"]
["EL SALVADOR"]
["EQUATORIAL GUINEA"]
["ERITREA"]
["ESTONIA"]
["ETHIOPIA"]
["EUROPE"]
["EUROPEAN CONTINENT"]
["FIJI"]
["FINLAND"]
["FRANCE"]
["FRENCH POLYNESIA"]
["GABON"]
["GAMBIA"]
["GEORGIA"]
["GERMANY"]
["GHANA"]
["GREECE"]
["GRENADA"]
["GSA COUNTRIES"]
["GUATEMALA"]
["GUINEA"]
["GUINEA-BISSAU"]
["GUYANA"]
["HAITI"]
["HOLY SEE (VATICAN CITY STATE)"]
["HONDURAS"]
["HONG KONG"]
["HUNGARY"]
["ICELAND"]
["INDIA"]
["INDONESIA"]
["IRAN"]
["IRAQ"]
["IRELAND"]
["ISRAEL"]
["ITALY"]
["JAMAICA"]
["JAPAN"]
["JORDAN"]
["KAZAKHSTAN"]
["KENYA"]
["KIRIBATI"]
["KUWAIT"]
["KYRGYZSTAN"]
["LAO PEOPLE'S DEMOCRATIC REPUBLIC"]
["LATVIA"]
["LEBANON"]
["LESOTHO"]
["LIBERIA"]
["LIBYA"]
["LIECHTENSTEIN"]
["LITHUANIA"]
["LUXEMBOURG"]
["MACEDONIA"]
["MADAGASCAR"]
["MALAWI"]
["MALAYSIA"]
["MALDIVES"]
["MALI"]
["MALTA"]
["MARSHALL ISLANDS"]
["MAURITANIA"]
["MAURITIUS"]
["MEXICO"]
["MICRONESIA"]
["MIDDLE EAST"]
["MOLDOVA"]
["MONACO"]
["MONGOLIA"]
["MOROCCO"]
["MOZAMBIQUE"]
["MYANMAR"]
["NAMIBIA"]
["NAURU"]
["NEPAL"]
["NETHERLANDS"]
["NEW ZEALAND"]
["NICARAGUA"]
["NIGER"]
["NIGERIA"]
["NORDIC COUNTRIES"]
["NORTH AFRICA"]
["NORTH AMERICA"]
["NORTH KOREA"]
["NORWAY"]
["OCEANIA"]
["OMAN"]
["PAKISTAN"]
["PALAU"]
["PANAMA"]
["PAPUA NEW GUINEA"]
["PARAGUAY"]
["PERU"]
["PHILIPPINES"]
["POLAND"]
["PORTUGAL"]
["PUERTO RICO"]
["QATAR"]
["ROMANIA"]
["RUSSIAN FEDERATION"]
["RWANDA"]
["SAINT KITTS AND NEVIS"]
["SAINT LUCIA"]
["SAINT VINCENT AND THE GRENADINES"]
["SAMOA"]
["SAN MARINO"]
["SAO TOME AND PRINCIPE"]
["SAUDI ARABIA"]
["SCANDINAVIA"]
["SENEGAL"]
["SERBIA AND MONTENEGRO"]
["SEYCHELLES"]
["SIERRA LEONE"]
["SINGAPORE"]
["SLOVAKIA"]
["SLOVENIA"]
["SOLOMON ISLANDS"]
["SOMALIA"]
["SOUTH AFRICA"]
["SOUTH AMERICA"]
["SOUTH EAST ASIA"]
["SOUTH KOREA"]
["SPAIN"]
["SRI LANKA"]
["SUDAN"]
["SURINAME"]
["SWAZILAND"]
["SWEDEN"]
["SWITZERLAND"]
["SYRIA"]
["TAIWAN"]
["TAJIKISTAN"]
["TANZANIA"]
["THAILAND"]
["TIMOR-LESTE"]
["TOGO"]
["TONGA"]
["TRINIDAD AND TOBAGO"]
["TUNISIA"]
["TURKEY"]
["TURKMENISTAN"]
["TUVALU"]
["UGANDA"]
["UKRAINE"]
["UNITED ARAB EMIRATES"]
["UNITED KINGDOM"]
["URUGUAY"]
["USSR"]
["UZBEKISTAN"]
["VANUATU"]
["VENEZUELA"]
["VIET NAM"]
["WEST INDIES"]
["WESTERN SAHARA"]
["YEMEN"]
["ZAIRE"]
["ZAMBIA"]
["ZIMBABWE"]
[]
[]
["Role of Cue Sheet Provider"]
[]
["Broadcaster"]
["Composer"]
["Distributor"]
["Producer"]
["Publisher"]
[]
["Version"]
[]
["Yes"]
["No"]
[]
["CISAC Society Code"]
[]
["099"]
["001",null,"Israel"]
["002",null,"Brazil"]
["003",null,"Greece"]
["004",null,"Uruguay"]
["005",null,"Austria"]
["007",null,"Peru"]
["008",null,"Australia"]
["009",null,"Hungary"]
["010",null,"USA"]
["011",null,"Austria"]
["012",null,"Australia"]
["014",null,"Argentina"]
["015",null,"Paraguay"]
["016",null,"Mali"]
["017",null,"USA"]
["018",null,"Guinea"]
["019",null,"Morocco"]
["020",null,"Canada"]
["021",null,"USA"]
["022",null,"Nigeria"]
["023",null,"Netherlands"]
["024",null,"Ivory Coast"]
["025",null,"Senegal"]
["026",null,"Hong Kong"]
["028",null,"Slovakia"]
["029",null,"Chile"]
["030",null,"Brazil"]
["031",null,"Czech Republic"]
["032",null,"Philippines"]
["033",null,"Madagascar"]
["035",null,"German Fed Rep"]
["036",null,"India"]
["037",null,"Benin"]
["038",null,"Japan"]
["039",null,"Bulgaria"]
["040",null,"Denmark"]
["041",null,"Austria"]
["043",null,"Kenya"]
["044",null,"United Kingdom"]
["045",null,"Burkina Faso"]
["047",null,"Congo"]
["048",null,"Scandinavia"]
["049",null,"Algeria"]
["050",null,"Czech Republic"]
["051",null,"Switzerland"]
["052",null,"United Kingdom"]
["054",null,"United Kingdom"]
["055",null,"Belgium"]
["056",null,"France"]
["057",null,"Egypt"]
["058",null,"France"]
["059",null,"Mexico"]
["060",null,"Venezuela"]
["061",null,"Argentina"]
["062",null,"Brazil"]
["063",null,"South Africa"]
["064",null,"Yugoslavia"]
["065",null,"Ecuador"]
["066",null,"Brazil"]
["069",null,"Portugal"]
["070",null,"Mexico"]
["071",null,"USA"]
["072",null,"Spain"]
["073",null,"France"]
["074",null,"Italy"]
["075",null,"Switzerland"]
["077",null,"Iceland"]
["078",null,"Netherlands"]
["079",null,"Sweden"]
["080",null,"Switzerland"]
["082"]
["084"]
["085"]
["086"]
["088"]
["089"]
["090"]
["091"]
["093"]
["094"]
["096"]
["097"]
["098"]
[101]
[102]
[103]
[104]
[105]
[106]
[107]
[110]
[111]
[112]
[115]
[116]
[117]
[118]
[119]
[120]
[121]
[122]
[124]
[125]
[126]
[127]
[128]
[129]
[130]
[132]
[133]
[136]
[137]
[138]
[139]
[140]
[141]
[142]
[145]
[146]
[147]
[148]
[149]
[151]
[152]
[153]
[154]
[155]
[156]
[157]
[158]
[159]
[160]
[161]
[163]
[164]
[166]
[168]
[169]
[170]
[171]
[172]
[173]
[174]
[176]
[177]
[178]
[179]
[182]
[183]
[184]
[185]
[186]
[189]
[190]
[191]
[193]
[194]
[195]
[196]
[198]
[199]
[200]
[201]
[202]
[203]
[204]
[206]
[207]
[209]
[210]
[212]
[213]
[214]
[215]
[216]
[219]
[223]
[224]
[225]
[226]
[227]
[230]
[231]
[232]
[233]
[234]
[235]
[236]
[237]
[238]
[239]
[240]
[241]
[242]
[243]
[244]
[245]
[246]
[247]
[248]
[249]
[250]
[251]
[253]
[254]
[256]
[257]
[258]
[259]
[260]
[261]
[263]
[264]
[265]
[266]
[267]
[268]
[269]
[270]
[271]
[272]
[273]
[274]
[275]
[276]
[277]
[278]
[279]
[280]
[281]
[282]
[301]
[302]
[306]